{"text_format":"1","workbook":"xlsx","n_sheets":20,"sheets":["Instructions","Summary","Administration","Budget Projection","Program Outline+Syllabi","Program","PDE3003 Instructor List","PDE279 Instructor Qualification","Distance Education","Externship","Job Opportunities","LRC","Equipment","Facility","Reading Levels","Enrollment Agreement","Catalog","Promotional Materials","Documents","Submission"],"not_rendered":{"charts":0,"images":0,"macros":0,"external_links":0,"defined_names":15,"comments":0,"pivot_tables":0},"unopened":[],"bounds":{"document_bytes":16777216,"sheet_cells":100000,"rows_first":2000,"rows_last":500,"rows_between":2000,"halvings":0,"cell_chars":16384,"cell_head_chars":4096},"cells_cut":0,"cells_raw":0,"read":"whole","date_system":"1900"}

{"sheet":"Instructions","index":0,"n_rows":79,"n_cols":3,"rows_kept":79,"cut":false,"hidden":false,"merged":[[41,1,41,3],[44,1,44,4],[45,1,45,2],[46,1,46,3],[38,1,38,4],[39,1,39,2],[40,1,40,3]]}
["Standard Diploma to AST/ASB Application"]
["Pennsylvania Department of Education"]
[]
["Do not attempt to unlock or modify this application.  You will be required to submit a new application if the submitted application is unlocked, unprotected, edited, or modified in any way."]
["If you experience issues with the application or require assistance, call the Division at (717)783-8228."]
[]
["Schools not authorized to award specialized associate degrees must use this application to initially elevate one Board-approved diploma program. "]
[]
[null,"Schools without prior authorization to award specialized associate degrees must first submit an existing diploma program, that has been actively offered for longer than 12-months, using this application, to have a current program elevated."]
[]
[null,"This application is required for AST/ASB site-duplicate or transfer programs from another school under the same ownership."]
[]
[null,"If the school has prior authorization to award specialized associate degrees, but does not have Board-approval to offer distance education, the Consolidated Application must be utilized."]
[]
[null,"Paramedic programs approved by the State Department of Health may also use this application to request specialized associated degree approval."]
[]
["Fees / Fee Submission:"]
[null,"Standard Diploma to AST/ASB Application - $1,000"]
[null,"Note: Based on current USPS delivery time estimates, please allow 10-14 business days from the time of mailing for your payment to be received in our offices."]
[]
[null,"Pennsylvania Department of Education"]
[null,"Division of Law Enforcement Education and Trade Schools"]
[null,"State Board of Private Licensed Schools"]
[null,"333 Market Street, 12th Floor"]
[null,"Harrisburg, PA 17126-0333"]
[]
[null,"Check or money order payable to: Pennsylvania Department of Education"]
[]
["Approval"]
[null,"Staff will conduct a quantitative and qualitative review of the application. Staff will then provide written notice of application deficiencies identified during the review.  "]
[null,"Once a revised application is received that cures the identified deficiencies and is deemed materially complete, an evaluation committee will be selected by staff."]
[null,"The evaluation committee will review the application, conduct a site visit, and submit their findings to staff. Staff will again provide written notice of application deficiencies identified by the evaluation committee.  "]
[null,"The committee’s findings and the school's revised application are the basis on which the Secretary will make their final determination."]
[null,"Applications expire one year following the submission date."]
[]
["IMPORTANT - PLEASE READ"]
[]
["Carefully review the Statute, Regulations, and Board Policy Memos of the State Board of Private Licensed Schools at:"]
[null,"Private Licensed Schools Act 174 of 1986"]
[null,"Act 110 of 2019"]
[null,"22 Pa. Code Chapter 73"]
[null,"Board Policy Memos"]
[]
["Carefully review the Statute and Regulations which outline the requirements for a school and its programming to award specialized associate degrees at:"]
[null,"24 P.S. Chapter 65"]
[null,"22 Pa. Code Chapter 31 Subpart C"]
[null,"22 Pa. Code Chapter 42 "]
[]
["Complete all shaded boxes.  Information may be added in the following ways:"]
[null,"1. Type directly in the shaded box."]
[null,"2. Copy and paste text into the shaded box."]
[null,"3. Embed documents as an icon."]
[null,null,"On the insert tab, choose Object.  Select Create from File, check to display as an icon.  Browse for your document."]
[null,null,"NOTE:  Always embed the document as an icon.  You should see a symbol (icon) in the application rather than the entire document. "]
[null,null,"If the entire document appears, you have not embedded the document as an icon."]
[]
[null,"The  application cannot exceed 200MB.  If your application is larger than 200MB, you may have included information that was not requested or you have embedded large files such as .jpg files.  "]
[null,"Change the format of any large files and eliminate anything that was not requested.  "]
[]
["File Naming Conventions"]
[null,"Begin the file name with the school name or abbreviation - if multiple campuses, note location - followed by the name or abbreviation of the program name."]
[null,"Do not use punctuation in the file name.  "]
[null,"NOTE:  When resubmitting revisions to the application, it is absolutely essential to use the exact same filename.  "]
[null,"NOTE:  When resubmitting revisions to the application, it is absolutely essential that the same registered user upload the revised application to SharePoint."]
[null,"Do not change the filename in any way.  Do not even add a number or date to indicate a new version."]
[]
["Right to Know"]
[null,"The Division of Law Enforcement Education and Trade Schools does not have the authority under the new Right to Know Law to determine that a specific document contains confidential or proprietary information.  "]
[null,"Any document submitted to the Division of Law Enforcement Education and Trade Schools may be considered public information that must be disclosed. This includes information in this application. "]
[null,"If a school wishes to have a document protected, the school must provide a written statement signed by a representative of the school indicating that the document contains confidential proprietary information or a trade secret.  "]
[null,"This office will notify the school if a request is submitted under Right to Know that includes such a document.  "]
[null,"The school will have the opportunity to provide input on the release of the document.  "]
[null,"Generally, the Department will deny a Right to Know request for information that the school has deemed to be confidential proprietary information.  "]
[null,"However, if a denial is appealed to the Office of Open Records (OOR), the school will be notified and can intervene and appeal to Commonwealth Court if the OOR rules that the information must be disclosed.  "]
[null,"If the school does not intervene and the OOR says the information must be disclosed, the Department will likely disclose it rather than filing an appeal with Commonwealth Court. "]
[]
["END OF INSTRUCTIONS - PROCEED TO NEXT WORKSHEET TAB"]
[]
["Updated:","2023-05-23"]

{"sheet":"Summary","index":1,"n_rows":263,"n_cols":10,"rows_kept":263,"cut":false,"hidden":false,"merged":[[33,1,38,6],[166,1,171,10],[5,2,5,9],[7,2,7,9],[9,2,9,9],[95,1,95,4],[106,5,106,7],[108,5,108,7],[110,5,110,7],[112,5,112,7],[114,5,114,7],[116,5,116,7],[122,1,124,10],[58,1,63,3],[71,1,76,3],[82,1,87,3],[147,2,152,4],[250,2,250,3],[254,2,254,7],[257,9,257,10],[247,9,247,10],[180,1,185,10],[195,1,200,10],[209,2,209,9],[211,2,211,9],[213,2,213,9],[216,2,216,9],[218,2,218,9],[220,2,220,9],[233,1,238,10],[242,2,242,7],[245,2,245,7]]}
["Standard Diploma to AST/ASB Application"]
["Pennsylvania Department of Education"]
[]
[null,"Name of School:"]
[]
[null,"Address of School:"]
[]
[]
[]
[]
[null,null,"City, State and Zip Code"]
[]
[null,"Title of Program:"]
[null,null,"If this is a Board-approved program, indicate program's Board-approved name."]
[]
[null,"CIP Code:"]
[null,null,"If this is a Board-approved program, indicate the CIP Code assigned on the schools PDE-3808 Program Profile."]
[]
["CIP Code"]
[]
[null,"If this is a Board-approved program, take this opportunity to review the CIP Code assigned to your Board-approved program, indicated on the PDE-3808 Program Profile."]
[]
[null,"If this is a paramedic program approved by the State Department of Health, Board staff will assign the CIP Code accordingly after reviewing the application."]
[]
[null,"Visit the NCES CIP Code Search using the link below:"]
[]
[null,"Classification of Instructional Programs, National Center for Education Statistics, US Department of Education"]
[]
[null,"Check the box to certify that the PDE-3808 Program Profile, which lists the CIP Codes assigned to Board-approved programs, is accurate."]
[]
[null,"OR"]
[]
[null,"If you believe a CIP Code needs to be changed, indicate the proposed CIP Code and provide the rationale for the proposed change."]
[]
[]
[]
[]
[]
[]
[]
["Respond to the following:"]
[]
[null,null,"Is this school in good standing with the State Board of Private Licensed Schools?"]
[]
[null,null,"Is this school on Quarterly Financial Reporting with the State Board of Private Licensed Schools?"]
[]
[null,null,"Does the school have, and can it demonstrate with supportive documentation, its current approved status with an accrediting body approved by the U.S. Department of Education?"]
[]
[null,null,"Is the school in good standing with the accrediting body approved by the U.S. Department of Education?"]
[]
[null,null,"Does the program consist of at least 20% general education content and at least 70% specialized content?"]
[]
[null,null,"Does the program consist of at least 60 semester credit hours or a minimum of 1,500 clock hours or a minimum of 90 quarter credit hours?"]
[]
["Select one of the options below and respond to the following:"]
[]
[1,"This is a diploma program approved by the State Board of Private Licensed Schools; embed a copy of approval letter below."]
[]
[]
[]
[]
[]
[]
[]
[]
[null,"How long have students been enrolled in this program?",null,null,null,null,null,"months"]
[]
["OR"]
[]
[2,"This is a site-transfer or duplicate of an AST/ASB program from another school under the same ownership; embed a copy of approval letter from the other school below."]
[]
[]
[]
[]
[]
[]
[]
[]
["OR"]
[]
[3,"This is a paramedic program approved by the State Department of Health; embed a copy of the Certificate of Accreditation below."]
[]
[]
[]
[]
[]
[]
[]
[]
["Length of Program: "]
[]
[null,null,"No. of Clock Hours OR",null,null,"No. of Semester Credit Hours OR",null,null,null,"No. of Quarter Credit Hours"]
[]
["Time to Complete: "]
[]
[]
[null,"The number of days, weeks, or months required to complete the program on a standard schedule."]
[]
["Cost of Program:"]
[]
[null,null,"Registration/Application Fee"]
[]
[null,null,"Tuition (for full length of program)"]
[]
[null,{"$f":"D107+D109+D111+D113+D115+D117","v":0},"Other Fees (itemize below)"]
[]
[null,null,"Fee Amount:",null,"Purpose:"]
[]
[null,null,"Fee Amount:",null,"Purpose:"]
[]
[null,null,"Fee Amount:",null,"Purpose:"]
[]
[null,null,"Fee Amount:",null,"Purpose:"]
[]
[null,null,"Fee Amount:",null,"Purpose:"]
[]
[null,null,"Fee Amount:",null,"Purpose:"]
[]
[null,{"$f":"B101+B103+B105","v":0},"Total Cost of Program"]
[]
[null,"If the total cost of the program is different than the registration/application fee + the tuition + the fees, please explain the difference and the expenses to students."]
[]
[]
[]
[]
[]
["Program Award:"]
[]
[null,"AST (Associate in Specialized Technology degree)"]
[]
[null,"ASB (Associate in Specialized Business degree)"]
[]
["Other Information:"]
[]
[null,null,"Target date for start-up "]
[]
[null,null,"Maximum number of students at start-up"]
[]
[null,null,"Maximum number of program starts per year"]
[]
["Will any component of the program be delivered by distance education?"]
[]
[]
[null,"If yes, the distance education worksheet in this program application must be completed."]
[]
[null,"Embed a copy of the school's Board-approval to offer distance education below."]
[]
[]
[]
[]
[]
[]
[]
[]
[null,"Note: If the school has prior authorization to award specialized associate degrees, but does not have Board-approval to offer distance education, the Consolidated Application must be utilized."]
[]
[null,null,"Percentage of program to be offered by distance education"]
[]
["Entrance Requirements        "]
["List your school and program-specific entrance requirements (requirements for admission/enrollment - e.g., high school diploma or GED, driver's license, etc.)."]
["If a standardized test will be used, give its name and the minimum score acceptable for admission. "]
[]
["For truck driving programs, \nindicate whether a student must possess a Commercial Learners Permit upon admission or if this is obtained during the program. "]
[]
["Embed a document if the information extends beyond the provided text box."]
[]
[]
[]
[]
[]
[]
[]
[]
["Occupational Skills       "]
["State the major occupational skills that students will learn (e.g., computer programming, milling)."]
["A statement such as the following is NOT sufficient: \"To prepare students with the skills needed to become Executive Secretaries.\" "]
[]
["List program-specific occupational skills to be obtain as a result of the program."]
["Embed a document if the information extends beyond the provided text box."]
[]
[]
[]
[]
[]
[]
[]
[]
["Employment Opportunities        "]
["State the type of employment for which graduates will be qualified. "]
[]
["Include specific job titles (e.g., Machinist, Dental Assistant). "]
[]
["List the program-specific job titles for which a graduate of the program will be able to apply for."]
["Embed a document if the information extends beyond the provided text box."]
[]
[]
[]
[]
[]
[]
[]
[]
["Branch Locations"]
[]
["Will the program be offered at additional sites (branch locations) that operate under the same license?"]
[]
[]
[null,"If yes, list intended branch locations below."]
[]
["Address of Branch:"]
[]
[]
[]
[]
[null,null,"City, State and Zip Code"]
[]
["Address of Branch:"]
[]
[]
[]
[]
[null,null,"City, State and Zip Code"]
[]
["Remote Locations"]
[]
["Will the program require the use of remote locations?"]
[]
[]
[null,"If yes, the corresponding information on the facility worksheet in this program application must be completed."]
[]
["Describe the remote location and the need for the site. "]
["Embed a document if the information extends beyond the provided text box."]
[]
[]
[]
[]
[]
[]
[]
[]
["Certification of the person completing this application:"]
[]
[null,"Name:"]
[null,null,"By placing my name above, I certify with my electronic signature that the information contained in this application is accurate."]
[]
[null,"Affiliation with the school:"]
[]
[null,"E-mail:",null,null,null,null,null,null,"Phone:"]
[null,null,"The Division will communicate with the applicant using this e-mail address. Be sure that this e-mail address is valid and correct and that it is checked regularly."]
[]
[null,"Date of Certification:"]
[]
["Certification of the school's Director:"]
[]
[null,"Name:"]
[null,null,"By placing my name above, I certify with my electronic signature that the information contained in this application is accurate."]
[]
[null,"E-mail:",null,null,null,null,null,null,"Phone:"]
[null,null,"The Division will communicate with the applicant using this e-mail address. Be sure that this e-mail address is valid and correct and that it is checked regularly."]
[]
[null,"Date of Certification:"]
[]
["END OF PDE3003 SUMMARY - PROCEED TO NEXT WORKSHEET TAB"]

{"sheet":"Administration","index":2,"n_rows":149,"n_cols":13,"rows_kept":149,"cut":false,"hidden":false,"merged":[[68,4,72,5],[68,7,72,8],[36,1,40,8],[7,1,11,8],[105,1,109,8],[73,1,73,2],[73,4,73,5],[73,7,73,8],[61,1,61,4],[63,1,63,4],[68,1,72,2],[79,1,83,8],[28,1,28,8],[32,1,32,2],[18,1,22,8],[18,9,22,9],[49,1,53,8],[49,9,53,9],[36,9,40,9],[7,9,11,9],[142,9,146,9],[105,9,109,9],[114,1,118,8],[114,9,118,9],[123,1,127,8],[123,9,127,9],[142,1,146,8],[120,1,120,8],[132,1,136,8],[132,9,136,9],[79,9,83,9],[88,1,92,8],[88,9,92,9],[96,1,100,8],[96,9,100,9]]}
["Standard Diploma to AST/ASB Application"]
["Pennsylvania Department of Education"]
[]
[null,"A. Philosophy and Goals",null,null,null,null,null,null,null,null,null,null," "]
[null,"Embed or enter the statement of the institution's philosophy and goals. Include the terminal objectives for this program"]
[null,"and provisions for affirmative action and equal educational opportunity."]
[]
[" "]
[]
[]
[]
[]
[]
[null,"B. Needs Assessment"]
[null,"Explain the process used to determine the need within the community or regional area for the proposed program and the results"]
[null,"(a clear need for the program must be shown). Within the Job Opportunities worksheet, please ensure proper opportunities, "]
[null,"letters from employers, meeting minutes and statistics are embedded."]
[]
[" "]
[]
[]
[]
[]
[]
[null,"C. Accreditation"]
[]
[null,"1. Name of the Institution’s accrediting body:"]
[]
[]
[]
[null,"2. Date of most recent accreditation evaluation:  "]
[]
[]
[]
[null,"3. Embed a copy of the current letter of accreditation."]
[]
[" "]
[]
[]
[]
[]
[]
[null,"4. Is the Institution on probation with its accrediting agency? "]
[]
[]
[]
[null,"5. If on probation, embed the letter of probation from the accrediting agency."]
[null,"Note: Misrepresentation of accreditation status may result in revocation of the AST/ASB degree granting privilege."]
[]
[" "]
[]
[]
[]
[]
[]
[null,"D. Enrollment (for this program only)"]
[]
[null,"Submit projected student enrollments for this program in the spaces below."]
[]
[null,"1. Current year potential total enrollment:"]
[]
[null,"2. Second year potential total enrollment:"]
[]
[null,"3. Third year potential total enrollment:"]
[]
[null,"E. Financial Solvency"]
[null,"Embed a copy of your last audited financial statement or statements which the institution has submitted to the Internal Revenue Service for the past 3 fiscal years."]
[]
[]
[]
[]
[]
[]
[null,"Year 1",null,null,"Year 2",null,null,"Year 3"]
[]
[null,"F. Student Records"]
[]
[null,"1. Embed a copy of a student transcript with the student identity redacted."]
[]
[" "]
[]
[]
[]
[]
[]
[null,"2. Provide the Institutions records retention policy to ensure maintenance and access to student  records for 50 years following graduation, "]
[null,"termination or withdrawal (including the annual consolidation of records)."]
[]
[" "]
[]
[]
[]
[]
[]
[null,"3. Embed a copy of the school's records repository agreement to protect student records, in the event of closure."]
[]
[" "]
[]
[]
[]
[]
[]
[null,"G. Counseling and Student Advising"]
[null,"Describe how the Institution provides student counseling and advising services."]
[]
[" "]
[]
[]
[]
[]
[]
[null,"H. Placement Rates"]
[null,"Provide a copy of the Institutions most recent placement report for all programs."]
[]
[" "]
[]
[]
[]
[]
[]
[null,"I.  Assurances of and Sexual Harassment and Sexual Violence Policy"]
[null,"In accordance with Act 16 of 2019, provide a copy of your policy on sexual harassment and sexual violence along with a narrative and or evidence of practice to educate the student body."]
[]
[" "]
[]
[]
[]
[]
[]
[null,"J. Administrative Staff"]
[null,"Provide a list of the names, qualifications and roles of each administrative staff member."]
[]
[" "]
[]
[]
[]
[]
[]
[]
[null,"K. Program Advisory Committee (PAC) Meeting Minutes"]
[null,"Provide a copy of the PAC meeting minutes for all meetings held in anticipation of this proposed program."]
[]
[" "]
[]
[]
[]
[]
[]
["END OF ADMINISTRATION - PROCEED TO NEXT WORKSHEET TAB"]

{"sheet":"Budget Projection","index":3,"n_rows":150,"n_cols":42,"rows_kept":150,"cut":false,"hidden":false,"merged":[[141,2,141,7],[144,9,144,10],[144,2,144,7],[27,1,27,2],[112,1,112,3],[128,2,128,7],[131,2,131,7],[133,9,133,10],[133,2,133,7]]}
["Standard Diploma to AST/ASB Application"]
["Pennsylvania Department of Education"]
[]
["School Budget Projection"]
["Profit and Loss Statement"]
[]
["Please complete the 3-year budget projection to show that income will be sufficient to provide a sound financial operation. "]
["Lines 106 to 109 are for program specific costs. Please do not include these budgeted expenses with other costs."]
[null,null,null,null,null,null,null,null,null,null,null,null,null,null,null,"Total",null,null,null,null,null,null,null,null,null,null,null,null,"Total",null,null,null,null,null,null,null,null,null,null,null,null,"Total"]
[null,null,null,"1st Year",null,null,null,null,null,null,null,null,null,null,null,"1st Year","2nd Year",null,null,null,null,null,null,null,null,null,null,null,"2nd Year","3rd Year",null,null,null,null,null,null,null,null,null,null,null,"3rd Year"]
["Student Population",null,null,"Month 1","Month 2","Month 3","Month 4","Month 5","Month 6","Month 7","Month 8","Month 9","Month 10","Month 11","Month 12",null,"Month 1","Month 2","Month 3","Month 4","Month 5","Month 6","Month 7","Month 8","Month 9","Month 10","Month 11","Month 12",null,"Month 1","Month 2","Month 3","Month 4","Month 5","Month 6","Month 7","Month 8","Month 9","Month 10","Month 11","Month 12"]
["(enter all #s as positives) "]
["Beginning Population",null,"enter beginning population here →",null,{"$f":"+D18","v":0},{"$f":"+E18","v":0},{"$f":"+F18","v":0},0,0,0,0,0,0,0,0,null,{"$f":"+O18","v":0},{"$f":"+Q18","v":0},{"$f":"+R18","v":0},0,0,0,0,0,0,0,0,0,null,{"$f":"+AB18","v":0},{"$f":"+AD18","v":0},{"$f":"+AE18","v":0},0,0,0,0,0,0,0,0,0]
["Starts",null,"enter first start here →"]
["Drops"]
["Re-Entries"]
["Graduates"]
["Ending Population",null,null,{"$f":"SUM(D13+D14-D15+D16-D17)","v":0},{"$f":"SUM(E13+E14-E15+E16-E17)","v":0},0,0,0,0,0,0,0,0,0,0,null,{"$f":"SUM(Q13+Q14-Q15+Q16-Q17)","v":0},{"$f":"SUM(R13+R14-R15+R16-R17)","v":0},0,0,0,0,0,0,0,0,0,0,null,{"$f":"SUM(AD13+AD14-AD15+AD16-AD17)","v":0},{"$f":"SUM(AE13+AE14-AE15+AE16-AE17)","v":0},0,0,0,0,0,0,0,0,0,0]
[]
["Revenue"]
["Tuition",null,null,null,null,null,null,null,null,null,null,null,null,null,null,{"$f":"SUM(D21:O21)","v":0},null,null,null,null,null,null,null,null,null,null,null,null,{"$f":"SUM(Q21:AB21)","v":0},null,null,null,null,null,null,null,null,null,null,null,null,{"$f":"SUM(AD21:AO21)","v":0}]
["Fees","Application",null,null,null,null,null,null,null,null,null,null,null,null,null,0,null,null,null,null,null,null,null,null,null,null,null,null,0,null,null,null,null,null,null,null,null,null,null,null,null,0]
[null,"Books/Supplies",null,null,null,null,null,null,null,null,null,null,null,null,null,0,null,null,null,null,null,null,null,null,null,null,null,null,0,null,null,null,null,null,null,null,null,null,null,null,null,0]
[null,"Health/Physical",null,null,null,null,null,null,null,null,null,null,null,null,null,0,null,null,null,null,null,null,null,null,null,null,null,null,0,null,null,null,null,null,null,null,null,null,null,null,null,0]
[null,"Placement",null,null,null,null,null,null,null,null,null,null,null,null,null,0,null,null,null,null,null,null,null,null,null,null,null,null,0,null,null,null,null,null,null,null,null,null,null,null,null,0]
[null,"Graduation",null,null,null,null,null,null,null,null,null,null,null,null,null,0,null,null,null,null,null,null,null,null,null,null,null,null,0,null,null,null,null,null,null,null,null,null,null,null,null,0]
[null,"Other Fees ",null,null,null,null,null,null,null,null,null,null,null,null,null,0,null,null,null,null,null,null,null,null,null,null,null,null,0,null,null,null,null,null,null,null,null,null,null,null,null,0]
["Other Revenue",null,null,null,null,null,null,null,null,null,null,null,null,null,null,0,null,null,null,null,null,null,null,null,null,null,null,null,0,null,null,null,null,null,null,null,null,null,null,null,null,0]
["Total Revenue",null,null,{"$f":"SUM(D21:D28)","v":0},0,0,0,0,0,0,0,0,0,0,0,0,0,0,0,0,0,0,0,0,0,0,0,0,0,0,0,0,0,0,0,0,0,0,0,0,0,0]
[]
["Expenses"]
["Administrative","Administrative Salaries",null,null,null,null,null,null,null,null,null,null,null,null,null,{"$f":"SUM(D32:O32)","v":0},null,null,null,null,null,null,null,null,null,null,null,null,{"$f":"SUM(Q32:AB32)","v":0},null,null,null,null,null,null,null,null,null,null,null,null,{"$f":"SUM(AD32:AO32)","v":0}]
["Expenses","Other Salaries (maintenance, clerical, etc.)",null,null,null,null,null,null,null,null,null,null,null,null,null,0,null,null,null,null,null,null,null,null,null,null,null,null,0,null,null,null,null,null,null,null,null,null,null,null,null,0]
[null,"Benefits",null,null,null,null,null,null,null,null,null,null,null,null,null,0,null,null,null,null,null,null,null,null,null,null,null,null,0,null,null,null,null,null,null,null,null,null,null,null,null,0]
[null,"Travel and Entertainment",null,null,null,null,null,null,null,null,null,null,null,null,null,0,null,null,null,null,null,null,null,null,null,null,null,null,0,null,null,null,null,null,null,null,null,null,null,null,null,0]
[null,"Postage",null,null,null,null,null,null,null,null,null,null,null,null,null,0,null,null,null,null,null,null,null,null,null,null,null,null,0,null,null,null,null,null,null,null,null,null,null,null,null,0]
[null,"Telephone",null,null,null,null,null,null,null,null,null,null,null,null,null,0,null,null,null,null,null,null,null,null,null,null,null,null,0,null,null,null,null,null,null,null,null,null,null,null,null,0]
[null,"Stationary & Supplies",null,null,null,null,null,null,null,null,null,null,null,null,null,0,null,null,null,null,null,null,null,null,null,null,null,null,0,null,null,null,null,null,null,null,null,null,null,null,null,0]
[null,"Equipment (non-Capitalized)",null,null,null,null,null,null,null,null,null,null,null,null,null,0,null,null,null,null,null,null,null,null,null,null,null,null,0,null,null,null,null,null,null,null,null,null,null,null,null,0]
[null,"Franchise Fees",null,null,null,null,null,null,null,null,null,null,null,null,null,0,null,null,null,null,null,null,null,null,null,null,null,null,0,null,null,null,null,null,null,null,null,null,null,null,null,0]
[null,"Dues & Subscription",null,null,null,null,null,null,null,null,null,null,null,null,null,0,null,null,null,null,null,null,null,null,null,null,null,null,0,null,null,null,null,null,null,null,null,null,null,null,null,0]
[null,"Accreditation",null,null,null,null,null,null,null,null,null,null,null,null,null,0,null,null,null,null,null,null,null,null,null,null,null,null,0,null,null,null,null,null,null,null,null,null,null,null,null,0]
[null,"Accounting Fees",null,null,null,null,null,null,null,null,null,null,null,null,null,0,null,null,null,null,null,null,null,null,null,null,null,null,0,null,null,null,null,null,null,null,null,null,null,null,null,0]
[null,"Licenses/Permits",null,null,null,null,null,null,null,null,null,null,null,null,null,0,null,null,null,null,null,null,null,null,null,null,null,null,0,null,null,null,null,null,null,null,null,null,null,null,null,0]
[null,"Bank Fees",null,null,null,null,null,null,null,null,null,null,null,null,null,0,null,null,null,null,null,null,null,null,null,null,null,null,0,null,null,null,null,null,null,null,null,null,null,null,null,0]
[null,"Debt Servicing Costs",null,null,null,null,null,null,null,null,null,null,null,null,null,0,null,null,null,null,null,null,null,null,null,null,null,null,0,null,null,null,null,null,null,null,null,null,null,null,null,0]
[]
["Depreciation/","Building",null,null,null,null,null,null,null,null,null,null,null,null,null,{"$f":"SUM(D48:O48)","v":0},null,null,null,null,null,null,null,null,null,null,null,null,{"$f":"SUM(Q48:AB48)","v":0},null,null,null,null,null,null,null,null,null,null,null,null,{"$f":"SUM(AD48:AO48)","v":0}]
["Amortization ","Building / Leasehold Improvements",null,null,null,null,null,null,null,null,null,null,null,null,null,0,null,null,null,null,null,null,null,null,null,null,null,null,0,null,null,null,null,null,null,null,null,null,null,null,null,0]
[null,"Furniture / Fixtures",null,null,null,null,null,null,null,null,null,null,null,null,null,0,null,null,null,null,null,null,null,null,null,null,null,null,0,null,null,null,null,null,null,null,null,null,null,null,null,0]
[null,"Equipment",null,null,null,null,null,null,null,null,null,null,null,null,null,0,null,null,null,null,null,null,null,null,null,null,null,null,0,null,null,null,null,null,null,null,null,null,null,null,null,0]
[null,"Classroom Equipment",null,null,null,null,null,null,null,null,null,null,null,null,null,0,null,null,null,null,null,null,null,null,null,null,null,null,0,null,null,null,null,null,null,null,null,null,null,null,null,0]
[null,"Goodwill",null,null,null,null,null,null,null,null,null,null,null,null,null,0,null,null,null,null,null,null,null,null,null,null,null,null,0,null,null,null,null,null,null,null,null,null,null,null,null,0]
[null,"Curriculum",null,null,null,null,null,null,null,null,null,null,null,null,null,0,null,null,null,null,null,null,null,null,null,null,null,null,0,null,null,null,null,null,null,null,null,null,null,null,null,0]
[]
["Bad Debt ","Bad Debt Reserve",null,null,null,null,null,null,null,null,null,null,null,null,null,{"$f":"SUM(D56:O56)","v":0},null,null,null,null,null,null,null,null,null,null,null,null,{"$f":"SUM(Q56:AB56)","v":0},null,null,null,null,null,null,null,null,null,null,null,null,{"$f":"SUM(AD56:AO56)","v":0}]
[null,"Bad Debt Charge-Offs",null,null,null,null,null,null,null,null,null,null,null,null,null,{"$f":"SUM(D57:O57)","v":0},null,null,null,null,null,null,null,null,null,null,null,null,{"$f":"SUM(Q57:AB57)","v":0},null,null,null,null,null,null,null,null,null,null,null,null,{"$f":"SUM(AD57:AO57)","v":0}]
[null,"Collection Costs",null,null,null,null,null,null,null,null,null,null,null,null,null,{"$f":"SUM(D58:O58)","v":0},null,null,null,null,null,null,null,null,null,null,null,null,{"$f":"SUM(Q58:AB58)","v":0},null,null,null,null,null,null,null,null,null,null,null,null,{"$f":"SUM(AD58:AO58)","v":0}]
[null,"Loan Costs",null,null,null,null,null,null,null,null,null,null,null,null,null,{"$f":"SUM(D59:O59)","v":0},null,null,null,null,null,null,null,null,null,null,null,null,{"$f":"SUM(Q59:AB59)","v":0},null,null,null,null,null,null,null,null,null,null,null,null,{"$f":"SUM(AD59:AO59)","v":0}]
[]
["Advertising ","Internet",null,null,null,null,null,null,null,null,null,null,null,null,null,{"$f":"SUM(D61:O61)","v":0},null,null,null,null,null,null,null,null,null,null,null,null,{"$f":"SUM(Q61:AB61)","v":0},null,null,null,null,null,null,null,null,null,null,null,null,{"$f":"SUM(AD61:AO61)","v":0}]
[null,"Newspaper/Magazines",null,null,null,null,null,null,null,null,null,null,null,null,null,{"$f":"SUM(D62:O62)","v":0},null,null,null,null,null,null,null,null,null,null,null,null,{"$f":"SUM(Q62:AB62)","v":0},null,null,null,null,null,null,null,null,null,null,null,null,{"$f":"SUM(AD62:AO62)","v":0}]
[null,"Television",null,null,null,null,null,null,null,null,null,null,null,null,null,{"$f":"SUM(D63:O63)","v":0},null,null,null,null,null,null,null,null,null,null,null,null,{"$f":"SUM(Q63:AB63)","v":0},null,null,null,null,null,null,null,null,null,null,null,null,{"$f":"SUM(AD63:AO63)","v":0}]
[null,"Radio",null,null,null,null,null,null,null,null,null,null,null,null,null,{"$f":"SUM(D64:O64)","v":0},null,null,null,null,null,null,null,null,null,null,null,null,{"$f":"SUM(Q64:AB64)","v":0},null,null,null,null,null,null,null,null,null,null,null,null,{"$f":"SUM(AD64:AO64)","v":0}]
[null,"Other",null,null,null,null,null,null,null,null,null,null,null,null,null,{"$f":"SUM(D65:O65)","v":0},null,null,null,null,null,null,null,null,null,null,null,null,{"$f":"SUM(Q65:AB65)","v":0},null,null,null,null,null,null,null,null,null,null,null,null,{"$f":"SUM(AD65:AO65)","v":0}]
[]
["Student","Salaries",null,null,null,null,null,null,null,null,null,null,null,null,null,{"$f":"SUM(D67:O67)","v":0},null,null,null,null,null,null,null,null,null,null,null,null,{"$f":"SUM(Q67:AB67)","v":0},null,null,null,null,null,null,null,null,null,null,null,null,{"$f":"SUM(AD67:AO67)","v":0}]
["Recruitment","Benefits",null,null,null,null,null,null,null,null,null,null,null,null,null,0,null,null,null,null,null,null,null,null,null,null,null,null,0,null,null,null,null,null,null,null,null,null,null,null,null,0]
["(Admissions)","Supplies",null,null,null,null,null,null,null,null,null,null,null,null,null,0,null,null,null,null,null,null,null,null,null,null,null,null,0,null,null,null,null,null,null,null,null,null,null,null,null,0]
[null,"Printing",null,null,null,null,null,null,null,null,null,null,null,null,null,0,null,null,null,null,null,null,null,null,null,null,null,null,0,null,null,null,null,null,null,null,null,null,null,null,null,0]
[null,"Referral Fees",null,null,null,null,null,null,null,null,null,null,null,null,null,0,null,null,null,null,null,null,null,null,null,null,null,null,0,null,null,null,null,null,null,null,null,null,null,null,null,0]
[null,"Transcripts",null,null,null,null,null,null,null,null,null,null,null,null,null,0,null,null,null,null,null,null,null,null,null,null,null,null,0,null,null,null,null,null,null,null,null,null,null,null,null,0]
[]
["Instructional ","Salaries",null,null,null,null,null,null,null,null,null,null,null,null,null,{"$f":"SUM(D74:O74)","v":0},null,null,null,null,null,null,null,null,null,null,null,null,{"$f":"SUM(Q74:AB74)","v":0},null,null,null,null,null,null,null,null,null,null,null,null,{"$f":"SUM(AD74:AO74)","v":0}]
["Salaries","Benefits",null,null,null,null,null,null,null,null,null,null,null,null,null,0,null,null,null,null,null,null,null,null,null,null,null,null,0,null,null,null,null,null,null,null,null,null,null,null,null,0]
["and Expenses ","Supplies (classroom, lab, instructor)",null,null,null,null,null,null,null,null,null,null,null,null,null,0,null,null,null,null,null,null,null,null,null,null,null,null,0,null,null,null,null,null,null,null,null,null,null,null,null,0]
[null,"Library Supplies",null,null,null,null,null,null,null,null,null,null,null,null,null,0,null,null,null,null,null,null,null,null,null,null,null,null,0,null,null,null,null,null,null,null,null,null,null,null,null,0]
[null,"Reference Materials",null,null,null,null,null,null,null,null,null,null,null,null,null,0,null,null,null,null,null,null,null,null,null,null,null,null,0,null,null,null,null,null,null,null,null,null,null,null,null,0]
[null,"Equipment",null,null,null,null,null,null,null,null,null,null,null,null,null,0,null,null,null,null,null,null,null,null,null,null,null,null,0,null,null,null,null,null,null,null,null,null,null,null,null,0]
[null,"Training & Development",null,null,null,null,null,null,null,null,null,null,null,null,null,0,null,null,null,null,null,null,null,null,null,null,null,null,0,null,null,null,null,null,null,null,null,null,null,null,null,0]
[null,"Dues & Subscriptions",null,null,null,null,null,null,null,null,null,null,null,null,null,0,null,null,null,null,null,null,null,null,null,null,null,null,0,null,null,null,null,null,null,null,null,null,null,null,null,0]
[null,"Dues & Subscription - Library",null,null,null,null,null,null,null,null,null,null,null,null,null,0,null,null,null,null,null,null,null,null,null,null,null,null,0,null,null,null,null,null,null,null,null,null,null,null,null,0]
[]
["Distance Education","Curriculum ",null,null,null,null,null,null,null,null,null,null,null,null,null,{"$f":"SUM(D84:O84)","v":0},null,null,null,null,null,null,null,null,null,null,null,null,{"$f":"SUM(Q84:AB84)","v":0},null,null,null,null,null,null,null,null,null,null,null,null,{"$f":"SUM(AD84:AO84)","v":0}]
["Education","Hardware",null,null,null,null,null,null,null,null,null,null,null,null,null,{"$f":"SUM(D85:O85)","v":0},null,null,null,null,null,null,null,null,null,null,null,null,{"$f":"SUM(Q85:AB85)","v":0},null,null,null,null,null,null,null,null,null,null,null,null,{"$f":"SUM(AD85:AO85)","v":0}]
[null,"Software",null,null,null,null,null,null,null,null,null,null,null,null,null,{"$f":"SUM(D86:O86)","v":0},null,null,null,null,null,null,null,null,null,null,null,null,{"$f":"SUM(Q86:AB86)","v":0},null,null,null,null,null,null,null,null,null,null,null,null,{"$f":"SUM(AD86:AO86)","v":0}]
[null,"Faculty Development",null,null,null,null,null,null,null,null,null,null,null,null,null,{"$f":"SUM(D87:O87)","v":0},null,null,null,null,null,null,null,null,null,null,null,null,{"$f":"SUM(Q87:AB87)","v":0},null,null,null,null,null,null,null,null,null,null,null,null,{"$f":"SUM(AD87:AO87)","v":0}]
[null,"Other",null,null,null,null,null,null,null,null,null,null,null,null,null,{"$f":"SUM(D88:O88)","v":0},null,null,null,null,null,null,null,null,null,null,null,null,{"$f":"SUM(Q88:AB88)","v":0},null,null,null,null,null,null,null,null,null,null,null,null,{"$f":"SUM(AD88:AO88)","v":0}]
[null,"(related expenses)"]
[]
["Occupancy","Building - Rent",null,null,null,null,null,null,null,null,null,null,null,null,null,{"$f":"SUM(D91:O91)","v":0},null,null,null,null,null,null,null,null,null,null,null,null,{"$f":"SUM(Q91:AB91)","v":0},null,null,null,null,null,null,null,null,null,null,null,null,{"$f":"SUM(AD91:AO91)","v":0}]
[null,"Building - Mortgage",null,null,null,null,null,null,null,null,null,null,null,null,null,0,null,null,null,null,null,null,null,null,null,null,null,null,0,null,null,null,null,null,null,null,null,null,null,null,null,0]
[null,"Insurance",null,null,null,null,null,null,null,null,null,null,null,null,null,0,null,null,null,null,null,null,null,null,null,null,null,null,0,null,null,null,null,null,null,null,null,null,null,null,null,0]
[null,"Utilities (electric, gas, water, sewer, etc.)",null,null,null,null,null,null,null,null,null,null,null,null,null,0,null,null,null,null,null,null,null,null,null,null,null,null,0,null,null,null,null,null,null,null,null,null,null,null,null,0]
[null,"Real Estate Taxes",null,null,null,null,null,null,null,null,null,null,null,null,null,0,null,null,null,null,null,null,null,null,null,null,null,null,0,null,null,null,null,null,null,null,null,null,null,null,null,0]
[null,"Security",null,null,null,null,null,null,null,null,null,null,null,null,null,0,null,null,null,null,null,null,null,null,null,null,null,null,0,null,null,null,null,null,null,null,null,null,null,null,null,0]
[]
["Student Personnel  ","Salaries",null,null,null,null,null,null,null,null,null,null,null,null,null,{"$f":"SUM(D98:O98)","v":0},null,null,null,null,null,null,null,null,null,null,null,null,{"$f":"SUM(Q98:AB98)","v":0},null,null,null,null,null,null,null,null,null,null,null,null,{"$f":"SUM(AD98:AO98)","v":0}]
["Services","Benefits",null,null,null,null,null,null,null,null,null,null,null,null,null,0,null,null,null,null,null,null,null,null,null,null,null,null,0,null,null,null,null,null,null,null,null,null,null,null,null,0]
[null,"Travel & Entertainment",null,null,null,null,null,null,null,null,null,null,null,null,null,0,null,null,null,null,null,null,null,null,null,null,null,null,0,null,null,null,null,null,null,null,null,null,null,null,null,0]
[null,"Supplies",null,null,null,null,null,null,null,null,null,null,null,null,null,0,null,null,null,null,null,null,null,null,null,null,null,null,0,null,null,null,null,null,null,null,null,null,null,null,null,0]
[null,"Placement Fees",null,null,null,null,null,null,null,null,null,null,null,null,null,0,null,null,null,null,null,null,null,null,null,null,null,null,0,null,null,null,null,null,null,null,null,null,null,null,null,0]
[null,"Externship Fees",null,null,null,null,null,null,null,null,null,null,null,null,null,0,null,null,null,null,null,null,null,null,null,null,null,null,0,null,null,null,null,null,null,null,null,null,null,null,null,0]
[null,"Student Activities",null,null,null,null,null,null,null,null,null,null,null,null,null,0,null,null,null,null,null,null,null,null,null,null,null,null,0,null,null,null,null,null,null,null,null,null,null,null,null,0]
[]
["Program-Specific","New Program Instructional Costs",null,null,null,null,null,null,null,null,null,null,null,null,null,{"$f":"SUM(D106:O106)","v":0},null,null,null,null,null,null,null,null,null,null,null,null,{"$f":"SUM(Q106:AB106)","v":0},null,null,null,null,null,null,null,null,null,null,null,null,{"$f":"SUM(AD106:AO106)","v":0}]
["Expenses for","New Program Administrative Costs",null,null,null,null,null,null,null,null,null,null,null,null,null,{"$f":"SUM(D107:O107)","v":0},null,null,null,null,null,null,null,null,null,null,null,null,{"$f":"SUM(Q107:AB107)","v":0},null,null,null,null,null,null,null,null,null,null,null,null,{"$f":"SUM(AD107:AO107)","v":0}]
["this new","New Program Equipment Costs",null,null,null,null,null,null,null,null,null,null,null,null,null,{"$f":"SUM(D108:O108)","v":0},null,null,null,null,null,null,null,null,null,null,null,null,{"$f":"SUM(Q108:AB108)","v":0},null,null,null,null,null,null,null,null,null,null,null,null,{"$f":"SUM(AD108:AO108)","v":0}]
["program","New Program Facility Costs",null,null,null,null,null,null,null,null,null,null,null,null,null,{"$f":"SUM(D109:O109)","v":0},null,null,null,null,null,null,null,null,null,null,null,null,{"$f":"SUM(Q109:AB109)","v":0},null,null,null,null,null,null,null,null,null,null,null,null,{"$f":"SUM(AD109:AO109)","v":0}]
[]
["Other Expense ","(describe below)",null,null,null,null,null,null,null,null,null,null,null,null,null,{"$f":"SUM(D111:O111)","v":0},null,null,null,null,null,null,null,null,null,null,null,null,{"$f":"SUM(Q111:AB111)","v":0},null,null,null,null,null,null,null,null,null,null,null,null,{"$f":"SUM(AD111:AO111)","v":0}]
[]
[]
[]
["Total Expenses",null,null,{"$f":"SUM(D32:D111)","v":0},0,0,0,0,0,0,0,0,0,0,0,{"$f":"SUM(D115:O115)","v":0},{"$f":"SUM(Q32:Q111)","v":0},0,0,0,0,0,0,0,0,0,0,0,{"$f":"SUM(Q115:AB115)","v":0},{"$f":"SUM(AD32:AD111)","v":0},0,0,0,0,0,0,0,0,0,0,0,{"$f":"SUM(AD115:AO115)","v":0}]
[]
["Taxes "]
["Federal",null,null,null,null,null,null,null,null,null,null,null,null,null,null,{"$f":"SUM(D118:O118)","v":0},null,null,null,null,null,null,null,null,null,null,null,null,{"$f":"SUM(Q118:AB118)","v":0},null,null,null,null,null,null,null,null,null,null,null,null,{"$f":"SUM(AD118:AO118)","v":0}]
["State",null,null,null,null,null,null,null,null,null,null,null,null,null,null,{"$f":"SUM(D119:O119)","v":0},null,null,null,null,null,null,null,null,null,null,null,null,{"$f":"SUM(Q119:AB119)","v":0},null,null,null,null,null,null,null,null,null,null,null,null,{"$f":"SUM(AD119:AO119)","v":0}]
["Local",null,null,null,null,null,null,null,null,null,null,null,null,null,null,{"$f":"SUM(D120:O120)","v":0},null,null,null,null,null,null,null,null,null,null,null,null,{"$f":"SUM(Q120:AB120)","v":0},null,null,null,null,null,null,null,null,null,null,null,null,{"$f":"SUM(AD120:AO120)","v":0}]
["Total Taxes",null,null,{"$f":"SUM(D118:D120)","v":0},{"$f":"SUM(E118:E120)","v":0},0,0,0,0,0,0,0,0,0,0,{"$f":"SUM(D121:O121)","v":0},{"$f":"SUM(Q118:Q120)","v":0},{"$f":"SUM(R118:R120)","v":0},0,0,0,0,0,0,0,0,0,0,{"$f":"SUM(AC118:AC120)","v":0},{"$f":"SUM(AD118:AD120)","v":0},0,0,0,0,0,0,0,0,0,0,0,{"$f":"SUM(AD118:AO118)","v":0}]
[]
["Net Income",null,null,{"$f":"+D29-D115-D121","v":0},0,0,0,0,0,0,0,0,0,0,0,{"$f":"SUM(D123:O123)","v":0},{"$f":"+Q29-Q115-Q121","v":0},0,0,0,0,0,0,0,0,0,0,0,{"$f":"SUM(Q123:AB123)","v":0},{"$f":"+AD29-AD115-AD121","v":0},0,0,0,0,0,0,0,0,0,0,0,{"$f":"SUM(AD123:AO123)","v":0}]
[]
[]
[]
["Certification of the person completing this application:"]
[]
[null,"Name:"]
[null,null,"By placing my name above, I certify with my electronic signature that the information contained in this application is accurate."]
[]
[null,"Affiliation with the school:"]
[]
[null,"E-mail:",null,null,null,null,null,null,"Phone:"]
[null,null,"The Division will communicate with the applicant using this e-mail address. Be sure that this e-mail address is valid and correct and that it is checked regularly."]
[]
[null,"Date of Certification:"]
[]
[]
["Certification of the school's Director:"]
[]
[null,"Name:"]
[null,null,"By placing my name above, I certify with my electronic signature that the information contained in this application is accurate."]
[]
[null,"E-mail:",null,null,null,null,null,null,"Phone:"]
[null,null,"The Division will communicate with the applicant using this e-mail address. Be sure that this e-mail address is valid and correct and that it is checked regularly."]
[]
[null,"Date of Certification:"]
[]
["END OF BUDGET PROJECTION - PROCEED TO NEXT WORKSHEET TAB"]

{"sheet":"Program Outline+Syllabi","index":4,"n_rows":304,"n_cols":40,"rows_kept":304,"cut":false,"hidden":false,"merged":[[36,25,36,39],[41,3,44,3],[41,7,44,7],[46,3,49,3],[46,7,49,7],[51,3,54,3],[51,7,54,7],[56,3,59,3],[56,7,59,7],[22,1,22,4],[23,1,23,4],[76,3,79,3],[76,7,79,7],[81,3,84,3],[81,7,84,7],[86,3,89,3],[86,7,89,7],[61,3,64,3],[61,7,64,7],[66,3,69,3],[66,7,69,7],[71,3,74,3],[71,7,74,7],[106,3,109,3],[106,7,109,7],[111,3,114,3],[111,7,114,7],[116,3,119,3],[116,7,119,7],[91,3,94,3],[91,7,94,7],[96,3,99,3],[96,7,99,7],[101,3,104,3],[101,7,104,7],[136,3,139,3],[136,7,139,7],[141,3,144,3],[141,7,144,7],[146,3,149,3],[146,7,149,7],[121,3,124,3],[121,7,124,7],[126,3,129,3],[126,7,129,7],[131,3,134,3],[131,7,134,7],[166,3,169,3],[166,7,169,7],[171,3,174,3],[171,7,174,7],[176,3,179,3],[176,7,179,7],[151,3,154,3],[151,7,154,7],[156,3,159,3],[156,7,159,7],[161,3,164,3],[161,7,164,7],[196,3,199,3],[196,7,199,7],[201,3,204,3],[201,7,204,7],[206,3,209,3],[206,7,209,7],[181,3,184,3],[181,7,184,7],[186,3,189,3],[186,7,189,7],[191,3,194,3],[191,7,194,7],[226,3,229,3],[226,7,229,7],[231,3,234,3],[231,7,234,7],[236,3,239,3],[236,7,239,7],[211,3,214,3],[211,7,214,7],[216,3,219,3],[216,7,219,7],[221,3,224,3],[221,7,224,7],[256,3,259,3],[256,7,259,7],[261,3,264,3],[261,7,264,7],[266,3,269,3],[266,7,269,7],[241,3,244,3],[241,7,244,7],[246,3,249,3],[246,7,249,7],[251,3,254,3],[251,7,254,7],[286,3,289,3],[286,7,289,7],[293,29,293,31],[293,33,293,35],[293,37,293,39],[294,29,294,31],[294,33,294,35],[294,37,294,39],[271,3,274,3],[271,7,274,7],[276,3,279,3],[276,7,279,7],[281,3,284,3],[281,7,284,7],[302,33,302,35],[303,31,303,37],[296,33,296,35],[297,33,297,35],[299,29,299,31],[299,33,299,35],[299,37,299,39],[300,29,300,31],[300,33,300,35],[300,37,300,39]]}
["Standard Diploma to AST/ASB Application"]
["Pennsylvania Department of Education"]
[]
["Provide the required information for ALL program courses in the sequence they will be offered."]
[]
["Distance Education notes:"]
[null,"Assign a course number different from the on-ground course number for courses being taught via distance education or to be taught via distance education."]
[null,"Courses taught in part via distance education (hybrid) are still considered distance education and must be assigned a new course number."]
[null,"Course catalogs must reflect the on-ground and/or distance education assigned course numbers, when both delivery options are available to students."]
[null,"Academic transcripts must reflect the on-ground and/or distance education assigned course numbers attempted by the student."]
[]
[null,"1. List the on-ground course number for any course taught only face-to-face at an approved location."]
[null,"2. List the distance ed course number for any course taught by any means of distance education."]
[null,"3. If the course is available in both on-ground and distance education formats, list both course numbers."]
[null,"4. List all the distance education modalities to be used throughout the course."]
[]
[null,"If the course is available in both formats, both course numbers must be presented in the school catalog and ultimately reflected accordingly on the student's academic transcript."]
[]
["Embed a full syllabus for each course in the boxes below. Include both on-ground and distance education syllabi, as appropriate.  "]
["Do not combine syllabi into one document.  Submit on-ground syllabi in a document separate from its distance education syllabi."]
[]
["Reference the sample on-ground and the sample distance education course syllabi, provided on our website, to ensure all syllabi contain the necessary elements."]
[null,"Sample On-Ground Syllabus"]
[null,"Sample Distance Education Syllabus"]
[]
["Each syllabus must contain the course title, course number, prerequisites, instructor's name and contact information, course schedule, course length, objectives, "]
["number of lab and number of lecture hours, number of residential and number of distance education hours, media and texts, grading method, attendance requirements, "]
["policy for make-up work, and a detailed session-by-session outline of course content."]
[]
["AST/ASB program syllabi must also include at minimum 5-7 courses utilizing the Learning Resource Center (LRC). Syllabi must include LRC access, LRC contact information, and the LRC assignments."]
[]
["The syllabus should be the document you will hand out to student in each course. Do not include instructor notes or lesson plans."]
["For distance education, the syllabi submitted in the application should also be the syllabi found in the online course materials."]
[]
["Course names will populate automatically to the PDE3003 Instructor List.  "]
[null,null,null,null,null,null,null,null,null,null,null,null,null,null,null,null,null,null,null,null,null,null,null,"Choose one option for each course:"]
[null,null,null,null,null,null,null,null,null,null,null,null,null,null,null,null,null,null,null,null,null,null,null,"On-Ground Only",null,"For Distance Education Courses"]
[null,null,null,"On-Ground",null,null,null,"Distance Education",null,null,null,null,null,null,null,null,null,null,null,null,null,null,null,"Distance Ed Only",null,"Check only if",null,"Distance Education Modality",null,"Lecture",null,"Lecture",null,"Lab",null,"Lab",null,"Externship",null,"Externship"]
[null,"On-Ground ",null,"Syllabus",null,"Distance Education",null,"Syllabus",null,null,null,"Total",null,"Lecture",null,"Lab",null,"Externship",null,"Semester",null,"Quarter",null,"Blended/Hybrid (combined modalities)",null,"full course is",null,"(list all applicable DE modalities)",null,"Hours",null,"Hours",null,"Hours",null,"Hours",null,"Hours",null,"Hours"]
[null,"Course Number",null,"(embed document)",null,"Course Number",null,"(embed document)",null,"Course Name",null,"Clock Hours","=","Clock Hours","+","Clock Hours","+","Clock Hours",null,"Credits",null,"Credits",null,"Either (choice of modality)",null,"available for review",null,"(i.e. Canvas, Zoom, Google Classroom, etc.)",null,"Distance Ed",null,"On-Ground",null,"Distance Ed",null,"On-Ground",null,"Distance Ed",null,"On-Ground"]
[]
[1]
[]
[]
[]
[]
[2]
[]
[]
[]
[]
[3]
[]
[]
[]
[]
[4]
[]
[]
[]
[]
[5]
[]
[]
[]
[]
[6]
[]
[]
[]
[]
[7]
[]
[]
[]
[]
[8]
[]
[]
[]
[]
[9]
[]
[]
[]
[]
[10]
[]
[]
[]
[]
[11]
[]
[]
[]
[]
[12]
[]
[]
[]
[]
[13]
[]
[]
[]
[]
[14]
[]
[]
[]
[]
[15]
[]
[]
[]
[]
[16]
[]
[]
[]
[]
[17]
[]
[]
[]
[]
[18]
[]
[]
[]
[]
[19]
[]
[]
[]
[]
[20]
[]
[]
[]
[]
[21]
[]
[]
[]
[]
[22]
[]
[]
[]
[]
[23]
[]
[]
[]
[]
[24]
[]
[]
[]
[]
[25]
[]
[]
[]
[]
[26]
[]
[]
[]
[]
[27]
[]
[]
[]
[]
[28]
[]
[]
[]
[]
[29]
[]
[]
[]
[]
[30]
[]
[]
[]
[]
[31]
[]
[]
[]
[]
[32]
[]
[]
[]
[]
[33]
[]
[]
[]
[]
[34]
[]
[]
[]
[]
[35]
[]
[]
[]
[]
[36]
[]
[]
[]
[]
[37]
[]
[]
[]
[]
[38]
[]
[]
[]
[]
[39]
[]
[]
[]
[]
[40]
[]
[]
[]
[]
[41]
[]
[]
[]
[]
[42]
[]
[]
[]
[]
[43]
[]
[]
[]
[]
[44]
[]
[]
[]
[]
[45]
[]
[]
[]
[]
[46]
[]
[]
[]
[]
[47]
[]
[]
[]
[]
[48]
[]
[]
[]
[]
[49]
[]
[]
[]
[]
[50]
[]
[null,null,null,null,null,null,null,null,null,null,null,null,null,null,null,null,null,null,null,"Semester",null,"Quarter",null,null,null,null,null,null,null,"Lecture",null,"Lecture",null,"Lab",null,"Lab",null,"Externship",null,"Externship"]
[null,null,null,null,null,null,null,null,null,null,null,"Clock Hours",null,"Clock Hours",null,"Clock Hours",null,"Clock Hours",null,"Credits",null,"Credits",null,null,null,null,null,null,null,"Distance Ed",null,"On-Ground",null,"Distance Ed",null,"On-Ground",null,"Distance Ed",null,"On-Ground"]
[null,null,null,null,null,null,null,null,null,null,null,"Total",null,"Lecture",null,"Lab",null,"Externship",null,"Total",null,"Total",null,null,null,null,null,null,null,"Total",null,"Total",null,"Total",null,"Total",null,"Total",null,"Total"]
[null,null,null,null,null,null,null,null,null,null,null,{"$f":"SUM(L42:L287)","v":0},"=",{"$f":"SUM(N42:N287)","v":0},"+",{"$f":"SUM(P42:P287)","v":0},"+",{"$f":"SUM(R42:R287)","v":0},null,{"$f":"SUM(T42:T287)","v":0},null,{"$f":"SUM(V42:V287)","v":0},null,null,null,null,null,null,null,{"$f":"SUM(AD42:AD287)","v":0},null,{"$f":"SUM(AF42:AF287)","v":0},null,{"$f":"SUM(AH42:AH287)","v":0},null,{"$f":"SUM(AJ42:AJ287)","v":0},null,{"$f":"SUM(AL42:AL287)","v":0},null,{"$f":"SUM(AN42:AN287)","v":0}]
[]
[null,null,null,null,null,null,null,null,null,null,null,null,null,null,null,null,null,null,null,null,null,null,null,null,null,null,null,null,null,{"$f":"AD292+AF292","v":0},null,null,null,{"$f":"AH292+AJ292","v":0},null,null,null,{"$f":"AL292+AN292","v":0}]
[null,null,null,null,null,null,null,null,null,null,null,null,null,null,null,null,null,null,null,null,null,null,null,null,null,null,null,null,null,"Total Lecture Hours",null,null,null,"Total Lab Hours",null,null,null,"Total Externship Hours"]
[]
[null,null,null,null,null,null,null,null,null,null,null,null,null,null,null,null,null,null,null,null,null,null,null,null,null,null,null,null,null,null,null,null,null,{"$f":"AD294+AH294+AL294","v":0}]
[null,null,null,null,null,null,null,null,null,null,null,null,null,null,null,null,null,null,null,null,null,null,null,null,null,null,null,null,null,null,null,null,null,"Total Program Clock Hours"]
[]
[null,null,null,null,null,null,null,null,null,null,null,null,null,null,null,null,null,null,null,null,null,null,null,null,null,null,null,null,null,{"$f":"AD292+AH292+AL292","v":0},null,null,null,{"$f":"AD300+AL300","v":0},null,null,null,{"$f":"AF292+AJ292+AN292","v":0}]
[null,null,null,null,null,null,null,null,null,null,null,null,null,null,null,null,null,null,null,null,null,null,null,null,null,null,null,null,null,"Total Distance Ed Hours",null,null,null,"Total Program Clock Hours",null,null,null,"Total On-Ground Hours"]
[]
[null,null,null,null,null,null,null,null,null,null,null,null,null,null,null,null,null,null,null,null,null,null,null,null,null,null,null,null,null,null,null,null,null,{"$f":"AD300/AH297","v":{"$error":"#DIV/0!"}}]
["END OF PDE3004 PROGRAM OUTLINE - PROCEED TO NEXT WORKSHEET TAB",null,null,null,null,null,null,null,null,null,null,null,null,null,null,null,null,null,null,null,null,null,null,null,null,null,null,null,null,null,null,"Percentage to be offered by Distance Education"]

{"sheet":"Program","index":5,"n_rows":216,"n_cols":24,"rows_kept":216,"cut":false,"hidden":false,"merged":[[213,1,213,6],[153,1,153,5],[153,7,153,11],[155,1,155,5],[155,7,155,11],[157,1,157,5],[157,7,157,11],[159,1,159,5],[159,7,159,11],[161,1,161,5],[161,7,161,11],[163,1,163,5],[163,7,163,11],[130,1,130,6],[2,1,2,9],[165,1,165,5],[165,7,165,11],[211,0,214,0],[169,0,169,10],[171,0,176,0],[179,0,179,10],[171,1,177,16],[185,0,190,0],[185,1,191,16],[167,1,167,5],[167,7,167,11],[195,0,200,0],[195,1,201,16],[209,1,209,6],[137,1,137,3],[139,1,139,3],[141,1,141,3],[143,1,143,3],[145,1,145,3],[126,11,129,15],[15,17,17,23],[133,11,133,13],[148,13,148,16],[137,7,137,9],[139,7,139,9],[141,7,141,9],[143,7,143,9],[145,7,145,9]]}
["Standard Diploma to AST/ASB Application"]
["Pennsylvania Department of Education"]
[]
["A specialized associate degree must require the satisfactory completion of a minimum of 60 semester credit hours, a minimum of 90 quarter credit hours, or a minimum of 1,500 clock hours. "]
[]
["At least 70%, but no more than 80%, of the program must consist of specialized instruction that bears directly upon the employment objectives of the program; and at least 20% of the program must consist of general education."]
[]
["General education refers to the curricular inclusion of humanities, arts, communications, social sciences, mathematics, technology, and science courses in support of the mission of the institution. "]
[]
["Provide the following information to identify the specialized instruction courses and to identify the general education courses."]
[]
["Indicate which semester the course will be offered and any prerequisite courses to demonstrate the sequence of the courses in the program."]
[]
["Please note that you must make any changes necessary to the below (i.e. course numbers and/or names, semester credits, quarter credits, or clock hours) by updating the PDE 3004 Program Profile worksheet in this application."]
[]
[null,null,null,null,null,null,null,null,null,null,null,null,null,null,null,null,null,"Enter the school's chosen method of calculating the mandated \n70-80% of specialized instruction and the 20-30% of general education \nby entering either the associated credits or clock hours by course."]
[]
[]
[]
[null,"On-Ground ",null,"Distance Education",null,null,null,"Prerequisite",null,"Semester",null,"Semester",null,"Quarter",null,"Clock",null,"Specialized Instruction",null,"General Education",null,"Specialized Instruction",null,"General Education"]
[null,"Course Number",null,"Course Number",null,"Course Name",null,"Course Number(s)",null,"Taught",null,"Credits",null,"Credits",null,"Hours",null,"Credits",null,"Credits",null,"Clock Hours",null,"Clock Hours"]
[]
[1,{"$f":"'Program Outline+Syllabi'!B42","v":0},null,{"$f":"'Program Outline+Syllabi'!F42","v":0},null,{"$f":"'Program Outline+Syllabi'!J42","v":0},null,null,null,null,null,{"$f":"'Program Outline+Syllabi'!T42","v":0},null,{"$f":"'Program Outline+Syllabi'!V42","v":0},null,{"$f":"'Program Outline+Syllabi'!L42","v":0}]
[]
[2,{"$f":"'Program Outline+Syllabi'!B47","v":0},null,{"$f":"'Program Outline+Syllabi'!F47","v":0},null,{"$f":"'Program Outline+Syllabi'!J47","v":0},null,null,null,null,null,{"$f":"'Program Outline+Syllabi'!T47","v":0},null,{"$f":"'Program Outline+Syllabi'!V47","v":0},null,{"$f":"'Program Outline+Syllabi'!L47","v":0}]
[]
[3,{"$f":"'Program Outline+Syllabi'!B52","v":0},null,{"$f":"'Program Outline+Syllabi'!F52","v":0},null,{"$f":"'Program Outline+Syllabi'!J52","v":0},null,null,null,null,null,{"$f":"'Program Outline+Syllabi'!T52","v":0},null,{"$f":"'Program Outline+Syllabi'!V52","v":0},null,{"$f":"'Program Outline+Syllabi'!L52","v":0}]
[]
[4,{"$f":"'Program Outline+Syllabi'!B57","v":0},null,{"$f":"'Program Outline+Syllabi'!F57","v":0},null,{"$f":"'Program Outline+Syllabi'!J57","v":0},null,null,null,null,null,{"$f":"'Program Outline+Syllabi'!T57","v":0},null,{"$f":"'Program Outline+Syllabi'!V57","v":0},null,{"$f":"'Program Outline+Syllabi'!L57","v":0}]
[]
[5,{"$f":"'Program Outline+Syllabi'!B62","v":0},null,{"$f":"'Program Outline+Syllabi'!F62","v":0},null,{"$f":"'Program Outline+Syllabi'!J62","v":0},null,null,null,null,null,{"$f":"'Program Outline+Syllabi'!T62","v":0},null,{"$f":"'Program Outline+Syllabi'!V62","v":0},null,{"$f":"'Program Outline+Syllabi'!L62","v":0}]
[]
[6,{"$f":"'Program Outline+Syllabi'!B67","v":0},null,{"$f":"'Program Outline+Syllabi'!F67","v":0},null,{"$f":"'Program Outline+Syllabi'!J67","v":0},null,null,null,null,null,{"$f":"'Program Outline+Syllabi'!T67","v":0},null,{"$f":"'Program Outline+Syllabi'!V67","v":0},null,{"$f":"'Program Outline+Syllabi'!L67","v":0}]
[]
[7,{"$f":"'Program Outline+Syllabi'!B72","v":0},null,{"$f":"'Program Outline+Syllabi'!F72","v":0},null,{"$f":"'Program Outline+Syllabi'!J72","v":0},null,null,null,null,null,{"$f":"'Program Outline+Syllabi'!T72","v":0},null,{"$f":"'Program Outline+Syllabi'!V72","v":0},null,{"$f":"'Program Outline+Syllabi'!L72","v":0}]
[]
[8,{"$f":"'Program Outline+Syllabi'!B77","v":0},null,{"$f":"'Program Outline+Syllabi'!F77","v":0},null,{"$f":"'Program Outline+Syllabi'!J77","v":0},null,null,null,null,null,{"$f":"'Program Outline+Syllabi'!T77","v":0},null,{"$f":"'Program Outline+Syllabi'!V77","v":0},null,{"$f":"'Program Outline+Syllabi'!L77","v":0}]
[]
[9,{"$f":"'Program Outline+Syllabi'!B82","v":0},null,{"$f":"'Program Outline+Syllabi'!F82","v":0},null,{"$f":"'Program Outline+Syllabi'!J82","v":0},null,null,null,null,null,{"$f":"'Program Outline+Syllabi'!T82","v":0},null,{"$f":"'Program Outline+Syllabi'!V82","v":0},null,{"$f":"'Program Outline+Syllabi'!L82","v":0}]
[]
[10,{"$f":"'Program Outline+Syllabi'!B87","v":0},null,{"$f":"'Program Outline+Syllabi'!F87","v":0},null,{"$f":"'Program Outline+Syllabi'!J87","v":0},null,null,null,null,null,{"$f":"'Program Outline+Syllabi'!T87","v":0},null,{"$f":"'Program Outline+Syllabi'!V87","v":0},null,{"$f":"'Program Outline+Syllabi'!L87","v":0}]
[]
[11,{"$f":"'Program Outline+Syllabi'!B92","v":0},null,{"$f":"'Program Outline+Syllabi'!F92","v":0},null,{"$f":"'Program Outline+Syllabi'!J92","v":0},null,null,null,null,null,{"$f":"'Program Outline+Syllabi'!T92","v":0},null,{"$f":"'Program Outline+Syllabi'!V92","v":0},null,{"$f":"'Program Outline+Syllabi'!L92","v":0}]
[]
[12,{"$f":"'Program Outline+Syllabi'!B97","v":0},null,{"$f":"'Program Outline+Syllabi'!F97","v":0},null,{"$f":"'Program Outline+Syllabi'!J97","v":0},null,null,null,null,null,{"$f":"'Program Outline+Syllabi'!T97","v":0},null,{"$f":"'Program Outline+Syllabi'!V97","v":0},null,{"$f":"'Program Outline+Syllabi'!L97","v":0}]
[]
[13,{"$f":"'Program Outline+Syllabi'!B102","v":0},null,{"$f":"'Program Outline+Syllabi'!F102","v":0},null,{"$f":"'Program Outline+Syllabi'!J102","v":0},null,null,null,null,null,{"$f":"'Program Outline+Syllabi'!T102","v":0},null,{"$f":"'Program Outline+Syllabi'!V102","v":0},null,{"$f":"'Program Outline+Syllabi'!L102","v":0}]
[]
[14,{"$f":"'Program Outline+Syllabi'!B107","v":0},null,{"$f":"'Program Outline+Syllabi'!F107","v":0},null,{"$f":"'Program Outline+Syllabi'!J107","v":0},null,null,null,null,null,{"$f":"'Program Outline+Syllabi'!T107","v":0},null,{"$f":"'Program Outline+Syllabi'!V107","v":0},null,{"$f":"'Program Outline+Syllabi'!L107","v":0}]
[]
[15,{"$f":"'Program Outline+Syllabi'!B112","v":0},null,{"$f":"'Program Outline+Syllabi'!F112","v":0},null,{"$f":"'Program Outline+Syllabi'!J112","v":0},null,null,null,null,null,{"$f":"'Program Outline+Syllabi'!T112","v":0},null,{"$f":"'Program Outline+Syllabi'!V112","v":0},null,{"$f":"'Program Outline+Syllabi'!L112","v":0}]
[]
[16,{"$f":"'Program Outline+Syllabi'!B117","v":0},null,{"$f":"'Program Outline+Syllabi'!F117","v":0},null,{"$f":"'Program Outline+Syllabi'!J117","v":0},null,null,null,null,null,{"$f":"'Program Outline+Syllabi'!T117","v":0},null,{"$f":"'Program Outline+Syllabi'!V117","v":0},null,{"$f":"'Program Outline+Syllabi'!L117","v":0}]
[]
[17,{"$f":"'Program Outline+Syllabi'!B122","v":0},null,{"$f":"'Program Outline+Syllabi'!F122","v":0},null,{"$f":"'Program Outline+Syllabi'!J122","v":0},null,null,null,null,null,{"$f":"'Program Outline+Syllabi'!T122","v":0},null,{"$f":"'Program Outline+Syllabi'!V122","v":0},null,{"$f":"'Program Outline+Syllabi'!L122","v":0}]
[]
[18,{"$f":"'Program Outline+Syllabi'!B127","v":0},null,{"$f":"'Program Outline+Syllabi'!F127","v":0},null,{"$f":"'Program Outline+Syllabi'!J127","v":0},null,null,null,null,null,{"$f":"'Program Outline+Syllabi'!T127","v":0},null,{"$f":"'Program Outline+Syllabi'!V127","v":0},null,{"$f":"'Program Outline+Syllabi'!L127","v":0}]
[]
[19,{"$f":"'Program Outline+Syllabi'!B132","v":0},null,{"$f":"'Program Outline+Syllabi'!F132","v":0},null,{"$f":"'Program Outline+Syllabi'!J132","v":0},null,null,null,null,null,{"$f":"'Program Outline+Syllabi'!T132","v":0},null,{"$f":"'Program Outline+Syllabi'!V132","v":0},null,{"$f":"'Program Outline+Syllabi'!L132","v":0}]
[]
[20,{"$f":"'Program Outline+Syllabi'!B137","v":0},null,{"$f":"'Program Outline+Syllabi'!F137","v":0},null,{"$f":"'Program Outline+Syllabi'!J137","v":0},null,null,null,null,null,{"$f":"'Program Outline+Syllabi'!T137","v":0},null,{"$f":"'Program Outline+Syllabi'!V137","v":0},null,{"$f":"'Program Outline+Syllabi'!L137","v":0}]
[]
[21,{"$f":"'Program Outline+Syllabi'!B142","v":0},null,{"$f":"'Program Outline+Syllabi'!F142","v":0},null,{"$f":"'Program Outline+Syllabi'!J142","v":0},null,null,null,null,null,{"$f":"'Program Outline+Syllabi'!T142","v":0},null,{"$f":"'Program Outline+Syllabi'!V142","v":0},null,{"$f":"'Program Outline+Syllabi'!L142","v":0}]
[]
[22,{"$f":"'Program Outline+Syllabi'!B147","v":0},null,{"$f":"'Program Outline+Syllabi'!F147","v":0},null,{"$f":"'Program Outline+Syllabi'!J147","v":0},null,null,null,null,null,{"$f":"'Program Outline+Syllabi'!T147","v":0},null,{"$f":"'Program Outline+Syllabi'!V147","v":0},null,{"$f":"'Program Outline+Syllabi'!L147","v":0}]
[]
[23,{"$f":"'Program Outline+Syllabi'!B152","v":0},null,{"$f":"'Program Outline+Syllabi'!F152","v":0},null,{"$f":"'Program Outline+Syllabi'!J152","v":0},null,null,null,null,null,{"$f":"'Program Outline+Syllabi'!T152","v":0},null,{"$f":"'Program Outline+Syllabi'!V152","v":0},null,{"$f":"'Program Outline+Syllabi'!L152","v":0}]
[]
[24,{"$f":"'Program Outline+Syllabi'!B157","v":0},null,{"$f":"'Program Outline+Syllabi'!F157","v":0},null,{"$f":"'Program Outline+Syllabi'!J157","v":0},null,null,null,null,null,{"$f":"'Program Outline+Syllabi'!T157","v":0},null,{"$f":"'Program Outline+Syllabi'!V157","v":0},null,{"$f":"'Program Outline+Syllabi'!L157","v":0}]
[]
[25,{"$f":"'Program Outline+Syllabi'!B162","v":0},null,{"$f":"'Program Outline+Syllabi'!F162","v":0},null,{"$f":"'Program Outline+Syllabi'!J162","v":0},null,null,null,null,null,{"$f":"'Program Outline+Syllabi'!T162","v":0},null,{"$f":"'Program Outline+Syllabi'!V162","v":0},null,{"$f":"'Program Outline+Syllabi'!L162","v":0}]
[]
[26,{"$f":"'Program Outline+Syllabi'!B167","v":0},null,{"$f":"'Program Outline+Syllabi'!F167","v":0},null,{"$f":"'Program Outline+Syllabi'!J167","v":0},null,null,null,null,null,{"$f":"'Program Outline+Syllabi'!T167","v":0},null,{"$f":"'Program Outline+Syllabi'!V167","v":0},null,{"$f":"'Program Outline+Syllabi'!L167","v":0}]
[]
[27,{"$f":"'Program Outline+Syllabi'!B172","v":0},null,{"$f":"'Program Outline+Syllabi'!F172","v":0},null,{"$f":"'Program Outline+Syllabi'!J172","v":0},null,null,null,null,null,{"$f":"'Program Outline+Syllabi'!T172","v":0},null,{"$f":"'Program Outline+Syllabi'!V172","v":0},null,{"$f":"'Program Outline+Syllabi'!L172","v":0}]
[]
[28,{"$f":"'Program Outline+Syllabi'!B177","v":0},null,{"$f":"'Program Outline+Syllabi'!F177","v":0},null,{"$f":"'Program Outline+Syllabi'!J177","v":0},null,null,null,null,null,{"$f":"'Program Outline+Syllabi'!T177","v":0},null,{"$f":"'Program Outline+Syllabi'!V177","v":0},null,{"$f":"'Program Outline+Syllabi'!L177","v":0}]
[]
[29,{"$f":"'Program Outline+Syllabi'!B182","v":0},null,{"$f":"'Program Outline+Syllabi'!F182","v":0},null,{"$f":"'Program Outline+Syllabi'!J182","v":0},null,null,null,null,null,{"$f":"'Program Outline+Syllabi'!T182","v":0},null,{"$f":"'Program Outline+Syllabi'!V182","v":0},null,{"$f":"'Program Outline+Syllabi'!L182","v":0}]
[]
[30,{"$f":"'Program Outline+Syllabi'!B187","v":0},null,{"$f":"'Program Outline+Syllabi'!F187","v":0},null,{"$f":"'Program Outline+Syllabi'!J187","v":0},null,null,null,null,null,{"$f":"'Program Outline+Syllabi'!T187","v":0},null,{"$f":"'Program Outline+Syllabi'!V187","v":0},null,{"$f":"'Program Outline+Syllabi'!L187","v":0}]
[]
[31,{"$f":"'Program Outline+Syllabi'!B192","v":0},null,{"$f":"'Program Outline+Syllabi'!F192","v":0},null,{"$f":"'Program Outline+Syllabi'!J192","v":0},null,null,null,null,null,{"$f":"'Program Outline+Syllabi'!T192","v":0},null,{"$f":"'Program Outline+Syllabi'!V192","v":0},null,{"$f":"'Program Outline+Syllabi'!L192","v":0}]
[]
[32,{"$f":"'Program Outline+Syllabi'!B197","v":0},null,{"$f":"'Program Outline+Syllabi'!F197","v":0},null,{"$f":"'Program Outline+Syllabi'!J197","v":0},null,null,null,null,null,{"$f":"'Program Outline+Syllabi'!T197","v":0},null,{"$f":"'Program Outline+Syllabi'!V197","v":0},null,{"$f":"'Program Outline+Syllabi'!L197","v":0}]
[]
[33,{"$f":"'Program Outline+Syllabi'!B202","v":0},null,{"$f":"'Program Outline+Syllabi'!F202","v":0},null,{"$f":"'Program Outline+Syllabi'!J202","v":0},null,null,null,null,null,{"$f":"'Program Outline+Syllabi'!T202","v":0},null,{"$f":"'Program Outline+Syllabi'!V202","v":0},null,{"$f":"'Program Outline+Syllabi'!L202","v":0}]
[]
[34,{"$f":"'Program Outline+Syllabi'!B207","v":0},null,{"$f":"'Program Outline+Syllabi'!F207","v":0},null,{"$f":"'Program Outline+Syllabi'!J207","v":0},null,null,null,null,null,{"$f":"'Program Outline+Syllabi'!T207","v":0},null,{"$f":"'Program Outline+Syllabi'!V207","v":0},null,{"$f":"'Program Outline+Syllabi'!L207","v":0}]
[]
[35,{"$f":"'Program Outline+Syllabi'!B212","v":0},null,{"$f":"'Program Outline+Syllabi'!F212","v":0},null,{"$f":"'Program Outline+Syllabi'!J212","v":0},null,null,null,null,null,{"$f":"'Program Outline+Syllabi'!T212","v":0},null,{"$f":"'Program Outline+Syllabi'!V212","v":0},null,{"$f":"'Program Outline+Syllabi'!L212","v":0}]
[]
[36,{"$f":"'Program Outline+Syllabi'!B217","v":0},null,{"$f":"'Program Outline+Syllabi'!F217","v":0},null,{"$f":"'Program Outline+Syllabi'!J217","v":0},null,null,null,null,null,{"$f":"'Program Outline+Syllabi'!T217","v":0},null,{"$f":"'Program Outline+Syllabi'!V217","v":0},null,{"$f":"'Program Outline+Syllabi'!L217","v":0}]
[]
[37,{"$f":"'Program Outline+Syllabi'!B222","v":0},null,{"$f":"'Program Outline+Syllabi'!F222","v":0},null,{"$f":"'Program Outline+Syllabi'!J222","v":0},null,null,null,null,null,{"$f":"'Program Outline+Syllabi'!T222","v":0},null,{"$f":"'Program Outline+Syllabi'!V222","v":0},null,{"$f":"'Program Outline+Syllabi'!L222","v":0}]
[]
[38,{"$f":"'Program Outline+Syllabi'!B227","v":0},null,{"$f":"'Program Outline+Syllabi'!F227","v":0},null,{"$f":"'Program Outline+Syllabi'!J227","v":0},null,null,null,null,null,{"$f":"'Program Outline+Syllabi'!T227","v":0},null,{"$f":"'Program Outline+Syllabi'!V227","v":0},null,{"$f":"'Program Outline+Syllabi'!L227","v":0}]
[]
[39,{"$f":"'Program Outline+Syllabi'!B232","v":0},null,{"$f":"'Program Outline+Syllabi'!F232","v":0},null,{"$f":"'Program Outline+Syllabi'!J232","v":0},null,null,null,null,null,{"$f":"'Program Outline+Syllabi'!T232","v":0},null,{"$f":"'Program Outline+Syllabi'!V232","v":0},null,{"$f":"'Program Outline+Syllabi'!L232","v":0}]
[]
[40,{"$f":"'Program Outline+Syllabi'!B237","v":0},null,{"$f":"'Program Outline+Syllabi'!F237","v":0},null,{"$f":"'Program Outline+Syllabi'!J237","v":0},null,null,null,null,null,{"$f":"'Program Outline+Syllabi'!T237","v":0},null,{"$f":"'Program Outline+Syllabi'!V237","v":0},null,{"$f":"'Program Outline+Syllabi'!L237","v":0}]
[]
[41,{"$f":"'Program Outline+Syllabi'!B242","v":0},null,{"$f":"'Program Outline+Syllabi'!F242","v":0},null,{"$f":"'Program Outline+Syllabi'!J242","v":0},null,null,null,null,null,{"$f":"'Program Outline+Syllabi'!T242","v":0},null,{"$f":"'Program Outline+Syllabi'!V242","v":0},null,{"$f":"'Program Outline+Syllabi'!L242","v":0}]
[]
[42,{"$f":"'Program Outline+Syllabi'!B247","v":0},null,{"$f":"'Program Outline+Syllabi'!F247","v":0},null,{"$f":"'Program Outline+Syllabi'!J247","v":0},null,null,null,null,null,{"$f":"'Program Outline+Syllabi'!T247","v":0},null,{"$f":"'Program Outline+Syllabi'!V247","v":0},null,{"$f":"'Program Outline+Syllabi'!L247","v":0}]
[]
[43,{"$f":"'Program Outline+Syllabi'!B252","v":0},null,{"$f":"'Program Outline+Syllabi'!F252","v":0},null,{"$f":"'Program Outline+Syllabi'!J252","v":0},null,null,null,null,null,{"$f":"'Program Outline+Syllabi'!T252","v":0},null,{"$f":"'Program Outline+Syllabi'!V252","v":0},null,{"$f":"'Program Outline+Syllabi'!L252","v":0}]
[]
[44,{"$f":"'Program Outline+Syllabi'!B257","v":0},null,{"$f":"'Program Outline+Syllabi'!F257","v":0},null,{"$f":"'Program Outline+Syllabi'!J257","v":0},null,null,null,null,null,{"$f":"'Program Outline+Syllabi'!T257","v":0},null,{"$f":"'Program Outline+Syllabi'!V257","v":0},null,{"$f":"'Program Outline+Syllabi'!L257","v":0}]
[]
[45,{"$f":"'Program Outline+Syllabi'!B262","v":0},null,{"$f":"'Program Outline+Syllabi'!F262","v":0},null,{"$f":"'Program Outline+Syllabi'!J262","v":0},null,null,null,null,null,{"$f":"'Program Outline+Syllabi'!T262","v":0},null,{"$f":"'Program Outline+Syllabi'!V262","v":0},null,{"$f":"'Program Outline+Syllabi'!L262","v":0}]
[]
[46,{"$f":"'Program Outline+Syllabi'!B267","v":0},null,{"$f":"'Program Outline+Syllabi'!F267","v":0},null,{"$f":"'Program Outline+Syllabi'!J267","v":0},null,null,null,null,null,{"$f":"'Program Outline+Syllabi'!T267","v":0},null,{"$f":"'Program Outline+Syllabi'!V267","v":0},null,{"$f":"'Program Outline+Syllabi'!L267","v":0}]
[]
[47,{"$f":"'Program Outline+Syllabi'!B272","v":0},null,{"$f":"'Program Outline+Syllabi'!F272","v":0},null,{"$f":"'Program Outline+Syllabi'!J272","v":0},null,null,null,null,null,{"$f":"'Program Outline+Syllabi'!T272","v":0},null,{"$f":"'Program Outline+Syllabi'!V272","v":0},null,{"$f":"'Program Outline+Syllabi'!L272","v":0}]
[]
[48,{"$f":"'Program Outline+Syllabi'!B277","v":0},null,{"$f":"'Program Outline+Syllabi'!F277","v":0},null,{"$f":"'Program Outline+Syllabi'!J277","v":0},null,null,null,null,null,{"$f":"'Program Outline+Syllabi'!T277","v":0},null,{"$f":"'Program Outline+Syllabi'!V277","v":0},null,{"$f":"'Program Outline+Syllabi'!L277","v":0}]
[]
[49,{"$f":"'Program Outline+Syllabi'!B282","v":0},null,{"$f":"'Program Outline+Syllabi'!F282","v":0},null,{"$f":"'Program Outline+Syllabi'!J282","v":0},null,null,null,null,null,{"$f":"'Program Outline+Syllabi'!T282","v":0},null,{"$f":"'Program Outline+Syllabi'!V282","v":0},null,{"$f":"'Program Outline+Syllabi'!L282","v":0}]
[]
[50,{"$f":"'Program Outline+Syllabi'!B287","v":0},null,{"$f":"'Program Outline+Syllabi'!F287","v":0},null,{"$f":"'Program Outline+Syllabi'!J287","v":0},null,null,null,null,null,{"$f":"'Program Outline+Syllabi'!T287","v":0},null,{"$f":"'Program Outline+Syllabi'!V287","v":0},null,{"$f":"'Program Outline+Syllabi'!L287","v":0}]
[]
[null,null,null,null,null,null,null,null,null,null,null,"Semester",null,"Quarter",null,"Clock",null,"Specialized Instruction",null,"General Education",null,"Specialized Instruction",null,"General Education"]
[null,null,null,null,null,null,null,null,null,null,null,"Credits",null,"Credits",null,"Hour",null,"Credits",null,"Credits",null,"Clock Hours",null,"Clock Hours"]
[null,null,null,null,null,null,null,null,null,null,null,"Total",null,"Total",null,"Total",null,"Total",null,"Total",null,"Total",null,"Total"]
[null,null,null,null,null,null,null,null,null,null,null,{"$f":"SUM(L23:L121)","v":0},null,{"$f":"SUM(N23:N121)","v":0},null,{"$f":"SUM(P23:P121)","v":0},null,{"$f":"SUM(R23:R121)","v":0},null,{"$f":"SUM(T23:T121)","v":0},null,{"$f":"SUM(V23:V121)","v":0},null,{"$f":"SUM(X23:X121)","v":0}]
[null,null,null,null,null,null,null,null,null,null,null,"A specialized associate degree must require the satisfactory completion of a minimum of 60 semester credit hours, \na minimum of 90 quarter credit hours, \nor a minimum of 1,500 clock hours. ",null,null,null,null,null,"must be 70-80%",null,"must be 20-30%",null,"must be 70-80%",null,"must be 20-30%"]
[null,null,null,null,null,null,null,null,null,null,null,null,null,null,null,null,null,{"$f":"R126/(R126+T126)","v":{"$error":"#DIV/0!"}},null,{"$f":"T126/(T126+R126)","v":{"$error":"#DIV/0!"}},null,{"$f":"V126/(V126+X126)","v":{"$error":"#DIV/0!"}},null,{"$f":"X126/(X126+V126)","v":{"$error":"#DIV/0!"}}]
["Program Director for this program:"]
[]
[]
[]
["Program Director's Education:"]
[null,null,null,null,null,null,null,"Award Received and Field of Study",null,null,null,"Dates Attended"]
[null,"Institution Attended",null,null,null,null,null,"(Examples: BS-Computer Science or ",null,null,null,"Month/Year",null,"Month/Year"]
[null,"School name, city, & state",null,null,null,"Graduated",null,"Diploma-Carpentry)",null,null,null,"From",null,"To"]
[]
["College:"]
[]
["College:"]
[]
["Other:"]
[]
["Other:"]
[]
["High School:"]
[]
["Program Director's Program-Specific Teaching and/or Work Experience (list chronologically starting with the most recent employer, including this school):"]
[]
[null,null,null,null,null,null,null,null,null,null,null,null,null,null,"Dates of Employment"]
[null,"Employer",null,null,null,null,null,"Subject(s) Taught or Position Held",null,null,null,null,null,"Month/Year",null,"Month/Year"]
[null,"Employer name, city, & state",null,null,null,null,null,"(include supervisory experience)",null,null,null,null,null,"From",null,"To"]
[]
[]
[]
[]
[]
[]
[]
[]
[]
[]
[]
[]
[]
[]
[]
[]
[]
["Explain the nature of community relations and the use of community resources and facilities."]
[]
[]
[]
[]
[]
[]
[]
[]
[]
["Does the school have an Program Advisory Board?"]
[]
[]
[]
[null," If yes, please provide a listing of the members."]
[]
[]
[]
[]
[]
[]
[]
[]
[]
[null," If yes, please describe the role and responsibilities for this program."]
[]
[]
[]
[]
[]
[]
[]
[]
[]
["Is there licensure or certification required for this occupation?"]
[]
[]
[]
[null,"If yes, provide the name of the license."]
[]
[]
[]
[null,"Licensing authority:"]
[]
[]
[]
["END OF PROGRAM - PROCEED TO NEXT WORKSHEET TAB"]

{"sheet":"PDE3003 Instructor List","index":6,"n_rows":66,"n_cols":5,"rows_kept":66,"cut":false,"hidden":false,"merged":[]}
["Standard Diploma to AST/ASB Application"]
["Pennsylvania Department of Education"]
[]
["List an instructor for each course.  The list MUST show an instructor for EVERY course in the program."]
["If multiple instructors teach the course (including both on-ground and distance ed), please enter the name of the primary instructor only."]
[]
["If some instructors that will be required for this program have not been hired yet, indicate TBA as the instructor's name and provide a staffing plan "]
["or a job description and resumes of qualified applicants on the PDE279 Instructors Qualifications worksheet."]
[]
[null,"Instructor names entered here will automatically ",null,"Course names will populate automatically from the PDE3004 Program Outline worksheet.  "]
[null,"populate to the PDE279 Instructor Qualification worksheet.",null,"It is not possible to enter the course names directly on this form."]
[]
[null,"Name of Instructor",null,"Course taught in the Proposed Program"]
[]
[1,null,{"$f":"INDEX($B$15:$B$44,MATCH(0,INDEX(COUNTIF($C$1:$C14,$B$15:$B$44),0,0),0))","v":0},{"$f":"'Program Outline+Syllabi'!J42","v":0},1]
[2,null,{"$f":"INDEX($B$15:$B$44,MATCH(0,INDEX(COUNTIF($C$1:$C15,$B$15:$B$44),0,0),0))","v":{"$error":"#N/A"}},{"$f":"'Program Outline+Syllabi'!J47","v":0},2]
[3,null,{"$f":"INDEX($B$15:$B$44,MATCH(0,INDEX(COUNTIF($C$1:$C16,$B$15:$B$44),0,0),0))","v":{"$error":"#N/A"}},{"$f":"'Program Outline+Syllabi'!J52","v":0},3]
[4,null,{"$f":"INDEX($B$15:$B$44,MATCH(0,INDEX(COUNTIF($C$1:$C17,$B$15:$B$44),0,0),0))","v":{"$error":"#N/A"}},{"$f":"'Program Outline+Syllabi'!J57","v":0},4]
[5,null,{"$f":"INDEX($B$15:$B$44,MATCH(0,INDEX(COUNTIF($C$1:$C18,$B$15:$B$44),0,0),0))","v":{"$error":"#N/A"}},{"$f":"'Program Outline+Syllabi'!J62","v":0},5]
[6,null,{"$f":"INDEX($B$15:$B$44,MATCH(0,INDEX(COUNTIF($C$1:$C19,$B$15:$B$44),0,0),0))","v":{"$error":"#N/A"}},{"$f":"'Program Outline+Syllabi'!J67","v":0},6]
[7,null,{"$f":"INDEX($B$15:$B$44,MATCH(0,INDEX(COUNTIF($C$1:$C20,$B$15:$B$44),0,0),0))","v":{"$error":"#N/A"}},{"$f":"'Program Outline+Syllabi'!J72","v":0},7]
[8,null,{"$f":"INDEX($B$15:$B$44,MATCH(0,INDEX(COUNTIF($C$1:$C21,$B$15:$B$44),0,0),0))","v":{"$error":"#N/A"}},{"$f":"'Program Outline+Syllabi'!J77","v":0},8]
[9,null,{"$f":"INDEX($B$15:$B$44,MATCH(0,INDEX(COUNTIF($C$1:$C22,$B$15:$B$44),0,0),0))","v":{"$error":"#N/A"}},{"$f":"'Program Outline+Syllabi'!J82","v":0},9]
[10,null,{"$f":"INDEX($B$15:$B$44,MATCH(0,INDEX(COUNTIF($C$1:$C23,$B$15:$B$44),0,0),0))","v":{"$error":"#N/A"}},{"$f":"'Program Outline+Syllabi'!J87","v":0},10]
[11,null,{"$f":"INDEX($B$15:$B$44,MATCH(0,INDEX(COUNTIF($C$1:$C24,$B$15:$B$44),0,0),0))","v":{"$error":"#N/A"}},{"$f":"'Program Outline+Syllabi'!J92","v":0},11]
[12,null,{"$f":"INDEX($B$15:$B$44,MATCH(0,INDEX(COUNTIF($C$1:$C25,$B$15:$B$44),0,0),0))","v":{"$error":"#N/A"}},{"$f":"'Program Outline+Syllabi'!J97","v":0},12]
[13,null,{"$f":"INDEX($B$15:$B$44,MATCH(0,INDEX(COUNTIF($C$1:$C26,$B$15:$B$44),0,0),0))","v":{"$error":"#N/A"}},{"$f":"'Program Outline+Syllabi'!J102","v":0},13]
[14,null,{"$f":"INDEX($B$15:$B$44,MATCH(0,INDEX(COUNTIF($C$1:$C27,$B$15:$B$44),0,0),0))","v":{"$error":"#N/A"}},{"$f":"'Program Outline+Syllabi'!J107","v":0},14]
[15,null,{"$f":"INDEX($B$15:$B$44,MATCH(0,INDEX(COUNTIF($C$1:$C28,$B$15:$B$44),0,0),0))","v":{"$error":"#N/A"}},{"$f":"'Program Outline+Syllabi'!J112","v":0},15]
[16,null,{"$f":"INDEX($B$15:$B$44,MATCH(0,INDEX(COUNTIF($C$1:$C29,$B$15:$B$44),0,0),0))","v":{"$error":"#N/A"}},{"$f":"'Program Outline+Syllabi'!J117","v":0},16]
[17,null,{"$f":"INDEX($B$15:$B$44,MATCH(0,INDEX(COUNTIF($C$1:$C30,$B$15:$B$44),0,0),0))","v":{"$error":"#N/A"}},{"$f":"'Program Outline+Syllabi'!J122","v":0},17]
[18,null,{"$f":"INDEX($B$15:$B$44,MATCH(0,INDEX(COUNTIF($C$1:$C31,$B$15:$B$44),0,0),0))","v":{"$error":"#N/A"}},{"$f":"'Program Outline+Syllabi'!J127","v":0},18]
[19,null,{"$f":"INDEX($B$15:$B$44,MATCH(0,INDEX(COUNTIF($C$1:$C32,$B$15:$B$44),0,0),0))","v":{"$error":"#N/A"}},{"$f":"'Program Outline+Syllabi'!J132","v":0},19]
[20,null,{"$f":"INDEX($B$15:$B$44,MATCH(0,INDEX(COUNTIF($C$1:$C33,$B$15:$B$44),0,0),0))","v":{"$error":"#N/A"}},{"$f":"'Program Outline+Syllabi'!J137","v":0},20]
[21,null,{"$f":"INDEX($B$15:$B$44,MATCH(0,INDEX(COUNTIF($C$1:$C34,$B$15:$B$44),0,0),0))","v":{"$error":"#N/A"}},{"$f":"'Program Outline+Syllabi'!J142","v":0},21]
[22,null,{"$f":"INDEX($B$15:$B$44,MATCH(0,INDEX(COUNTIF($C$1:$C35,$B$15:$B$44),0,0),0))","v":{"$error":"#N/A"}},{"$f":"'Program Outline+Syllabi'!J147","v":0},22]
[23,null,{"$f":"INDEX($B$15:$B$44,MATCH(0,INDEX(COUNTIF($C$1:$C36,$B$15:$B$44),0,0),0))","v":{"$error":"#N/A"}},{"$f":"'Program Outline+Syllabi'!J152","v":0},23]
[24,null,{"$f":"INDEX($B$15:$B$44,MATCH(0,INDEX(COUNTIF($C$1:$C37,$B$15:$B$44),0,0),0))","v":{"$error":"#N/A"}},{"$f":"'Program Outline+Syllabi'!J157","v":0},24]
[25,null,{"$f":"INDEX($B$15:$B$44,MATCH(0,INDEX(COUNTIF($C$1:$C38,$B$15:$B$44),0,0),0))","v":{"$error":"#N/A"}},{"$f":"'Program Outline+Syllabi'!J162","v":0},25]
[26,null,{"$f":"INDEX($B$15:$B$44,MATCH(0,INDEX(COUNTIF($C$1:$C39,$B$15:$B$44),0,0),0))","v":{"$error":"#N/A"}},{"$f":"'Program Outline+Syllabi'!J167","v":0},26]
[27,null,{"$f":"INDEX($B$15:$B$44,MATCH(0,INDEX(COUNTIF($C$1:$C40,$B$15:$B$44),0,0),0))","v":{"$error":"#N/A"}},{"$f":"'Program Outline+Syllabi'!J172","v":0},27]
[28,null,{"$f":"INDEX($B$15:$B$44,MATCH(0,INDEX(COUNTIF($C$1:$C41,$B$15:$B$44),0,0),0))","v":{"$error":"#N/A"}},{"$f":"'Program Outline+Syllabi'!J177","v":0},28]
[29,null,{"$f":"INDEX($B$15:$B$44,MATCH(0,INDEX(COUNTIF($C$1:$C42,$B$15:$B$44),0,0),0))","v":{"$error":"#N/A"}},{"$f":"'Program Outline+Syllabi'!J182","v":0},29]
[30,null,{"$f":"INDEX($B$15:$B$44,MATCH(0,INDEX(COUNTIF($C$1:$C43,$B$15:$B$44),0,0),0))","v":{"$error":"#N/A"}},{"$f":"'Program Outline+Syllabi'!J187","v":0},30]
[31,null,{"$f":"INDEX($B$15:$B$44,MATCH(0,INDEX(COUNTIF($C$1:$C44,$B$15:$B$44),0,0),0))","v":{"$error":"#N/A"}},{"$f":"'Program Outline+Syllabi'!J192","v":0},31]
[32,null,{"$f":"INDEX($B$15:$B$44,MATCH(0,INDEX(COUNTIF($C$1:$C45,$B$15:$B$44),0,0),0))","v":{"$error":"#N/A"}},{"$f":"'Program Outline+Syllabi'!J197","v":0},32]
[33,null,{"$f":"INDEX($B$15:$B$44,MATCH(0,INDEX(COUNTIF($C$1:$C46,$B$15:$B$44),0,0),0))","v":{"$error":"#N/A"}},{"$f":"'Program Outline+Syllabi'!J202","v":0},33]
[34,null,{"$f":"INDEX($B$15:$B$44,MATCH(0,INDEX(COUNTIF($C$1:$C47,$B$15:$B$44),0,0),0))","v":{"$error":"#N/A"}},{"$f":"'Program Outline+Syllabi'!J207","v":0},34]
[35,null,{"$f":"INDEX($B$15:$B$44,MATCH(0,INDEX(COUNTIF($C$1:$C48,$B$15:$B$44),0,0),0))","v":{"$error":"#N/A"}},{"$f":"'Program Outline+Syllabi'!J212","v":0},35]
[36,null,{"$f":"INDEX($B$15:$B$44,MATCH(0,INDEX(COUNTIF($C$1:$C49,$B$15:$B$44),0,0),0))","v":{"$error":"#N/A"}},{"$f":"'Program Outline+Syllabi'!J217","v":0},36]
[37,null,{"$f":"INDEX($B$15:$B$44,MATCH(0,INDEX(COUNTIF($C$1:$C50,$B$15:$B$44),0,0),0))","v":{"$error":"#N/A"}},{"$f":"'Program Outline+Syllabi'!J222","v":0},37]
[38,null,{"$f":"INDEX($B$15:$B$44,MATCH(0,INDEX(COUNTIF($C$1:$C51,$B$15:$B$44),0,0),0))","v":{"$error":"#N/A"}},{"$f":"'Program Outline+Syllabi'!J227","v":0},38]
[39,null,{"$f":"INDEX($B$15:$B$44,MATCH(0,INDEX(COUNTIF($C$1:$C52,$B$15:$B$44),0,0),0))","v":{"$error":"#N/A"}},{"$f":"'Program Outline+Syllabi'!J232","v":0},39]
[40,null,{"$f":"INDEX($B$15:$B$44,MATCH(0,INDEX(COUNTIF($C$1:$C53,$B$15:$B$44),0,0),0))","v":{"$error":"#N/A"}},{"$f":"'Program Outline+Syllabi'!J237","v":0},40]
[41,null,{"$f":"INDEX($B$15:$B$44,MATCH(0,INDEX(COUNTIF($C$1:$C54,$B$15:$B$44),0,0),0))","v":{"$error":"#N/A"}},{"$f":"'Program Outline+Syllabi'!J242","v":0},41]
[42,null,{"$f":"INDEX($B$15:$B$44,MATCH(0,INDEX(COUNTIF($C$1:$C55,$B$15:$B$44),0,0),0))","v":{"$error":"#N/A"}},{"$f":"'Program Outline+Syllabi'!J247","v":0},42]
[43,null,{"$f":"INDEX($B$15:$B$44,MATCH(0,INDEX(COUNTIF($C$1:$C56,$B$15:$B$44),0,0),0))","v":{"$error":"#N/A"}},{"$f":"'Program Outline+Syllabi'!J252","v":0},43]
[44,null,{"$f":"INDEX($B$15:$B$44,MATCH(0,INDEX(COUNTIF($C$1:$C57,$B$15:$B$44),0,0),0))","v":{"$error":"#N/A"}},{"$f":"'Program Outline+Syllabi'!J257","v":0},44]
[45,null,{"$f":"INDEX($B$15:$B$44,MATCH(0,INDEX(COUNTIF($C$1:$C58,$B$15:$B$44),0,0),0))","v":{"$error":"#N/A"}},{"$f":"'Program Outline+Syllabi'!J262","v":0},45]
[46,null,{"$f":"INDEX($B$15:$B$44,MATCH(0,INDEX(COUNTIF($C$1:$C59,$B$15:$B$44),0,0),0))","v":{"$error":"#N/A"}},{"$f":"'Program Outline+Syllabi'!J267","v":0},46]
[47,null,{"$f":"INDEX($B$15:$B$44,MATCH(0,INDEX(COUNTIF($C$1:$C60,$B$15:$B$44),0,0),0))","v":{"$error":"#N/A"}},{"$f":"'Program Outline+Syllabi'!J272","v":0},47]
[48,null,{"$f":"INDEX($B$15:$B$44,MATCH(0,INDEX(COUNTIF($C$1:$C61,$B$15:$B$44),0,0),0))","v":{"$error":"#N/A"}},{"$f":"'Program Outline+Syllabi'!J277","v":0},48]
[49,null,{"$f":"INDEX($B$15:$B$44,MATCH(0,INDEX(COUNTIF($C$1:$C62,$B$15:$B$44),0,0),0))","v":{"$error":"#N/A"}},{"$f":"'Program Outline+Syllabi'!J282","v":0},49]
[50,null,{"$f":"INDEX($B$15:$B$44,MATCH(0,INDEX(COUNTIF($C$1:$C63,$B$15:$B$44),0,0),0))","v":{"$error":"#N/A"}},{"$f":"'Program Outline+Syllabi'!J287","v":0},50]
[]
["END OF PDE3003 INSTRUCTOR LIST - PROCEED TO NEXT WORKSHEET TAB"]

{"sheet":"PDE279 Instructor Qualification","index":7,"n_rows":5659,"n_cols":18,"rows_kept":5659,"cut":false,"hidden":false,"merged":[[23,3,23,10],[30,1,30,4],[30,6,30,11],[32,1,32,4],[32,6,32,11],[34,1,34,4],[34,6,34,11],[6,16,6,25],[12,3,12,10],[12,17,12,20],[14,3,14,10],[16,3,16,10],[18,3,18,10],[50,1,50,4],[50,6,50,11],[52,1,52,4],[52,6,52,11],[59,1,59,4],[59,8,59,11],[44,1,44,4],[44,6,44,11],[46,1,46,4],[46,6,46,11],[48,1,48,4],[48,6,48,11],[36,1,36,4],[36,6,36,11],[38,1,38,4],[38,6,38,11],[40,17,40,20],[42,1,42,4],[42,6,42,11],[79,1,79,4],[79,6,79,9],[81,1,81,4],[81,6,81,9],[83,1,83,4],[83,6,83,9],[67,1,67,4],[67,8,67,11],[69,17,69,20],[75,1,75,4],[75,6,75,9],[77,1,77,4],[77,6,77,9],[61,1,61,4],[61,8,61,11],[63,1,63,4],[63,8,63,11],[65,1,65,4],[65,8,65,11],[126,3,126,10],[131,3,131,10],[138,1,138,4],[138,6,138,11],[140,1,140,4],[140,6,140,11],[91,17,91,20],[114,1,118,14],[120,3,120,10],[120,17,120,20],[122,3,122,10],[124,3,124,10],[85,1,85,4],[85,6,85,9],[87,1,87,4],[87,6,87,9],[89,1,89,4],[89,6,89,9],[156,1,156,4],[156,6,156,11],[158,1,158,4],[158,6,158,11],[160,1,160,4],[160,6,160,11],[148,17,148,20],[150,1,150,4],[150,6,150,11],[152,1,152,4],[152,6,152,11],[154,1,154,4],[154,6,154,11],[142,1,142,4],[142,6,142,11],[144,1,144,4],[144,6,144,11],[146,1,146,4],[146,6,146,11],[185,1,185,4],[185,6,185,9],[187,1,187,4],[187,6,187,9],[189,1,189,4],[189,6,189,9],[173,1,173,4],[173,8,173,11],[175,1,175,4],[175,8,175,11],[177,17,177,20],[183,1,183,4],[183,6,183,9],[167,1,167,4],[167,8,167,11],[169,1,169,4],[169,8,169,11],[171,1,171,4],[171,8,171,11],[230,3,230,10],[232,3,232,10],[234,3,234,10],[239,3,239,10],[246,1,246,4],[246,6,246,11],[197,1,197,4],[197,6,197,9],[199,17,199,20],[222,1,226,14],[228,3,228,10],[228,17,228,20],[191,1,191,4],[191,6,191,9],[193,1,193,4],[193,6,193,9],[195,1,195,4],[195,6,195,9],[262,1,262,4],[262,6,262,11],[264,1,264,4],[264,6,264,11],[266,1,266,4],[266,6,266,11],[254,1,254,4],[254,6,254,11],[256,17,256,20],[258,1,258,4],[258,6,258,11],[260,1,260,4],[260,6,260,11],[248,1,248,4],[248,6,248,11],[250,1,250,4],[250,6,250,11],[252,1,252,4],[252,6,252,11],[285,17,285,20],[291,1,291,4],[291,6,291,9],[293,1,293,4],[293,6,293,9],[295,1,295,4],[295,6,295,9],[279,1,279,4],[279,8,279,11],[281,1,281,4],[281,8,281,11],[283,1,283,4],[283,8,283,11],[268,1,268,4],[268,6,268,11],[275,1,275,4],[275,8,275,11],[277,1,277,4],[277,8,277,11],[336,3,336,10],[336,17,336,20],[338,3,338,10],[340,3,340,10],[342,3,342,10],[347,3,347,10],[303,1,303,4],[303,6,303,9],[305,1,305,4],[305,6,305,9],[307,17,307,20],[330,1,334,14],[297,1,297,4],[297,6,297,9],[299,1,299,4],[299,6,299,9],[301,1,301,4],[301,6,301,9],[368,1,368,4],[368,6,368,11],[370,1,370,4],[370,6,370,11],[372,1,372,4],[372,6,372,11],[360,1,360,4],[360,6,360,11],[362,1,362,4],[362,6,362,11],[364,17,364,20],[366,1,366,4],[366,6,366,11],[354,1,354,4],[354,6,354,11],[356,1,356,4],[356,6,356,11],[358,1,358,4],[358,6,358,11],[391,1,391,4],[391,8,391,11],[393,17,393,20],[399,1,399,4],[399,6,399,9],[401,1,401,4],[401,6,401,9],[385,1,385,4],[385,8,385,11],[387,1,387,4],[387,8,387,11],[389,1,389,4],[389,8,389,11],[374,1,374,4],[374,6,374,11],[376,1,376,4],[376,6,376,11],[383,1,383,4],[383,8,383,11],[415,17,415,20],[438,1,442,14],[444,3,444,10],[444,17,444,20],[446,3,446,10],[448,3,448,10],[409,1,409,4],[409,6,409,9],[411,1,411,4],[411,6,411,9],[413,1,413,4],[413,6,413,9],[403,1,403,4],[403,6,403,9],[405,1,405,4],[405,6,405,9],[407,1,407,4],[407,6,407,9],[472,17,472,20],[474,1,474,4],[474,6,474,11],[476,1,476,4],[476,6,476,11],[478,1,478,4],[478,6,478,11],[466,1,466,4],[466,6,466,11],[468,1,468,4],[468,6,468,11],[470,1,470,4],[470,6,470,11],[450,3,450,10],[455,3,455,10],[462,1,462,4],[462,6,462,11],[464,1,464,4],[464,6,464,11],[497,1,497,4],[497,8,497,11],[499,1,499,4],[499,8,499,11],[501,17,501,20],[507,1,507,4],[507,6,507,9],[491,1,491,4],[491,8,491,11],[493,1,493,4],[493,8,493,11],[495,1,495,4],[495,8,495,11],[480,1,480,4],[480,6,480,11],[482,1,482,4],[482,6,482,11],[484,1,484,4],[484,6,484,11],[521,1,521,4],[521,6,521,9],[523,17,523,20],[546,1,550,14],[552,3,552,10],[552,17,552,20],[515,1,515,4],[515,6,515,9],[517,1,517,4],[517,6,517,9],[519,1,519,4],[519,6,519,9],[509,1,509,4],[509,6,509,9],[511,1,511,4],[511,6,511,9],[513,1,513,4],[513,6,513,9],[578,1,578,4],[578,6,578,11],[580,17,580,20],[582,1,582,4],[582,6,582,11],[584,1,584,4],[584,6,584,11],[572,1,572,4],[572,6,572,11],[574,1,574,4],[574,6,574,11],[576,1,576,4],[576,6,576,11],[554,3,554,10],[556,3,556,10],[558,3,558,10],[563,3,563,10],[570,1,570,4],[570,6,570,11],[603,1,603,4],[603,8,603,11],[605,1,605,4],[605,8,605,11],[607,1,607,4],[607,8,607,11],[592,1,592,4],[592,6,592,11],[599,1,599,4],[599,8,599,11],[601,1,601,4],[601,8,601,11],[586,1,586,4],[586,6,586,11],[588,1,588,4],[588,6,588,11],[590,1,590,4],[590,6,590,11],[627,1,627,4],[627,6,627,9],[629,1,629,4],[629,6,629,9],[631,17,631,20],[654,1,658,14],[621,1,621,4],[621,6,621,9],[623,1,623,4],[623,6,623,9],[625,1,625,4],[625,6,625,9],[609,17,609,20],[615,1,615,4],[615,6,615,9],[617,1,617,4],[617,6,617,9],[619,1,619,4],[619,6,619,9],[684,1,684,4],[684,6,684,11],[686,1,686,4],[686,6,686,11],[688,17,688,20],[690,1,690,4],[690,6,690,11],[678,1,678,4],[678,6,678,11],[680,1,680,4],[680,6,680,11],[682,1,682,4],[682,6,682,11],[660,3,660,10],[660,17,660,20],[662,3,662,10],[664,3,664,10],[666,3,666,10],[671,3,671,10],[709,1,709,4],[709,8,709,11],[711,1,711,4],[711,8,711,11],[713,1,713,4],[713,8,713,11],[698,1,698,4],[698,6,698,11],[700,1,700,4],[700,6,700,11],[707,1,707,4],[707,8,707,11],[692,1,692,4],[692,6,692,11],[694,1,694,4],[694,6,694,11],[696,1,696,4],[696,6,696,11],[733,1,733,4],[733,6,733,9],[735,1,735,4],[735,6,735,9],[737,1,737,4],[737,6,737,9],[727,1,727,4],[727,6,727,9],[729,1,729,4],[729,6,729,9],[731,1,731,4],[731,6,731,9],[715,1,715,4],[715,8,715,11],[717,17,717,20],[723,1,723,4],[723,6,723,9],[725,1,725,4],[725,6,725,9],[790,1,790,4],[790,6,790,11],[792,1,792,4],[792,6,792,11],[794,1,794,4],[794,6,794,11],[774,3,774,10],[779,3,779,10],[786,1,786,4],[786,6,786,11],[788,1,788,4],[788,6,788,11],[739,17,739,20],[762,1,766,14],[768,3,768,10],[768,17,768,20],[770,3,770,10],[772,3,772,10],[815,1,815,4],[815,8,815,11],[817,1,817,4],[817,8,817,11],[819,1,819,4],[819,8,819,11],[804,1,804,4],[804,6,804,11],[806,1,806,4],[806,6,806,11],[808,1,808,4],[808,6,808,11],[796,17,796,20],[798,1,798,4],[798,6,798,11],[800,1,800,4],[800,6,800,11],[802,1,802,4],[802,6,802,11],[839,1,839,4],[839,6,839,9],[841,1,841,4],[841,6,841,9],[843,1,843,4],[843,6,843,9],[833,1,833,4],[833,6,833,9],[835,1,835,4],[835,6,835,9],[837,1,837,4],[837,6,837,9],[821,1,821,4],[821,8,821,11],[823,1,823,4],[823,8,823,11],[825,17,825,20],[831,1,831,4],[831,6,831,9],[896,1,896,4],[896,6,896,11],[898,1,898,4],[898,6,898,11],[900,1,900,4],[900,6,900,11],[878,3,878,10],[880,3,880,10],[882,3,882,10],[887,3,887,10],[894,1,894,4],[894,6,894,11],[845,1,845,4],[845,6,845,9],[847,17,847,20],[870,1,874,14],[876,3,876,10],[876,17,876,20],[916,1,916,4],[916,6,916,11],[923,1,923,4],[923,8,923,11],[925,1,925,4],[925,8,925,11],[910,1,910,4],[910,6,910,11],[912,1,912,4],[912,6,912,11],[914,1,914,4],[914,6,914,11],[902,1,902,4],[902,6,902,11],[904,17,904,20],[906,1,906,4],[906,6,906,11],[908,1,908,4],[908,6,908,11],[945,1,945,4],[945,6,945,9],[947,1,947,4],[947,6,947,9],[949,1,949,4],[949,6,949,9],[933,17,933,20],[939,1,939,4],[939,6,939,9],[941,1,941,4],[941,6,941,9],[943,1,943,4],[943,6,943,9],[927,1,927,4],[927,8,927,11],[929,1,929,4],[929,8,929,11],[931,1,931,4],[931,8,931,11],[1003,1,1003,4],[1003,6,1003,11],[1005,1,1005,4],[1005,6,1005,11],[1007,1,1007,4],[1007,6,1007,11],[985,3,985,10],[985,17,985,20],[987,3,987,10],[989,3,989,10],[991,3,991,10],[996,3,996,10],[951,1,951,4],[951,6,951,9],[953,1,953,4],[953,6,953,9],[955,17,955,20],[978,1,982,14],[1023,1,1023,4],[1023,6,1023,11],[1025,1,1025,4],[1025,6,1025,11],[1032,1,1032,4],[1032,8,1032,11],[1017,1,1017,4],[1017,6,1017,11],[1019,1,1019,4],[1019,6,1019,11],[1021,1,1021,4],[1021,6,1021,11],[1009,1,1009,4],[1009,6,1009,11],[1011,1,1011,4],[1011,6,1011,11],[1013,17,1013,20],[1015,1,1015,4],[1015,6,1015,11],[1052,1,1052,4],[1052,6,1052,9],[1054,1,1054,4],[1054,6,1054,9],[1056,1,1056,4],[1056,6,1056,9],[1040,1,1040,4],[1040,8,1040,11],[1042,17,1042,20],[1048,1,1048,4],[1048,6,1048,9],[1050,1,1050,4],[1050,6,1050,9],[1034,1,1034,4],[1034,8,1034,11],[1036,1,1036,4],[1036,8,1036,11],[1038,1,1038,4],[1038,8,1038,11],[1100,3,1100,10],[1105,3,1105,10],[1112,1,1112,4],[1112,6,1112,11],[1114,1,1114,4],[1114,6,1114,11],[1064,17,1064,20],[1087,1,1091,14],[1094,3,1094,10],[1094,17,1094,20],[1096,3,1096,10],[1098,3,1098,10],[1058,1,1058,4],[1058,6,1058,9],[1060,1,1060,4],[1060,6,1060,9],[1062,1,1062,4],[1062,6,1062,9],[1130,1,1130,4],[1130,6,1130,11],[1132,1,1132,4],[1132,6,1132,11],[1134,1,1134,4],[1134,6,1134,11],[1122,17,1122,20],[1124,1,1124,4],[1124,6,1124,11],[1126,1,1126,4],[1126,6,1126,11],[1128,1,1128,4],[1128,6,1128,11],[1116,1,1116,4],[1116,6,1116,11],[1118,1,1118,4],[1118,6,1118,11],[1120,1,1120,4],[1120,6,1120,11],[1159,1,1159,4],[1159,6,1159,9],[1161,1,1161,4],[1161,6,1161,9],[1163,1,1163,4],[1163,6,1163,9],[1147,1,1147,4],[1147,8,1147,11],[1149,1,1149,4],[1149,8,1149,11],[1151,17,1151,20],[1157,1,1157,4],[1157,6,1157,9],[1141,1,1141,4],[1141,8,1141,11],[1143,1,1143,4],[1143,8,1143,11],[1145,1,1145,4],[1145,8,1145,11],[1204,3,1204,10],[1206,3,1206,10],[1208,3,1208,10],[1213,3,1213,10],[1220,1,1220,4],[1220,6,1220,11],[1171,1,1171,4],[1171,6,1171,9],[1173,17,1173,20],[1196,1,1200,14],[1202,3,1202,10],[1202,17,1202,20],[1165,1,1165,4],[1165,6,1165,9],[1167,1,1167,4],[1167,6,1167,9],[1169,1,1169,4],[1169,6,1169,9],[1236,1,1236,4],[1236,6,1236,11],[1238,1,1238,4],[1238,6,1238,11],[1240,1,1240,4],[1240,6,1240,11],[1228,1,1228,4],[1228,6,1228,11],[1230,17,1230,20],[1232,1,1232,4],[1232,6,1232,11],[1234,1,1234,4],[1234,6,1234,11],[1222,1,1222,4],[1222,6,1222,11],[1224,1,1224,4],[1224,6,1224,11],[1226,1,1226,4],[1226,6,1226,11],[1259,17,1259,20],[1265,1,1265,4],[1265,6,1265,9],[1267,1,1267,4],[1267,6,1267,9],[1269,1,1269,4],[1269,6,1269,9],[1253,1,1253,4],[1253,8,1253,11],[1255,1,1255,4],[1255,8,1255,11],[1257,1,1257,4],[1257,8,1257,11],[1242,1,1242,4],[1242,6,1242,11],[1249,1,1249,4],[1249,8,1249,11],[1251,1,1251,4],[1251,8,1251,11],[1310,3,1310,10],[1310,17,1310,20],[1312,3,1312,10],[1314,3,1314,10],[1316,3,1316,10],[1321,3,1321,10],[1277,1,1277,4],[1277,6,1277,9],[1279,1,1279,4],[1279,6,1279,9],[1281,17,1281,20],[1304,1,1308,14],[1271,1,1271,4],[1271,6,1271,9],[1273,1,1273,4],[1273,6,1273,9],[1275,1,1275,4],[1275,6,1275,9],[1342,1,1342,4],[1342,6,1342,11],[1344,1,1344,4],[1344,6,1344,11],[1346,1,1346,4],[1346,6,1346,11],[1334,1,1334,4],[1334,6,1334,11],[1336,1,1336,4],[1336,6,1336,11],[1338,17,1338,20],[1340,1,1340,4],[1340,6,1340,11],[1328,1,1328,4],[1328,6,1328,11],[1330,1,1330,4],[1330,6,1330,11],[1332,1,1332,4],[1332,6,1332,11],[1365,1,1365,4],[1365,8,1365,11],[1367,17,1367,20],[1373,1,1373,4],[1373,6,1373,9],[1375,1,1375,4],[1375,6,1375,9],[1359,1,1359,4],[1359,8,1359,11],[1361,1,1361,4],[1361,8,1361,11],[1363,1,1363,4],[1363,8,1363,11],[1348,1,1348,4],[1348,6,1348,11],[1350,1,1350,4],[1350,6,1350,11],[1357,1,1357,4],[1357,8,1357,11],[1389,17,1389,20],[1412,1,1416,14],[1418,3,1418,10],[1418,17,1418,20],[1420,3,1420,10],[1422,3,1422,10],[1383,1,1383,4],[1383,6,1383,9],[1385,1,1385,4],[1385,6,1385,9],[1387,1,1387,4],[1387,6,1387,9],[1377,1,1377,4],[1377,6,1377,9],[1379,1,1379,4],[1379,6,1379,9],[1381,1,1381,4],[1381,6,1381,9],[1446,17,1446,20],[1448,1,1448,4],[1448,6,1448,11],[1450,1,1450,4],[1450,6,1450,11],[1452,1,1452,4],[1452,6,1452,11],[1440,1,1440,4],[1440,6,1440,11],[1442,1,1442,4],[1442,6,1442,11],[1444,1,1444,4],[1444,6,1444,11],[1424,3,1424,10],[1429,3,1429,10],[1436,1,1436,4],[1436,6,1436,11],[1438,1,1438,4],[1438,6,1438,11],[1471,1,1471,4],[1471,8,1471,11],[1473,1,1473,4],[1473,8,1473,11],[1475,17,1475,20],[1481,1,1481,4],[1481,6,1481,9],[1465,1,1465,4],[1465,8,1465,11],[1467,1,1467,4],[1467,8,1467,11],[1469,1,1469,4],[1469,8,1469,11],[1454,1,1454,4],[1454,6,1454,11],[1456,1,1456,4],[1456,6,1456,11],[1458,1,1458,4],[1458,6,1458,11],[1495,1,1495,4],[1495,6,1495,9],[1497,17,1497,20],[1520,1,1524,14],[1526,3,1526,10],[1526,17,1526,20],[1489,1,1489,4],[1489,6,1489,9],[1491,1,1491,4],[1491,6,1491,9],[1493,1,1493,4],[1493,6,1493,9],[1483,1,1483,4],[1483,6,1483,9],[1485,1,1485,4],[1485,6,1485,9],[1487,1,1487,4],[1487,6,1487,9],[1552,1,1552,4],[1552,6,1552,11],[1554,17,1554,20],[1556,1,1556,4],[1556,6,1556,11],[1558,1,1558,4],[1558,6,1558,11],[1546,1,1546,4],[1546,6,1546,11],[1548,1,1548,4],[1548,6,1548,11],[1550,1,1550,4],[1550,6,1550,11],[1528,3,1528,10],[1530,3,1530,10],[1532,3,1532,10],[1537,3,1537,10],[1544,1,1544,4],[1544,6,1544,11],[1577,1,1577,4],[1577,8,1577,11],[1579,1,1579,4],[1579,8,1579,11],[1581,1,1581,4],[1581,8,1581,11],[1566,1,1566,4],[1566,6,1566,11],[1573,1,1573,4],[1573,8,1573,11],[1575,1,1575,4],[1575,8,1575,11],[1560,1,1560,4],[1560,6,1560,11],[1562,1,1562,4],[1562,6,1562,11],[1564,1,1564,4],[1564,6,1564,11],[1601,1,1601,4],[1601,6,1601,9],[1603,1,1603,4],[1603,6,1603,9],[1605,17,1605,20],[1628,1,1632,14],[1595,1,1595,4],[1595,6,1595,9],[1597,1,1597,4],[1597,6,1597,9],[1599,1,1599,4],[1599,6,1599,9],[1583,17,1583,20],[1589,1,1589,4],[1589,6,1589,9],[1591,1,1591,4],[1591,6,1591,9],[1593,1,1593,4],[1593,6,1593,9],[1658,1,1658,4],[1658,6,1658,11],[1660,1,1660,4],[1660,6,1660,11],[1662,17,1662,20],[1664,1,1664,4],[1664,6,1664,11],[1652,1,1652,4],[1652,6,1652,11],[1654,1,1654,4],[1654,6,1654,11],[1656,1,1656,4],[1656,6,1656,11],[1634,3,1634,10],[1634,17,1634,20],[1636,3,1636,10],[1638,3,1638,10],[1640,3,1640,10],[1645,3,1645,10],[1683,1,1683,4],[1683,8,1683,11],[1685,1,1685,4],[1685,8,1685,11],[1687,1,1687,4],[1687,8,1687,11],[1672,1,1672,4],[1672,6,1672,11],[1674,1,1674,4],[1674,6,1674,11],[1681,1,1681,4],[1681,8,1681,11],[1666,1,1666,4],[1666,6,1666,11],[1668,1,1668,4],[1668,6,1668,11],[1670,1,1670,4],[1670,6,1670,11],[1707,1,1707,4],[1707,6,1707,9],[1709,1,1709,4],[1709,6,1709,9],[1711,1,1711,4],[1711,6,1711,9],[1701,1,1701,4],[1701,6,1701,9],[1703,1,1703,4],[1703,6,1703,9],[1705,1,1705,4],[1705,6,1705,9],[1689,1,1689,4],[1689,8,1689,11],[1691,17,1691,20],[1697,1,1697,4],[1697,6,1697,9],[1699,1,1699,4],[1699,6,1699,9],[1764,1,1764,4],[1764,6,1764,11],[1766,1,1766,4],[1766,6,1766,11],[1768,1,1768,4],[1768,6,1768,11],[1748,3,1748,10],[1753,3,1753,10],[1760,1,1760,4],[1760,6,1760,11],[1762,1,1762,4],[1762,6,1762,11],[1713,17,1713,20],[1736,1,1740,14],[1742,3,1742,10],[1742,17,1742,20],[1744,3,1744,10],[1746,3,1746,10],[1789,1,1789,4],[1789,8,1789,11],[1791,1,1791,4],[1791,8,1791,11],[1793,1,1793,4],[1793,8,1793,11],[1778,1,1778,4],[1778,6,1778,11],[1780,1,1780,4],[1780,6,1780,11],[1782,1,1782,4],[1782,6,1782,11],[1770,17,1770,20],[1772,1,1772,4],[1772,6,1772,11],[1774,1,1774,4],[1774,6,1774,11],[1776,1,1776,4],[1776,6,1776,11],[1813,1,1813,4],[1813,6,1813,9],[1815,1,1815,4],[1815,6,1815,9],[1817,1,1817,4],[1817,6,1817,9],[1807,1,1807,4],[1807,6,1807,9],[1809,1,1809,4],[1809,6,1809,9],[1811,1,1811,4],[1811,6,1811,9],[1795,1,1795,4],[1795,8,1795,11],[1797,1,1797,4],[1797,8,1797,11],[1799,17,1799,20],[1805,1,1805,4],[1805,6,1805,9],[1870,1,1870,4],[1870,6,1870,11],[1872,1,1872,4],[1872,6,1872,11],[1874,1,1874,4],[1874,6,1874,11],[1852,3,1852,10],[1854,3,1854,10],[1856,3,1856,10],[1861,3,1861,10],[1868,1,1868,4],[1868,6,1868,11],[1819,1,1819,4],[1819,6,1819,9],[1821,17,1821,20],[1844,1,1848,14],[1850,3,1850,10]],"merged_total":2933,"flags":["merged_cut"]}
["Standard Diploma to AST/ASB Application"]
["Pennsylvania Department of Education"]
[]
["Make any necessary adjustments to instructor names on the PDE3003 Instructor List worksheet."]
[]
["If some instructors that will be required for this program have not been hired yet, indicate TBA as the instructor's name on the PDE3003 "]
["Instructor List worksheet and provide a staffing plan or a job description and resumes of qualified applicants* at the bottom of this worksheet.  ",null,null,null,null,null,null,null,null,null,null,null,null,null,null,null,"*Staffing plans should be entered in the section starting with row 5421 at the bottom of this worksheet."]
["Please note that the board may require additional information."]
[]
["NOTE:  It is not necessary to complete a PDE-279 for every instructor that might teach courses in the program in the future.  "]
["It is only necessary to complete a PDE-279 form with the program application for the main instructor who will teach the course initially."]
[]
[null,null,"Qualifications of Instructor:",{"$f":"'PDE3003 Instructor List'!C15","v":0},null,null,null,null,null,null,null,null,null,null,null,null,null,{"$f":"D13","v":0}]
[]
[null,null,"Instructor's Home Address:"]
[]
[]
[]
[]
[null,null,null,"City, State and Zip Code"]
[]
[null,null,null,null,"Is this instructor currently employed by the school? "]
[]
[null,null,"School Director:"]
[null,null,null,"By placing my name above, I certify that, to the best of my knowledge, the information reported herein is true and accurate."]
[]
[null,null,"Date of Certification:"]
[]
["Names of courses to be taught by this instructor in the proposed new program:"]
[]
["Courses:"]
[]
[]
[]
[]
[]
[]
[]
[]
[]
["Courses taught by this instructor in OTHER programs at the school:",null,null,null,null,null,null,null,null,null,null,null,null,null,null,null,null,{"$f":"D13","v":0}]
[]
["Courses:"]
[]
[]
[]
[]
[]
[]
[]
[]
[]
[]
[]
["Instructor's Education:"]
[null,null,null,null,null,null,null,null,"Award Received and Field of Study",null,null,null,null,"Dates Attended"]
[null,"Institution Attended",null,null,null,null,null,null,"(Examples: BS-Computer Science or ",null,null,null,null,"Month/Year",null,"Month/Year"]
[null,"School name, city, & state",null,null,null,null,"Graduated",null,"Diploma-Carpentry)",null,null,null,null,"From",null,"To"]
[]
["College:"]
[]
["College:"]
[]
["Other:"]
[]
["Other:"]
[]
["High School:"]
[]
["Instructor's Program-Specific Teaching and/or Work Experience (list chronologically starting with the most recent employer, including this school):",null,null,null,null,null,null,null,null,null,null,null,null,null,null,null,null,{"$f":"D13","v":0}]
[]
[null,null,null,null,null,null,null,null,null,null,null,"Dates of Employment"]
[null,"Employer",null,null,null,null,"Subject(s) Taught or Position Held",null,null,null,null,"Month/Year",null,"Month/Year"]
[null,"Employer name, city, & state",null,null,null,null,"(include supervisory experience)",null,null,null,null,"From",null,"To"]
[]
[]
[]
[]
[]
[]
[]
[]
[]
[]
[]
[]
[]
[]
[]
[]
[]
["Instructor's Verification of Qualifications:",null,null,null,null,null,null,null,null,null,null,null,null,null,null,null,null,{"$f":"D13","v":0}]
[]
[null," The Board's regulations require instructors to have at least one of the qualifications listed below (22 Pa. Code Section 73.104).  "]
[null," Check all of the qualifications that apply, then attach the documentation needed for at least one of the qualifications you checked."]
[]
[null,"Baccalaureate degree or higher in the intended field of instruction.  (Embed copy of degree and/or transcript.)"]
[]
[null,"Two or more years' work experience in the intended field of instruction which is acceptable to the School Director."]
[null,"(Embed resume and/or letters from former employers describing the nature of the instructor's former duties.)"]
[]
[null,"Two or more years' teaching experience in the intended field of instruction.  "]
[null,"(Embed resume and/or letters from former employers that verify teaching experience and qualification in the field.)"]
[]
[null,"Journeyman's license relevant to the intended field of instruction.  (Embed copy of license.)"]
[]
[null,"Demonstrated competency in the intended field of instruction. "]
[null,"(Embed documentation of competency.  Such documentation would include a copy of a widely accepted license or certificate such "]
[null,"as a CDL, a MCSE certificate, or a \"Train the Trainer\" certificate.)"]
[]
[null,"State certification as a Vocational Educator in the intended field of instruction.  (Embed copy of certificate.)"]
[]
[null,"Embed evidence to verify the instructor's qualifications:"]
[]
[]
[]
[]
[]
[]
[]
[null,null,"Qualifications of Instructor:",{"$f":"'PDE3003 Instructor List'!C16","v":{"$error":"#N/A"}},null,null,null,null,null,null,null,null,null,null,null,null,null,{"$f":"D121","v":{"$error":"#N/A"}}]
[]
[null,null,"Instructor's Home Address:"]
[]
[]
[]
[]
[null,null,null,"City, State and Zip Code"]
[]
[null,null,null,null,"Is this instructor currently employed by the school? "]
[]
[null,null,"School Director:"]
[null,null,null,"By placing my name above, I certify that, to the best of my knowledge, the information reported herein is true and accurate."]
[]
[null,null,"Date of Certification:"]
[]
["Names of courses to be taught by this instructor in the proposed new program:"]
[]
["Courses:"]
[]
[]
[]
[]
[]
[]
[]
[]
[]
["Courses taught by this instructor in OTHER programs at the school:",null,null,null,null,null,null,null,null,null,null,null,null,null,null,null,null,{"$f":"D121","v":{"$error":"#N/A"}}]
[]
["Courses:"]
[]
[]
[]
[]
[]
[]
[]
[]
[]
[]
[]
["Instructor's Education:"]
[null,null,null,null,null,null,null,null,"Award Received and Field of Study",null,null,null,null,"Dates Attended"]
[null,"Institution Attended",null,null,null,null,null,null,"(Examples: BS-Computer Science or ",null,null,null,null,"Month/Year",null,"Month/Year"]
[null,"School name, city, & state",null,null,null,null,"Graduated",null,"Diploma-Carpentry or Certificate-Word Processing)",null,null,null,null,"From",null,"To"]
[]
["College:"]
[]
["College:"]
[]
["Other:"]
[]
["Other:"]
[]
["High School:"]
[]
["Instructor's Program-Specific Teaching and/or Work Experience (list chronologically starting with the most recent employer, including this school):",null,null,null,null,null,null,null,null,null,null,null,null,null,null,null,null,{"$f":"D121","v":{"$error":"#N/A"}}]
[]
[null,null,null,null,null,null,null,null,null,null,null,"Dates of Employment"]
[null,"Employer",null,null,null,null,"Subject(s) Taught or Position Held",null,null,null,null,"Month/Year",null,"Month/Year"]
[null,"Employer name, city, & state",null,null,null,null,"(include supervisory experience)",null,null,null,null,"From",null,"To"]
[]
[]
[]
[]
[]
[]
[]
[]
[]
[]
[]
[]
[]
[]
[]
[]
[]
["Instructor's Verification of Qualifications:",null,null,null,null,null,null,null,null,null,null,null,null,null,null,null,null,{"$f":"D121","v":{"$error":"#N/A"}}]
[]
[null," The Board's regulations require instructors to have at least one of the qualifications listed below (22 Pa. Code Section 73.104).  "]
[null," Check all of the qualifications that apply, then attach the documentation needed for at least one of the qualifications you checked."]
[]
[null,"Baccalaureate degree or higher in the intended field of instruction.  (Embed copy of degree and/or transcript.)"]
[]
[null,"Two or more years' work experience in the intended field of instruction which is acceptable to the School Director."]
[null,"(Embed resume and/or letters from former employers describing the nature of the instructor's former duties.)"]
[]
[null,"Two or more years' teaching experience in the intended field of instruction.  "]
[null,"(Embed resume and/or letters from former employers that verify teaching experience and qualification in the field.)"]
[]
[null,"Journeyman's license relevant to the intended field of instruction.  (Embed copy of license.)"]
[]
[null,"Demonstrated competency in the intended field of instruction. "]
[null,"(Embed documentation of competency.  Such documentation would include a copy of a widely accepted license or certificate such "]
[null,"as a CDL, a MCSE certificate, or a \"Train the Trainer\" certificate.)"]
[]
[null,"State certification as a Vocational Educator in the intended field of instruction.  (Embed copy of certificate.)"]
[]
[null,"Embed evidence to verify the instructor's qualifications:"]
[]
[]
[]
[]
[]
[]
[]
[null,null,"Qualifications of Instructor:",{"$f":"'PDE3003 Instructor List'!C17","v":{"$error":"#N/A"}},null,null,null,null,null,null,null,null,null,null,null,null,null,{"$f":"D229","v":{"$error":"#N/A"}}]
[]
[null,null,"Instructor's Home Address:"]
[]
[]
[]
[]
[null,null,null,"City, State and Zip Code"]
[]
[null,null,null,null,"Is this instructor currently employed by the school? "]
[]
[null,null,"School Director:"]
[null,null,null,"By placing my name above, I certify that, to the best of my knowledge, the information reported herein is true and accurate."]
[]
[null,null,"Date of Certification:"]
[]
["Names of courses to be taught by this instructor in the proposed new program:"]
[]
["Courses:"]
[]
[]
[]
[]
[]
[]
[]
[]
[]
["Courses taught by this instructor in OTHER programs at the school:",null,null,null,null,null,null,null,null,null,null,null,null,null,null,null,null,{"$f":"D229","v":{"$error":"#N/A"}}]
[]
["Courses:"]
[]
[]
[]
[]
[]
[]
[]
[]
[]
[]
[]
["Instructor's Education:"]
[null,null,null,null,null,null,null,null,"Award Received and Field of Study",null,null,null,null,"Dates Attended"]
[null,"Institution Attended",null,null,null,null,null,null,"(Examples: BS-Computer Science or ",null,null,null,null,"Month/Year",null,"Month/Year"]
[null,"School name, city, & state",null,null,null,null,"Graduated",null,"Diploma-Carpentry or Certificate-Word Processing)",null,null,null,null,"From",null,"To"]
[]
["College:"]
[]
["College:"]
[]
["Other:"]
[]
["Other:"]
[]
["High School:"]
[]
["Instructor's Program-Specific Teaching and/or Work Experience (list chronologically starting with the most recent employer, including this school):",null,null,null,null,null,null,null,null,null,null,null,null,null,null,null,null,{"$f":"D229","v":{"$error":"#N/A"}}]
[]
[null,null,null,null,null,null,null,null,null,null,null,"Dates of Employment"]
[null,"Employer",null,null,null,null,"Subject(s) Taught or Position Held",null,null,null,null,"Month/Year",null,"Month/Year"]
[null,"Employer name, city, & state",null,null,null,null,"(include supervisory experience)",null,null,null,null,"From",null,"To"]
[]
[]
[]
[]
[]
[]
[]
[]
[]
[]
[]
[]
[]
[]
[]
[]
[]
["Instructor's Verification of Qualifications:",null,null,null,null,null,null,null,null,null,null,null,null,null,null,null,null,{"$f":"D229","v":{"$error":"#N/A"}}]
[]
[null," The Board's regulations require instructors to have at least one of the qualifications listed below (22 Pa. Code Section 73.104).  "]
[null," Check all of the qualifications that apply, then attach the documentation needed for at least one of the qualifications you checked."]
[]
[null,"Baccalaureate degree or higher in the intended field of instruction.  (Embed copy of degree and/or transcript.)"]
[]
[null,"Two or more years' work experience in the intended field of instruction which is acceptable to the School Director."]
[null,"(Embed resume and/or letters from former employers describing the nature of the instructor's former duties.)"]
[]
[null,"Two or more years' teaching experience in the intended field of instruction.  "]
[null,"(Embed resume and/or letters from former employers that verify teaching experience and qualification in the field.)"]
[]
[null,"Journeyman's license relevant to the intended field of instruction.  (Embed copy of license.)"]
[]
[null,"Demonstrated competency in the intended field of instruction. "]
[null,"(Embed documentation of competency.  Such documentation would include a copy of a widely accepted license or certificate such "]
[null,"as a CDL, a MCSE certificate, or a \"Train the Trainer\" certificate.)"]
[]
[null,"State certification as a Vocational Educator in the intended field of instruction.  (Embed copy of certificate.)"]
[]
[null,"Embed evidence to verify the instructor's qualifications:"]
[]
[]
[]
[]
[]
[]
[]
[null,null,"Qualifications of Instructor:",{"$f":"'PDE3003 Instructor List'!C18","v":{"$error":"#N/A"}},null,null,null,null,null,null,null,null,null,null,null,null,null,{"$f":"D337","v":{"$error":"#N/A"}}]
[]
[null,null,"Instructor's Home Address:"]
[]
[]
[]
[]
[null,null,null,"City, State and Zip Code"]
[]
[null,null,null,null,"Is this instructor currently employed by the school?"]
[]
[null,null,"School Director:"]
[null,null,null,"By placing my name above, I certify that, to the best of my knowledge, the information reported herein is true and accurate."]
[]
[null,null,"Date of Certification:"]
[]
["Names of courses to be taught by this instructor in the proposed new program:"]
[]
["Courses:"]
[]
[]
[]
[]
[]
[]
[]
[]
[]
["Courses taught by this instructor in OTHER programs at the school:",null,null,null,null,null,null,null,null,null,null,null,null,null,null,null,null,{"$f":"D337","v":{"$error":"#N/A"}}]
[]
["Courses:"]
[]
[]
[]
[]
[]
[]
[]
[]
[]
[]
[]
["Instructor's Education:"]
[null,null,null,null,null,null,null,null,"Award Received and Field of Study",null,null,null,null,"Dates Attended"]
[null,"Institution Attended",null,null,null,null,null,null,"(Examples: BS-Computer Science or ",null,null,null,null,"Month/Year",null,"Month/Year"]
[null,"School name, city, & state",null,null,null,null,"Graduated",null,"Diploma-Carpentry or Certificate-Word Processing)",null,null,null,null,"From",null,"To"]
[]
["College:"]
[]
["College:"]
[]
["Other:"]
[]
["Other:"]
[]
["High School:"]
[]
["Instructor's Program-Specific Teaching and/or Work Experience (list chronologically starting with the most recent employer, including this school):",null,null,null,null,null,null,null,null,null,null,null,null,null,null,null,null,{"$f":"D337","v":{"$error":"#N/A"}}]
[]
[null,null,null,null,null,null,null,null,null,null,null,"Dates of Employment"]
[null,"Employer",null,null,null,null,"Subject(s) Taught or Position Held",null,null,null,null,"Month/Year",null,"Month/Year"]
[null,"Employer name, city, & state",null,null,null,null,"(include supervisory experience)",null,null,null,null,"From",null,"To"]
[]
[]
[]
[]
[]
[]
[]
[]
[]
[]
[]
[]
[]
[]
[]
[]
[]
["Instructor's Verification of Qualifications:",null,null,null,null,null,null,null,null,null,null,null,null,null,null,null,null,{"$f":"D337","v":{"$error":"#N/A"}}]
[]
[null," The Board's regulations require instructors to have at least one of the qualifications listed below (22 Pa. Code Section 73.104).  "]
[null," Check all of the qualifications that apply, then attach the documentation needed for at least one of the qualifications you checked."]
[]
[null,"Baccalaureate degree or higher in the intended field of instruction.  (Embed copy of degree and/or transcript.)"]
[]
[null,"Two or more years' work experience in the intended field of instruction which is acceptable to the School Director."]
[null,"(Embed resume and/or letters from former employers describing the nature of the instructor's former duties.)"]
[]
[null,"Two or more years' teaching experience in the intended field of instruction.  "]
[null,"(Embed resume and/or letters from former employers that verify teaching experience and qualification in the field.)"]
[]
[null,"Journeyman's license relevant to the intended field of instruction.  (Embed copy of license.)"]
[]
[null,"Demonstrated competency in the intended field of instruction. "]
[null,"(Embed documentation of competency.  Such documentation would include a copy of a widely accepted license or certificate such "]
[null,"as a CDL, a MCSE certificate, or a \"Train the Trainer\" certificate.)"]
[]
[null,"State certification as a Vocational Educator in the intended field of instruction.  (Embed copy of certificate.)"]
[]
[null,"Embed evidence to verify the instructor's qualifications:"]
[]
[]
[]
[]
[]
[]
[]
[null,null,"Qualifications of Instructor:",{"$f":"'PDE3003 Instructor List'!C19","v":{"$error":"#N/A"}},null,null,null,null,null,null,null,null,null,null,null,null,null,{"$f":"D445","v":{"$error":"#N/A"}}]
[]
[null,null,"Instructor's Home Address:"]
[]
[]
[]
[]
[null,null,null,"City, State and Zip Code"]
[]
[null,null,null,null,"Is this instructor currently employed by the school?"]
[]
[null,null,"School Director:"]
[null,null,null,"By placing my name above, I certify that, to the best of my knowledge, the information reported herein is true and accurate."]
[]
[null,null,"Date of Certification:"]
[]
["Names of courses to be taught by this instructor in the proposed new program:"]
[]
["Courses:"]
[]
[]
[]
[]
[]
[]
[]
[]
[]
["Courses taught by this instructor in OTHER programs at the school:",null,null,null,null,null,null,null,null,null,null,null,null,null,null,null,null,{"$f":"D445","v":{"$error":"#N/A"}}]
[]
["Courses:"]
[]
[]
[]
[]
[]
[]
[]
[]
[]
[]
[]
["Instructor's Education:"]
[null,null,null,null,null,null,null,null,"Award Received and Field of Study",null,null,null,null,"Dates Attended"]
[null,"Institution Attended",null,null,null,null,null,null,"(Examples: BS-Computer Science or ",null,null,null,null,"Month/Year",null,"Month/Year"]
[null,"School name, city, & state",null,null,null,null,"Graduated",null,"Diploma-Carpentry or Certificate-Word Processing)",null,null,null,null,"From",null,"To"]
[]
["College:"]
[]
["College:"]
[]
["Other:"]
[]
["Other:"]
[]
["High School:"]
[]
["Instructor's Program-Specific Teaching and/or Work Experience (list chronologically starting with the most recent employer, including this school):",null,null,null,null,null,null,null,null,null,null,null,null,null,null,null,null,{"$f":"D445","v":{"$error":"#N/A"}}]
[]
[null,null,null,null,null,null,null,null,null,null,null,"Dates of Employment"]
[null,"Employer",null,null,null,null,"Subject(s) Taught or Position Held",null,null,null,null,"Month/Year",null,"Month/Year"]
[null,"Employer name, city, & state",null,null,null,null,"(include supervisory experience)",null,null,null,null,"From",null,"To"]
[]
[]
[]
[]
[]
[]
[]
[]
[]
[]
[]
[]
[]
[]
[]
[]
[]
["Instructor's Verification of Qualifications:",null,null,null,null,null,null,null,null,null,null,null,null,null,null,null,null,{"$f":"D445","v":{"$error":"#N/A"}}]
[]
[null," The Board's regulations require instructors to have at least one of the qualifications listed below (22 Pa. Code Section 73.104).  "]
[null," Check all of the qualifications that apply, then attach the documentation needed for at least one of the qualifications you checked."]
[]
[null,"Baccalaureate degree or higher in the intended field of instruction.  (Embed copy of degree and/or transcript.)"]
[]
[null,"Two or more years' work experience in the intended field of instruction which is acceptable to the School Director."]
[null,"(Embed resume and/or letters from former employers describing the nature of the instructor's former duties.)"]
[]
[null,"Two or more years' teaching experience in the intended field of instruction.  "]
[null,"(Embed resume and/or letters from former employers that verify teaching experience and qualification in the field.)"]
[]
[null,"Journeyman's license relevant to the intended field of instruction.  (Embed copy of license.)"]
[]
[null,"Demonstrated competency in the intended field of instruction. "]
[null,"(Embed documentation of competency.  Such documentation would include a copy of a widely accepted license or certificate such "]
[null,"as a CDL, a MCSE certificate, or a \"Train the Trainer\" certificate.)"]
[]
[null,"State certification as a Vocational Educator in the intended field of instruction.  (Embed copy of certificate.)"]
[]
[null,"Embed evidence to verify the instructor's qualifications:"]
[]
[]
[]
[]
[]
[]
[]
[null,null,"Qualifications of Instructor:",{"$f":"'PDE3003 Instructor List'!C20","v":{"$error":"#N/A"}},null,null,null,null,null,null,null,null,null,null,null,null,null,{"$f":"D553","v":{"$error":"#N/A"}}]
[]
[null,null,"Instructor's Home Address:"]
[]
[]
[]
[]
[null,null,null,"City, State and Zip Code"]
[]
[null,null,null,null,"Is this instructor currently employed by the school? "]
[]
[null,null,"School Director:"]
[null,null,null,"By placing my name above, I certify that, to the best of my knowledge, the information reported herein is true and accurate."]
[]
[null,null,"Date of Certification:"]
[]
["Names of courses to be taught by this instructor in the proposed new program:"]
[]
["Courses:"]
[]
[]
[]
[]
[]
[]
[]
[]
[]
["Courses taught by this instructor in OTHER programs at the school:",null,null,null,null,null,null,null,null,null,null,null,null,null,null,null,null,{"$f":"D553","v":{"$error":"#N/A"}}]
[]
["Courses:"]
[]
[]
[]
[]
[]
[]
[]
[]
[]
[]
[]
["Instructor's Education:"]
[null,null,null,null,null,null,null,null,"Award Received and Field of Study",null,null,null,null,"Dates Attended"]
[null,"Institution Attended",null,null,null,null,null,null,"(Examples: BS-Computer Science or ",null,null,null,null,"Month/Year",null,"Month/Year"]
[null,"School name, city, & state",null,null,null,null,"Graduated",null,"Diploma-Carpentry or Certificate-Word Processing)",null,null,null,null,"From",null,"To"]
[]
["College:"]
[]
["College:"]
[]
["Other:"]
[]
["Other:"]
[]
["High School:"]
[]
["Instructor's Program-Specific Teaching and/or Work Experience (list chronologically starting with the most recent employer, including this school):",null,null,null,null,null,null,null,null,null,null,null,null,null,null,null,null,{"$f":"D553","v":{"$error":"#N/A"}}]
[]
[null,null,null,null,null,null,null,null,null,null,null,"Dates of Employment"]
[null,"Employer",null,null,null,null,"Subject(s) Taught or Position Held",null,null,null,null,"Month/Year",null,"Month/Year"]
[null,"Employer name, city, & state",null,null,null,null,"(include supervisory experience)",null,null,null,null,"From",null,"To"]
[]
[]
[]
[]
[]
[]
[]
[]
[]
[]
[]
[]
[]
[]
[]
[]
[]
["Instructor's Verification of Qualifications:",null,null,null,null,null,null,null,null,null,null,null,null,null,null,null,null,{"$f":"D553","v":{"$error":"#N/A"}}]
[]
[null," The Board's regulations require instructors to have at least one of the qualifications listed below (22 Pa. Code Section 73.104).  "]
[null," Check all of the qualifications that apply, then attach the documentation needed for at least one of the qualifications you checked."]
[]
[null,"Baccalaureate degree or higher in the intended field of instruction.  (Embed copy of degree and/or transcript.)"]
[]
[null,"Two or more years' work experience in the intended field of instruction which is acceptable to the School Director."]
[null,"(Embed resume and/or letters from former employers describing the nature of the instructor's former duties.)"]
[]
[null,"Two or more years' teaching experience in the intended field of instruction.  "]
[null,"(Embed resume and/or letters from former employers that verify teaching experience and qualification in the field.)"]
[]
[null,"Journeyman's license relevant to the intended field of instruction.  (Embed copy of license.)"]
[]
[null,"Demonstrated competency in the intended field of instruction. "]
[null,"(Embed documentation of competency.  Such documentation would include a copy of a widely accepted license or certificate such "]
[null,"as a CDL, a MCSE certificate, or a \"Train the Trainer\" certificate.)"]
[]
[null,"State certification as a Vocational Educator in the intended field of instruction.  (Embed copy of certificate.)"]
[]
[null,"Embed evidence to verify the instructor's qualifications:"]
[]
[]
[]
[]
[]
[]
[]
[null,null,"Qualifications of Instructor:",{"$f":"'PDE3003 Instructor List'!C21","v":{"$error":"#N/A"}},null,null,null,null,null,null,null,null,null,null,null,null,null,{"$f":"D661","v":{"$error":"#N/A"}}]
[]
[null,null,"Instructor's Home Address:"]
[]
[]
[]
[]
[null,null,null,"City, State and Zip Code"]
[]
[null,null,null,null,"Is this instructor currently employed by the school? "]
[]
[null,null,"School Director:"]
[null,null,null,"By placing my name above, I certify that, to the best of my knowledge, the information reported herein is true and accurate."]
[]
[null,null,"Date of Certification:"]
[]
["Names of courses to be taught by this instructor in the proposed new program:"]
[]
["Courses:"]
[]
[]
[]
[]
[]
[]
[]
[]
[]
["Courses taught by this instructor in OTHER programs at the school:",null,null,null,null,null,null,null,null,null,null,null,null,null,null,null,null,{"$f":"D661","v":{"$error":"#N/A"}}]
[]
["Courses:"]
[]
[]
[]
[]
[]
[]
[]
[]
[]
[]
[]
["Instructor's Education:"]
[null,null,null,null,null,null,null,null,"Award Received and Field of Study",null,null,null,null,"Dates Attended"]
[null,"Institution Attended",null,null,null,null,null,null,"(Examples: BS-Computer Science or ",null,null,null,null,"Month/Year",null,"Month/Year"]
[null,"School name, city, & state",null,null,null,null,"Graduated",null,"Diploma-Carpentry or Certificate-Word Processing)",null,null,null,null,"From",null,"To"]
[]
["College:"]
[]
["College:"]
[]
["Other:"]
[]
["Other:"]
[]
["High School:"]
[]
["Instructor's Program-Specific Teaching and/or Work Experience (list chronologically starting with the most recent employer, including this school):",null,null,null,null,null,null,null,null,null,null,null,null,null,null,null,null,{"$f":"D661","v":{"$error":"#N/A"}}]
[]
[null,null,null,null,null,null,null,null,null,null,null,"Dates of Employment"]
[null,"Employer",null,null,null,null,"Subject(s) Taught or Position Held",null,null,null,null,"Month/Year",null,"Month/Year"]
[null,"Employer name, city, & state",null,null,null,null,"(include supervisory experience)",null,null,null,null,"From",null,"To"]
[]
[]
[]
[]
[]
[]
[]
[]
[]
[]
[]
[]
[]
[]
[]
[]
[]
["Instructor's Verification of Qualifications:",null,null,null,null,null,null,null,null,null,null,null,null,null,null,null,null,{"$f":"D661","v":{"$error":"#N/A"}}]
[]
[null," The Board's regulations require instructors to have at least one of the qualifications listed below (22 Pa. Code Section 73.104).  "]
[null," Check all of the qualifications that apply, then attach the documentation needed for at least one of the qualifications you checked."]
[]
[null,"Baccalaureate degree or higher in the intended field of instruction.  (Embed copy of degree and/or transcript.)"]
[]
[null,"Two or more years' work experience in the intended field of instruction which is acceptable to the School Director."]
[null,"(Embed resume and/or letters from former employers describing the nature of the instructor's former duties.)"]
[]
[null,"Two or more years' teaching experience in the intended field of instruction.  "]
[null,"(Embed resume and/or letters from former employers that verify teaching experience and qualification in the field.)"]
[]
[null,"Journeyman's license relevant to the intended field of instruction.  (Embed copy of license.)"]
[]
[null,"Demonstrated competency in the intended field of instruction. "]
[null,"(Embed documentation of competency.  Such documentation would include a copy of a widely accepted license or certificate such "]
[null,"as a CDL, a MCSE certificate, or a \"Train the Trainer\" certificate.)"]
[]
[null,"State certification as a Vocational Educator in the intended field of instruction.  (Embed copy of certificate.)"]
[]
[null,"Embed evidence to verify the instructor's qualifications:"]
[]
[]
[]
[]
[]
[]
[]
[null,null,"Qualifications of Instructor:",{"$f":"'PDE3003 Instructor List'!C22","v":{"$error":"#N/A"}},null,null,null,null,null,null,null,null,null,null,null,null,null,{"$f":"D769","v":{"$error":"#N/A"}}]
[]
[null,null,"Instructor's Home Address:"]
[]
[]
[]
[]
[null,null,null,"City, State and Zip Code"]
[]
[null,null,null,null,"Is this instructor currently employed by the school? "]
[]
[null,null,"School Director:"]
[null,null,null,"By placing my name above, I certify that, to the best of my knowledge, the information reported herein is true and accurate."]
[]
[null,null,"Date of Certification:"]
[]
["Names of courses to be taught by this instructor in the proposed new program:"]
[]
["Courses:"]
[]
[]
[]
[]
[]
[]
[]
[]
[]
["Courses taught by this instructor in OTHER programs at the school:",null,null,null,null,null,null,null,null,null,null,null,null,null,null,null,null,{"$f":"D769","v":{"$error":"#N/A"}}]
[]
["Courses:"]
[]
[]
[]
[]
[]
[]
[]
[]
[]
[]
[]
["Instructor's Education:"]
[null,null,null,null,null,null,null,null,"Award Received and Field of Study",null,null,null,null,"Dates Attended"]
[null,"Institution Attended",null,null,null,null,null,null,"(Examples: BS-Computer Science or ",null,null,null,null,"Month/Year",null,"Month/Year"]
[null,"School name, city, & state",null,null,null,null,"Graduated",null,"Diploma-Carpentry or Certificate-Word Processing)",null,null,null,null,"From",null,"To"]
[]
["College:"]
[]
["College:"]
[]
["Other:"]
[]
["Other:"]
[]
["High School:"]
[]
["Instructor's Program-Specific Teaching and/or Work Experience (list chronologically starting with the most recent employer, including this school):",null,null,null,null,null,null,null,null,null,null,null,null,null,null,null,null,{"$f":"D769","v":{"$error":"#N/A"}}]
[]
[null,null,null,null,null,null,null,null,null,null,null,"Dates of Employment"]
[null,"Employer",null,null,null,null,"Subject(s) Taught or Position Held",null,null,null,null,"Month/Year",null,"Month/Year"]
[null,"Employer name, city, & state",null,null,null,null,"(include supervisory experience)",null,null,null,null,"From",null,"To"]
[]
[]
[]
[]
[]
[]
[]
[]
[]
[]
[]
[]
[]
[]
[]
[]
[]
["Instructor's Verification of Qualifications:",null,null,null,null,null,null,null,null,null,null,null,null,null,null,null,null,{"$f":"D769","v":{"$error":"#N/A"}}]
[]
[null," The Board's regulations require instructors to have at least one of the qualifications listed below (22 Pa. Code Section 73.104).  "]
[null," Check all of the qualifications that apply, then attach the documentation needed for at least one of the qualifications you checked."]
[]
[null,"Baccalaureate degree or higher in the intended field of instruction.  (Embed copy of degree and/or transcript.)"]
[]
[null,"Two or more years' work experience in the intended field of instruction which is acceptable to the School Director."]
[null,"(Embed resume and/or letters from former employers describing the nature of the instructor's former duties.)"]
[]
[null,"Two or more years' teaching experience in the intended field of instruction.  "]
[null,"(Embed resume and/or letters from former employers that verify teaching experience and qualification in the field.)"]
[]
[null,"Journeyman's license relevant to the intended field of instruction.  (Embed copy of license.)"]
[]
[null,"Demonstrated competency in the intended field of instruction. "]
[null,"(Embed documentation of competency.  Such documentation would include a copy of a widely accepted license or certificate such "]
[null,"as a CDL, a MCSE certificate, or a \"Train the Trainer\" certificate.)"]
[]
[null,"State certification as a Vocational Educator in the intended field of instruction.  (Embed copy of certificate.)"]
[]
[null,"Embed evidence to verify the instructor's qualifications:"]
[]
[]
[]
[]
[]
[]
[]
[null,null,"Qualifications of Instructor:",{"$f":"'PDE3003 Instructor List'!C23","v":{"$error":"#N/A"}},null,null,null,null,null,null,null,null,null,null,null,null,null,{"$f":"D877","v":{"$error":"#N/A"}}]
[]
[null,null,"Instructor's Home Address:"]
[]
[]
[]
[]
[null,null,null,"City, State and Zip Code"]
[]
[null,null,null,null,"Is this instructor currently employed by the school? "]
[]
[null,null,"School Director:"]
[null,null,null,"By placing my name above, I certify that, to the best of my knowledge, the information reported herein is true and accurate."]
[]
[null,null,"Date of Certification:"]
[]
["Names of courses to be taught by this instructor in the proposed new program:"]
[]
["Courses:"]
[]
[]
[]
[]
[]
[]
[]
[]
[]
["Courses taught by this instructor in OTHER programs at the school:",null,null,null,null,null,null,null,null,null,null,null,null,null,null,null,null,{"$f":"D877","v":{"$error":"#N/A"}}]
[]
["Courses:"]
[]
[]
[]
[]
[]
[]
[]
[]
[]
[]
[]
["Instructor's Education:"]
[null,null,null,null,null,null,null,null,"Award Received and Field of Study",null,null,null,null,"Dates Attended"]
[null,"Institution Attended",null,null,null,null,null,null,"(Examples: BS-Computer Science or ",null,null,null,null,"Month/Year",null,"Month/Year"]
[null,"School name, city, & state",null,null,null,null,"Graduated",null,"Diploma-Carpentry or Certificate-Word Processing)",null,null,null,null,"From",null,"To"]
[]
["College:"]
[]
["College:"]
[]
["Other:"]
[]
["Other:"]
[]
["High School:"]
[]
["Instructor's Program-Specific Teaching and/or Work Experience (list chronologically starting with the most recent employer, including this school):",null,null,null,null,null,null,null,null,null,null,null,null,null,null,null,null,{"$f":"D877","v":{"$error":"#N/A"}}]
[]
[null,null,null,null,null,null,null,null,null,null,null,"Dates of Employment"]
[null,"Employer",null,null,null,null,"Subject(s) Taught or Position Held",null,null,null,null,"Month/Year",null,"Month/Year"]
[null,"Employer name, city, & state",null,null,null,null,"(include supervisory experience)",null,null,null,null,"From",null,"To"]
[]
[]
[]
[]
[]
[]
[]
[]
[]
[]
[]
[]
[]
[]
[]
[]
[]
["Instructor's Verification of Qualifications:",null,null,null,null,null,null,null,null,null,null,null,null,null,null,null,null,{"$f":"D877","v":{"$error":"#N/A"}}]
[]
[null," The Board's regulations require instructors to have at least one of the qualifications listed below (22 Pa. Code Section 73.104).  "]
[null," Check all of the qualifications that apply, then attach the documentation needed for at least one of the qualifications you checked."]
[]
[null,"Baccalaureate degree or higher in the intended field of instruction.  (Embed copy of degree and/or transcript.)"]
[]
[null,"Two or more years' work experience in the intended field of instruction which is acceptable to the School Director."]
[null,"(Embed resume and/or letters from former employers describing the nature of the instructor's former duties.)"]
[]
[null,"Two or more years' teaching experience in the intended field of instruction.  "]
[null,"(Embed resume and/or letters from former employers that verify teaching experience and qualification in the field.)"]
[]
[null,"Journeyman's license relevant to the intended field of instruction.  (Embed copy of license.)"]
[]
[null,"Demonstrated competency in the intended field of instruction. "]
[null,"(Embed documentation of competency.  Such documentation would include a copy of a widely accepted license or certificate such "]
[null,"as a CDL, a MCSE certificate, or a \"Train the Trainer\" certificate.)"]
[]
[null,"State certification as a Vocational Educator in the intended field of instruction.  (Embed copy of certificate.)"]
[]
[null,"Embed evidence to verify the instructor's qualifications:"]
[]
[]
[]
[]
[]
[]
[]
[]
[null,null,"Qualifications of Instructor:",{"$f":"'PDE3003 Instructor List'!C24","v":{"$error":"#N/A"}},null,null,null,null,null,null,null,null,null,null,null,null,null,{"$f":"D986","v":{"$error":"#N/A"}}]
[]
[null,null,"Instructor's Home Address:"]
[]
[]
[]
[]
[null,null,null,"City, State and Zip Code"]
[]
[null,null,null,null,"Is this instructor currently employed by the school? "]
[]
[null,null,"School Director:"]
[null,null,null,"By placing my name above, I certify that, to the best of my knowledge, the information reported herein is true and accurate."]
[]
[null,null,"Date of Certification:"]
[]
["Names of courses to be taught by this instructor in the proposed new program:"]
[]
["Courses:"]
[]
[]
[]
[]
[]
[]
[]
[]
[]
["Courses taught by this instructor in OTHER programs at the school:",null,null,null,null,null,null,null,null,null,null,null,null,null,null,null,null,{"$f":"D986","v":{"$error":"#N/A"}}]
[]
["Courses:"]
[]
[]
[]
[]
[]
[]
[]
[]
[]
[]
[]
["Instructor's Education:"]
[null,null,null,null,null,null,null,null,"Award Received and Field of Study",null,null,null,null,"Dates Attended"]
[null,"Institution Attended",null,null,null,null,null,null,"(Examples: BS-Computer Science or ",null,null,null,null,"Month/Year",null,"Month/Year"]
[null,"School name, city, & state",null,null,null,null,"Graduated",null,"Diploma-Carpentry or Certificate-Word Processing)",null,null,null,null,"From",null,"To"]
[]
["College:"]
[]
["College:"]
[]
["Other:"]
[]
["Other:"]
[]
["High School:"]
[]
["Instructor's Program-Specific Teaching and/or Work Experience (list chronologically starting with the most recent employer, including this school):",null,null,null,null,null,null,null,null,null,null,null,null,null,null,null,null,{"$f":"D986","v":{"$error":"#N/A"}}]
[]
[null,null,null,null,null,null,null,null,null,null,null,"Dates of Employment"]
[null,"Employer",null,null,null,null,"Subject(s) Taught or Position Held",null,null,null,null,"Month/Year",null,"Month/Year"]
[null,"Employer name, city, & state",null,null,null,null,"(include supervisory experience)",null,null,null,null,"From",null,"To"]
[]
[]
[]
[]
[]
[]
[]
[]
[]
[]
[]
[]
[]
[]
[]
[]
[]
["Instructor's Verification of Qualifications:",null,null,null,null,null,null,null,null,null,null,null,null,null,null,null,null,{"$f":"D986","v":{"$error":"#N/A"}}]
[]
[null," The Board's regulations require instructors to have at least one of the qualifications listed below (22 Pa. Code Section 73.104).  "]
[null," Check all of the qualifications that apply, then attach the documentation needed for at least one of the qualifications you checked."]
[]
[null,"Baccalaureate degree or higher in the intended field of instruction.  (Embed copy of degree and/or transcript.)"]
[]
[null,"Two or more years' work experience in the intended field of instruction which is acceptable to the School Director."]
[null,"(Embed resume and/or letters from former employers describing the nature of the instructor's former duties.)"]
[]
[null,"Two or more years' teaching experience in the intended field of instruction.  "]
[null,"(Embed resume and/or letters from former employers that verify teaching experience and qualification in the field.)"]
[]
[null,"Journeyman's license relevant to the intended field of instruction.  (Embed copy of license.)"]
[]
[null,"Demonstrated competency in the intended field of instruction. "]
[null,"(Embed documentation of competency.  Such documentation would include a copy of a widely accepted license or certificate such "]
[null,"as a CDL, a MCSE certificate, or a \"Train the Trainer\" certificate.)"]
[]
[null,"State certification as a Vocational Educator in the intended field of instruction.  (Embed copy of certificate.)"]
[]
[null,"Embed evidence to verify the instructor's qualifications:"]
[]
[]
[]
[]
[]
[]
[]
[]
[null,null,"Qualifications of Instructor:",{"$f":"'PDE3003 Instructor List'!C25","v":{"$error":"#N/A"}},null,null,null,null,null,null,null,null,null,null,null,null,null,{"$f":"D1095","v":{"$error":"#N/A"}}]
[]
[null,null,"Instructor's Home Address:"]
[]
[]
[]
[]
[null,null,null,"City, State and Zip Code"]
[]
[null,null,null,null,"Is this instructor currently employed by the school? "]
[]
[null,null,"School Director:"]
[null,null,null,"By placing my name above, I certify that, to the best of my knowledge, the information reported herein is true and accurate."]
[]
[null,null,"Date of Certification:"]
[]
["Names of courses to be taught by this instructor in the proposed new program:"]
[]
["Courses:"]
[]
[]
[]
[]
[]
[]
[]
[]
[]
["Courses taught by this instructor in OTHER programs at the school:",null,null,null,null,null,null,null,null,null,null,null,null,null,null,null,null,{"$f":"D1095","v":{"$error":"#N/A"}}]
[]
["Courses:"]
[]
[]
[]
[]
[]
[]
[]
[]
[]
[]
[]
["Instructor's Education:"]
[null,null,null,null,null,null,null,null,"Award Received and Field of Study",null,null,null,null,"Dates Attended"]
[null,"Institution Attended",null,null,null,null,null,null,"(Examples: BS-Computer Science or ",null,null,null,null,"Month/Year",null,"Month/Year"]
[null,"School name, city, & state",null,null,null,null,"Graduated",null,"Diploma-Carpentry or Certificate-Word Processing)",null,null,null,null,"From",null,"To"]
[]
["College:"]
[]
["College:"]
[]
["Other:"]
[]
["Other:"]
[]
["High School:"]
[]
["Instructor's Program-Specific Teaching and/or Work Experience (list chronologically starting with the most recent employer, including this school):",null,null,null,null,null,null,null,null,null,null,null,null,null,null,null,null,{"$f":"D1095","v":{"$error":"#N/A"}}]
[]
[null,null,null,null,null,null,null,null,null,null,null,"Dates of Employment"]
[null,"Employer",null,null,null,null,"Subject(s) Taught or Position Held",null,null,null,null,"Month/Year",null,"Month/Year"]
[null,"Employer name, city, & state",null,null,null,null,"(include supervisory experience)",null,null,null,null,"From",null,"To"]
[]
[]
[]
[]
[]
[]
[]
[]
[]
[]
[]
[]
[]
[]
[]
[]
[]
["Instructor's Verification of Qualifications:",null,null,null,null,null,null,null,null,null,null,null,null,null,null,null,null,{"$f":"D1095","v":{"$error":"#N/A"}}]
[]
[null," The Board's regulations require instructors to have at least one of the qualifications listed below (22 Pa. Code Section 73.104).  "]
[null," Check all of the qualifications that apply, then attach the documentation needed for at least one of the qualifications you checked."]
[]
[null,"Baccalaureate degree or higher in the intended field of instruction.  (Embed copy of degree and/or transcript.)"]
[]
[null,"Two or more years' work experience in the intended field of instruction which is acceptable to the School Director."]
[null,"(Embed resume and/or letters from former employers describing the nature of the instructor's former duties.)"]
[]
[null,"Two or more years' teaching experience in the intended field of instruction.  "]
[null,"(Embed resume and/or letters from former employers that verify teaching experience and qualification in the field.)"]
[]
[null,"Journeyman's license relevant to the intended field of instruction.  (Embed copy of license.)"]
[]
[null,"Demonstrated competency in the intended field of instruction. "]
[null,"(Embed documentation of competency.  Such documentation would include a copy of a widely accepted license or certificate such "]
[null,"as a CDL, a MCSE certificate, or a \"Train the Trainer\" certificate.)"]
[]
[null,"State certification as a Vocational Educator in the intended field of instruction.  (Embed copy of certificate.)"]
[]
[null,"Embed evidence to verify the instructor's qualifications:"]
[]
[]
[]
[]
[]
[]
[]
[null,null,"Qualifications of Instructor:",{"$f":"'PDE3003 Instructor List'!C26","v":{"$error":"#N/A"}},null,null,null,null,null,null,null,null,null,null,null,null,null,{"$f":"D1203","v":{"$error":"#N/A"}}]
[]
[null,null,"Instructor's Home Address:"]
[]
[]
[]
[]
[null,null,null,"City, State and Zip Code"]
[]
[null,null,null,null,"Is this instructor currently employed by the school? "]
[]
[null,null,"School Director:"]
[null,null,null,"By placing my name above, I certify that, to the best of my knowledge, the information reported herein is true and accurate."]
[]
[null,null,"Date of Certification:"]
[]
["Names of courses to be taught by this instructor in the proposed new program:"]
[]
["Courses:"]
[]
[]
[]
[]
[]
[]
[]
[]
[]
["Courses taught by this instructor in OTHER programs at the school:",null,null,null,null,null,null,null,null,null,null,null,null,null,null,null,null,{"$f":"D1203","v":{"$error":"#N/A"}}]
[]
["Courses:"]
[]
[]
[]
[]
[]
[]
[]
[]
[]
[]
[]
["Instructor's Education:"]
[null,null,null,null,null,null,null,null,"Award Received and Field of Study",null,null,null,null,"Dates Attended"]
[null,"Institution Attended",null,null,null,null,null,null,"(Examples: BS-Computer Science or ",null,null,null,null,"Month/Year",null,"Month/Year"]
[null,"School name, city, & state",null,null,null,null,"Graduated",null,"Diploma-Carpentry or Certificate-Word Processing)",null,null,null,null,"From",null,"To"]
[]
["College:"]
[]
["College:"]
[]
["Other:"]
[]
["Other:"]
[]
["High School:"]
[]
["Instructor's Program-Specific Teaching and/or Work Experience (list chronologically starting with the most recent employer, including this school):",null,null,null,null,null,null,null,null,null,null,null,null,null,null,null,null,{"$f":"D1203","v":{"$error":"#N/A"}}]
[]
[null,null,null,null,null,null,null,null,null,null,null,"Dates of Employment"]
[null,"Employer",null,null,null,null,"Subject(s) Taught or Position Held",null,null,null,null,"Month/Year",null,"Month/Year"]
[null,"Employer name, city, & state",null,null,null,null,"(include supervisory experience)",null,null,null,null,"From",null,"To"]
[]
[]
[]
[]
[]
[]
[]
[]
[]
[]
[]
[]
[]
[]
[]
[]
[]
["Instructor's Verification of Qualifications:",null,null,null,null,null,null,null,null,null,null,null,null,null,null,null,null,{"$f":"D1203","v":{"$error":"#N/A"}}]
[]
[null," The Board's regulations require instructors to have at least one of the qualifications listed below (22 Pa. Code Section 73.104).  "]
[null," Check all of the qualifications that apply, then attach the documentation needed for at least one of the qualifications you checked."]
[]
[null,"Baccalaureate degree or higher in the intended field of instruction.  (Embed copy of degree and/or transcript.)"]
[]
[null,"Two or more years' work experience in the intended field of instruction which is acceptable to the School Director."]
[null,"(Embed resume and/or letters from former employers describing the nature of the instructor's former duties.)"]
[]
[null,"Two or more years' teaching experience in the intended field of instruction.  "]
[null,"(Embed resume and/or letters from former employers that verify teaching experience and qualification in the field.)"]
[]
[null,"Journeyman's license relevant to the intended field of instruction.  (Embed copy of license.)"]
[]
[null,"Demonstrated competency in the intended field of instruction. "]
[null,"(Embed documentation of competency.  Such documentation would include a copy of a widely accepted license or certificate such "]
[null,"as a CDL, a MCSE certificate, or a \"Train the Trainer\" certificate.)"]
[]
[null,"State certification as a Vocational Educator in the intended field of instruction.  (Embed copy of certificate.)"]
[]
[null,"Embed evidence to verify the instructor's qualifications:"]
[]
[]
[]
[]
[]
[]
[]
[null,null,"Qualifications of Instructor:",{"$f":"'PDE3003 Instructor List'!C27","v":{"$error":"#N/A"}},null,null,null,null,null,null,null,null,null,null,null,null,null,{"$f":"D1311","v":{"$error":"#N/A"}}]
[]
[null,null,"Instructor's Home Address:"]
[]
[]
[]
[]
[null,null,null,"City, State and Zip Code"]
[]
[null,null,null,null,"Is this instructor currently employed by the school? "]
[]
[null,null,"School Director:"]
[null,null,null,"By placing my name above, I certify that, to the best of my knowledge, the information reported herein is true and accurate."]
[]
[null,null,"Date of Certification:"]
[]
["Names of courses to be taught by this instructor in the proposed new program:"]
[]
["Courses:"]
[]
[]
[]
[]
[]
[]
[]
[]
[]
["Courses taught by this instructor in OTHER programs at the school:",null,null,null,null,null,null,null,null,null,null,null,null,null,null,null,null,{"$f":"D1311","v":{"$error":"#N/A"}}]
[]
["Courses:"]
[]
[]
[]
[]
[]
[]
[]
[]
[]
[]
[]
["Instructor's Education:"]
[null,null,null,null,null,null,null,null,"Award Received and Field of Study",null,null,null,null,"Dates Attended"]
[null,"Institution Attended",null,null,null,null,null,null,"(Examples: BS-Computer Science or ",null,null,null,null,"Month/Year",null,"Month/Year"]
[null,"School name, city, & state",null,null,null,null,"Graduated",null,"Diploma-Carpentry or Certificate-Word Processing)",null,null,null,null,"From",null,"To"]
[]
["College:"]
[]
["College:"]
[]
["Other:"]
[]
["Other:"]
[]
["High School:"]
[]
["Instructor's Program-Specific Teaching and/or Work Experience (list chronologically starting with the most recent employer, including this school):",null,null,null,null,null,null,null,null,null,null,null,null,null,null,null,null,{"$f":"D1311","v":{"$error":"#N/A"}}]
[]
[null,null,null,null,null,null,null,null,null,null,null,"Dates of Employment"]
[null,"Employer",null,null,null,null,"Subject(s) Taught or Position Held",null,null,null,null,"Month/Year",null,"Month/Year"]
[null,"Employer name, city, & state",null,null,null,null,"(include supervisory experience)",null,null,null,null,"From",null,"To"]
[]
[]
[]
[]
[]
[]
[]
[]
[]
[]
[]
[]
[]
[]
[]
[]
[]
["Instructor's Verification of Qualifications:",null,null,null,null,null,null,null,null,null,null,null,null,null,null,null,null,{"$f":"D1311","v":{"$error":"#N/A"}}]
[]
[null," The Board's regulations require instructors to have at least one of the qualifications listed below (22 Pa. Code Section 73.104).  "]
[null," Check all of the qualifications that apply, then attach the documentation needed for at least one of the qualifications you checked."]
[]
[null,"Baccalaureate degree or higher in the intended field of instruction.  (Embed copy of degree and/or transcript.)"]
[]
[null,"Two or more years' work experience in the intended field of instruction which is acceptable to the School Director."]
[null,"(Embed resume and/or letters from former employers describing the nature of the instructor's former duties.)"]
[]
[null,"Two or more years' teaching experience in the intended field of instruction.  "]
[null,"(Embed resume and/or letters from former employers that verify teaching experience and qualification in the field.)"]
[]
[null,"Journeyman's license relevant to the intended field of instruction.  (Embed copy of license.)"]
[]
[null,"Demonstrated competency in the intended field of instruction. "]
[null,"(Embed documentation of competency.  Such documentation would include a copy of a widely accepted license or certificate such "]
[null,"as a CDL, a MCSE certificate, or a \"Train the Trainer\" certificate.)"]
[]
[null,"State certification as a Vocational Educator in the intended field of instruction.  (Embed copy of certificate.)"]
[]
[null,"Embed evidence to verify the instructor's qualifications:"]
[]
[]
[]
[]
[]
[]
[]
[null,null,"Qualifications of Instructor:",{"$f":"'PDE3003 Instructor List'!C28","v":{"$error":"#N/A"}},null,null,null,null,null,null,null,null,null,null,null,null,null,{"$f":"D1419","v":{"$error":"#N/A"}}]
[]
[null,null,"Instructor's Home Address:"]
[]
[]
[]
[]
[null,null,null,"City, State and Zip Code"]
[]
[null,null,null,null,"Is this instructor currently employed by the school? "]
[]
[null,null,"School Director:"]
[null,null,null,"By placing my name above, I certify that, to the best of my knowledge, the information reported herein is true and accurate."]
[]
[null,null,"Date of Certification:"]
[]
["Names of courses to be taught by this instructor in the proposed new program:"]
[]
["Courses:"]
[]
[]
[]
[]
[]
[]
[]
[]
[]
["Courses taught by this instructor in OTHER programs at the school:",null,null,null,null,null,null,null,null,null,null,null,null,null,null,null,null,{"$f":"D1419","v":{"$error":"#N/A"}}]
[]
["Courses:"]
[]
[]
[]
[]
[]
[]
[]
[]
[]
[]
[]
["Instructor's Education:"]
[null,null,null,null,null,null,null,null,"Award Received and Field of Study",null,null,null,null,"Dates Attended"]
[null,"Institution Attended",null,null,null,null,null,null,"(Examples: BS-Computer Science or ",null,null,null,null,"Month/Year",null,"Month/Year"]
[null,"School name, city, & state",null,null,null,null,"Graduated",null,"Diploma-Carpentry or Certificate-Word Processing)",null,null,null,null,"From",null,"To"]
[]
["College:"]
[]
["College:"]
[]
["Other:"]
[]
["Other:"]
[]
["High School:"]
[]
["Instructor's Program-Specific Teaching and/or Work Experience (list chronologically starting with the most recent employer, including this school):",null,null,null,null,null,null,null,null,null,null,null,null,null,null,null,null,{"$f":"D1419","v":{"$error":"#N/A"}}]
[]
[null,null,null,null,null,null,null,null,null,null,null,"Dates of Employment"]
[null,"Employer",null,null,null,null,"Subject(s) Taught or Position Held",null,null,null,null,"Month/Year",null,"Month/Year"]
[null,"Employer name, city, & state",null,null,null,null,"(include supervisory experience)",null,null,null,null,"From",null,"To"]
[]
[]
[]
[]
[]
[]
[]
[]
[]
[]
[]
[]
[]
[]
[]
[]
[]
["Instructor's Verification of Qualifications:",null,null,null,null,null,null,null,null,null,null,null,null,null,null,null,null,{"$f":"D1419","v":{"$error":"#N/A"}}]
[]
[null," The Board's regulations require instructors to have at least one of the qualifications listed below (22 Pa. Code Section 73.104).  "]
[null," Check all of the qualifications that apply, then attach the documentation needed for at least one of the qualifications you checked."]
[]
[null,"Baccalaureate degree or higher in the intended field of instruction.  (Embed copy of degree and/or transcript.)"]
[]
[null,"Two or more years' work experience in the intended field of instruction which is acceptable to the School Director."]
[null,"(Embed resume and/or letters from former employers describing the nature of the instructor's former duties.)"]
[]
[null,"Two or more years' teaching experience in the intended field of instruction.  "]
[null,"(Embed resume and/or letters from former employers that verify teaching experience and qualification in the field.)"]
[]
[null,"Journeyman's license relevant to the intended field of instruction.  (Embed copy of license.)"]
[]
[null,"Demonstrated competency in the intended field of instruction. "]
[null,"(Embed documentation of competency.  Such documentation would include a copy of a widely accepted license or certificate such "]
[null,"as a CDL, a MCSE certificate, or a \"Train the Trainer\" certificate.)"]
[]
[null,"State certification as a Vocational Educator in the intended field of instruction.  (Embed copy of certificate.)"]
[]
[null,"Embed evidence to verify the instructor's qualifications:"]
[]
[]
[]
[]
[]
[]
[]
[null,null,"Qualifications of Instructor:",{"$f":"'PDE3003 Instructor List'!C29","v":{"$error":"#N/A"}},null,null,null,null,null,null,null,null,null,null,null,null,null,{"$f":"D1527","v":{"$error":"#N/A"}}]
[]
[null,null,"Instructor's Home Address:"]
[]
[]
[]
[]
[null,null,null,"City, State and Zip Code"]
[]
[null,null,null,null,"Is this instructor currently employed by the school? "]
[]
[null,null,"School Director:"]
[null,null,null,"By placing my name above, I certify that, to the best of my knowledge, the information reported herein is true and accurate."]
[]
[null,null,"Date of Certification:"]
[]
["Names of courses to be taught by this instructor in the proposed new program:"]
[]
["Courses:"]
[]
[]
[]
[]
[]
[]
[]
[]
[]
["Courses taught by this instructor in OTHER programs at the school:",null,null,null,null,null,null,null,null,null,null,null,null,null,null,null,null,{"$f":"D1527","v":{"$error":"#N/A"}}]
[]
["Courses:"]
[]
[]
[]
[]
[]
[]
[]
[]
[]
[]
[]
["Instructor's Education:"]
[null,null,null,null,null,null,null,null,"Award Received and Field of Study",null,null,null,null,"Dates Attended"]
[null,"Institution Attended",null,null,null,null,null,null,"(Examples: BS-Computer Science or ",null,null,null,null,"Month/Year",null,"Month/Year"]
[null,"School name, city, & state",null,null,null,null,"Graduated",null,"Diploma-Carpentry or Certificate-Word Processing)",null,null,null,null,"From",null,"To"]
[]
["College:"]
[]
["College:"]
[]
["Other:"]
[]
["Other:"]
[]
["High School:"]
[]
["Instructor's Program-Specific Teaching and/or Work Experience (list chronologically starting with the most recent employer, including this school):",null,null,null,null,null,null,null,null,null,null,null,null,null,null,null,null,{"$f":"D1527","v":{"$error":"#N/A"}}]
[]
[null,null,null,null,null,null,null,null,null,null,null,"Dates of Employment"]
[null,"Employer",null,null,null,null,"Subject(s) Taught or Position Held",null,null,null,null,"Month/Year",null,"Month/Year"]
[null,"Employer name, city, & state",null,null,null,null,"(include supervisory experience)",null,null,null,null,"From",null,"To"]
[]
[]
[]
[]
[]
[]
[]
[]
[]
[]
[]
[]
[]
[]
[]
[]
[]
["Instructor's Verification of Qualifications:",null,null,null,null,null,null,null,null,null,null,null,null,null,null,null,null,{"$f":"D1527","v":{"$error":"#N/A"}}]
[]
[null," The Board's regulations require instructors to have at least one of the qualifications listed below (22 Pa. Code Section 73.104).  "]
[null," Check all of the qualifications that apply, then attach the documentation needed for at least one of the qualifications you checked."]
[]
[null,"Baccalaureate degree or higher in the intended field of instruction.  (Embed copy of degree and/or transcript.)"]
[]
[null,"Two or more years' work experience in the intended field of instruction which is acceptable to the School Director."]
[null,"(Embed resume and/or letters from former employers describing the nature of the instructor's former duties.)"]
[]
[null,"Two or more years' teaching experience in the intended field of instruction.  "]
[null,"(Embed resume and/or letters from former employers that verify teaching experience and qualification in the field.)"]
[]
[null,"Journeyman's license relevant to the intended field of instruction.  (Embed copy of license.)"]
[]
[null,"Demonstrated competency in the intended field of instruction. "]
[null,"(Embed documentation of competency.  Such documentation would include a copy of a widely accepted license or certificate such "]
[null,"as a CDL, a MCSE certificate, or a \"Train the Trainer\" certificate.)"]
[]
[null,"State certification as a Vocational Educator in the intended field of instruction.  (Embed copy of certificate.)"]
[]
[null,"Embed evidence to verify the instructor's qualifications:"]
[]
[]
[]
[]
[]
[]
[]
[null,null,"Qualifications of Instructor:",{"$f":"'PDE3003 Instructor List'!C30","v":{"$error":"#N/A"}},null,null,null,null,null,null,null,null,null,null,null,null,null,{"$f":"D1635","v":{"$error":"#N/A"}}]
[]
[null,null,"Instructor's Home Address:"]
[]
[]
[]
[]
[null,null,null,"City, State and Zip Code"]
[]
[null,null,null,null,"Is this instructor currently employed by the school? "]
[]
[null,null,"School Director:"]
[null,null,null,"By placing my name above, I certify that, to the best of my knowledge, the information reported herein is true and accurate."]
[]
[null,null,"Date of Certification:"]
[]
["Names of courses to be taught by this instructor in the proposed new program:"]
[]
["Courses:"]
[]
[]
[]
[]
[]
[]
[]
[]
[]
["Courses taught by this instructor in OTHER programs at the school:",null,null,null,null,null,null,null,null,null,null,null,null,null,null,null,null,{"$f":"D1635","v":{"$error":"#N/A"}}]
[]
["Courses:"]
[]
[]
[]
[]
[]
[]
[]
[]
[]
[]
[]
["Instructor's Education:"]
[null,null,null,null,null,null,null,null,"Award Received and Field of Study",null,null,null,null,"Dates Attended"]
[null,"Institution Attended",null,null,null,null,null,null,"(Examples: BS-Computer Science or ",null,null,null,null,"Month/Year",null,"Month/Year"]
[null,"School name, city, & state",null,null,null,null,"Graduated",null,"Diploma-Carpentry or Certificate-Word Processing)",null,null,null,null,"From",null,"To"]
[]
["College:"]
[]
["College:"]
[]
["Other:"]
[]
["Other:"]
[]
["High School:"]
[]
["Instructor's Program-Specific Teaching and/or Work Experience (list chronologically starting with the most recent employer, including this school):",null,null,null,null,null,null,null,null,null,null,null,null,null,null,null,null,{"$f":"D1635","v":{"$error":"#N/A"}}]
[]
[null,null,null,null,null,null,null,null,null,null,null,"Dates of Employment"]
[null,"Employer",null,null,null,null,"Subject(s) Taught or Position Held",null,null,null,null,"Month/Year",null,"Month/Year"]
[null,"Employer name, city, & state",null,null,null,null,"(include supervisory experience)",null,null,null,null,"From",null,"To"]
[]
[]
[]
[]
[]
[]
[]
[]
[]
[]
[]
[]
[]
[]
[]
[]
[]
["Instructor's Verification of Qualifications:",null,null,null,null,null,null,null,null,null,null,null,null,null,null,null,null,{"$f":"D1635","v":{"$error":"#N/A"}}]
[]
[null," The Board's regulations require instructors to have at least one of the qualifications listed below (22 Pa. Code Section 73.104).  "]
[null," Check all of the qualifications that apply, then attach the documentation needed for at least one of the qualifications you checked."]
[]
[null,"Baccalaureate degree or higher in the intended field of instruction.  (Embed copy of degree and/or transcript.)"]
[]
[null,"Two or more years' work experience in the intended field of instruction which is acceptable to the School Director."]
[null,"(Embed resume and/or letters from former employers describing the nature of the instructor's former duties.)"]
[]
[null,"Two or more years' teaching experience in the intended field of instruction.  "]
[null,"(Embed resume and/or letters from former employers that verify teaching experience and qualification in the field.)"]
[]
[null,"Journeyman's license relevant to the intended field of instruction.  (Embed copy of license.)"]
[]
[null,"Demonstrated competency in the intended field of instruction. "]
[null,"(Embed documentation of competency.  Such documentation would include a copy of a widely accepted license or certificate such "]
[null,"as a CDL, a MCSE certificate, or a \"Train the Trainer\" certificate.)"]
[]
[null,"State certification as a Vocational Educator in the intended field of instruction.  (Embed copy of certificate.)"]
[]
[null,"Embed evidence to verify the instructor's qualifications:"]
[]
[]
[]
[]
[]
[]
[]
[null,null,"Qualifications of Instructor:",{"$f":"'PDE3003 Instructor List'!C31","v":{"$error":"#N/A"}},null,null,null,null,null,null,null,null,null,null,null,null,null,{"$f":"D1743","v":{"$error":"#N/A"}}]
[]
[null,null,"Instructor's Home Address:"]
[]
[]
[]
[]
[null,null,null,"City, State and Zip Code"]
[]
[null,null,null,null,"Is this instructor currently employed by the school? "]
[]
[null,null,"School Director:"]
[null,null,null,"By placing my name above, I certify that, to the best of my knowledge, the information reported herein is true and accurate."]
[]
[null,null,"Date of Certification:"]
[]
["Names of courses to be taught by this instructor in the proposed new program:"]
[]
["Courses:"]
[]
[]
[]
[]
[]
[]
[]
[]
[]
["Courses taught by this instructor in OTHER programs at the school:",null,null,null,null,null,null,null,null,null,null,null,null,null,null,null,null,{"$f":"D1743","v":{"$error":"#N/A"}}]
[]
["Courses:"]
[]
[]
[]
[]
[]
[]
[]
[]
[]
[]
[]
["Instructor's Education:"]
[null,null,null,null,null,null,null,null,"Award Received and Field of Study",null,null,null,null,"Dates Attended"]
[null,"Institution Attended",null,null,null,null,null,null,"(Examples: BS-Computer Science or ",null,null,null,null,"Month/Year",null,"Month/Year"]
[null,"School name, city, & state",null,null,null,null,"Graduated",null,"Diploma-Carpentry or Certificate-Word Processing)",null,null,null,null,"From",null,"To"]
[]
["College:"]
[]
["College:"]
[]
["Other:"]
[]
["Other:"]
[]
["High School:"]
[]
["Instructor's Program-Specific Teaching and/or Work Experience (list chronologically starting with the most recent employer, including this school):",null,null,null,null,null,null,null,null,null,null,null,null,null,null,null,null,{"$f":"D1743","v":{"$error":"#N/A"}}]
[]
[null,null,null,null,null,null,null,null,null,null,null,"Dates of Employment"]
[null,"Employer",null,null,null,null,"Subject(s) Taught or Position Held",null,null,null,null,"Month/Year",null,"Month/Year"]
[null,"Employer name, city, & state",null,null,null,null,"(include supervisory experience)",null,null,null,null,"From",null,"To"]
[]
[]
[]
[]
[]
[]
[]
[]
[]
[]
[]
[]
[]
[]
[]
[]
[]
["Instructor's Verification of Qualifications:",null,null,null,null,null,null,null,null,null,null,null,null,null,null,null,null,{"$f":"D1743","v":{"$error":"#N/A"}}]
[]
[null," The Board's regulations require instructors to have at least one of the qualifications listed below (22 Pa. Code Section 73.104).  "]
[null," Check all of the qualifications that apply, then attach the documentation needed for at least one of the qualifications you checked."]
[]
[null,"Baccalaureate degree or higher in the intended field of instruction.  (Embed copy of degree and/or transcript.)"]
[]
[null,"Two or more years' work experience in the intended field of instruction which is acceptable to the School Director."]
[null,"(Embed resume and/or letters from former employers describing the nature of the instructor's former duties.)"]
[]
[null,"Two or more years' teaching experience in the intended field of instruction.  "]
[null,"(Embed resume and/or letters from former employers that verify teaching experience and qualification in the field.)"]
[]
[null,"Journeyman's license relevant to the intended field of instruction.  (Embed copy of license.)"]
[]
[null,"Demonstrated competency in the intended field of instruction. "]
[null,"(Embed documentation of competency.  Such documentation would include a copy of a widely accepted license or certificate such "]
[null,"as a CDL, a MCSE certificate, or a \"Train the Trainer\" certificate.)"]
[]
[null,"State certification as a Vocational Educator in the intended field of instruction.  (Embed copy of certificate.)"]
[]
[null,"Embed evidence to verify the instructor's qualifications:"]
[]
[]
[]
[]
[]
[]
[]
[null,null,"Qualifications of Instructor:",{"$f":"'PDE3003 Instructor List'!C32","v":{"$error":"#N/A"}},null,null,null,null,null,null,null,null,null,null,null,null,null,{"$f":"D1851","v":{"$error":"#N/A"}}]
[]
[null,null,"Instructor's Home Address:"]
[]
[]
[]
[]
[null,null,null,"City, State and Zip Code"]
[]
[null,null,null,null,"Is this instructor currently employed by the school? "]
[]
[null,null,"School Director:"]
[null,null,null,"By placing my name above, I certify that, to the best of my knowledge, the information reported herein is true and accurate."]
[]
[null,null,"Date of Certification:"]
[]
["Names of courses to be taught by this instructor in the proposed new program:"]
[]
["Courses:"]
[]
[]
[]
[]
[]
[]
[]
[]
[]
["Courses taught by this instructor in OTHER programs at the school:",null,null,null,null,null,null,null,null,null,null,null,null,null,null,null,null,{"$f":"D1851","v":{"$error":"#N/A"}}]
[]
["Courses:"]
[]
[]
[]
[]
[]
[]
[]
[]
[]
[]
[]
["Instructor's Education:"]
[null,null,null,null,null,null,null,null,"Award Received and Field of Study",null,null,null,null,"Dates Attended"]
[null,"Institution Attended",null,null,null,null,null,null,"(Examples: BS-Computer Science or ",null,null,null,null,"Month/Year",null,"Month/Year"]
[null,"School name, city, & state",null,null,null,null,"Graduated",null,"Diploma-Carpentry or Certificate-Word Processing)",null,null,null,null,"From",null,"To"]
[]
["College:"]
[]
["College:"]
[]
["Other:"]
[]
["Other:"]
[]
["High School:"]
[]
["Instructor's Program-Specific Teaching and/or Work Experience (list chronologically starting with the most recent employer, including this school):",null,null,null,null,null,null,null,null,null,null,null,null,null,null,null,null,{"$f":"D1851","v":{"$error":"#N/A"}}]
[]
[null,null,null,null,null,null,null,null,null,null,null,"Dates of Employment"]
[null,"Employer",null,null,null,null,"Subject(s) Taught or Position Held",null,null,null,null,"Month/Year",null,"Month/Year"]
[null,"Employer name, city, & state",null,null,null,null,"(include supervisory experience)",null,null,null,null,"From",null,"To"]
[]
[]
[]
[]
[]
[]
[]
[]
[]
[]
[]
[]
[]
[]
[]
[]
[]
["Instructor's Verification of Qualifications:",null,null,null,null,null,null,null,null,null,null,null,null,null,null,null,null,{"$f":"D1851","v":{"$error":"#N/A"}}]
[]
[null," The Board's regulations require instructors to have at least one of the qualifications listed below (22 Pa. Code Section 73.104).  "]
[null," Check all of the qualifications that apply, then attach the documentation needed for at least one of the qualifications you checked."]
[]
[null,"Baccalaureate degree or higher in the intended field of instruction.  (Embed copy of degree and/or transcript.)"]
[]
[null,"Two or more years' work experience in the intended field of instruction which is acceptable to the School Director."]
[null,"(Embed resume and/or letters from former employers describing the nature of the instructor's former duties.)"]
[]
[null,"Two or more years' teaching experience in the intended field of instruction.  "]
[null,"(Embed resume and/or letters from former employers that verify teaching experience and qualification in the field.)"]
[]
[null,"Journeyman's license relevant to the intended field of instruction.  (Embed copy of license.)"]
[]
[null,"Demonstrated competency in the intended field of instruction. "]
[null,"(Embed documentation of competency.  Such documentation would include a copy of a widely accepted license or certificate such "]
[null,"as a CDL, a MCSE certificate, or a \"Train the Trainer\" certificate.)"]
[]
[null,"State certification as a Vocational Educator in the intended field of instruction.  (Embed copy of certificate.)"]
[]
[null,"Embed evidence to verify the instructor's qualifications:"]
[]
[]
[]
[]
[]
[]
[]
[null,null,"Qualifications of Instructor:",{"$f":"'PDE3003 Instructor List'!C33","v":{"$error":"#N/A"}},null,null,null,null,null,null,null,null,null,null,null,null,null,{"$f":"D1959","v":{"$error":"#N/A"}}]
[]
[null,null,"Instructor's Home Address:"]
[]
[]
[]
[]
[null,null,null,"City, State and Zip Code"]
[]
[null,null,null,null,"Is this instructor currently employed by the school? "]
[]
[null,null,"School Director:"]
[null,null,null,"By placing my name above, I certify that, to the best of my knowledge, the information reported herein is true and accurate."]
[]
[null,null,"Date of Certification:"]
[]
["Names of courses to be taught by this instructor in the proposed new program:"]
[]
["Courses:"]
[]
[]
[]
[]
[]
[]
[]
[]
[]
["Courses taught by this instructor in OTHER programs at the school:",null,null,null,null,null,null,null,null,null,null,null,null,null,null,null,null,{"$f":"D1959","v":{"$error":"#N/A"}}]
[]
["Courses:"]
[]
[]
[]
[]
[]
[]
[]
[]
[]
[]
[]
["Instructor's Education:"]
[null,null,null,null,null,null,null,null,"Award Received and Field of Study",null,null,null,null,"Dates Attended"]
[null,"Institution Attended",null,null,null,null,null,null,"(Examples: BS-Computer Science or ",null,null,null,null,"Month/Year",null,"Month/Year"]
[null,"School name, city, & state",null,null,null,null,"Graduated",null,"Diploma-Carpentry or Certificate-Word Processing)",null,null,null,null,"From",null,"To"]
[]
["College:"]
[]
["College:"]
[]
["Other:"]
[]
["Other:"]
[]
["High School:"]
[]
["Instructor's Program-Specific Teaching and/or Work Experience (list chronologically starting with the most recent employer, including this school):",null,null,null,null,null,null,null,null,null,null,null,null,null,null,null,null,{"$f":"D1959","v":{"$error":"#N/A"}}]
[]
[null,null,null,null,null,null,null,null,null,null,null,"Dates of Employment"]
[null,"Employer",null,null,null,null,"Subject(s) Taught or Position Held",null,null,null,null,"Month/Year",null,"Month/Year"]
[null,"Employer name, city, & state",null,null,null,null,"(include supervisory experience)",null,null,null,null,"From",null,"To"]
[]
[]
[]
[]
[]
[]
[]
[]
[]
[]
[]
[]
[]
[]
[]
[]
[]
["Instructor's Verification of Qualifications:",null,null,null,null,null,null,null,null,null,null,null,null,null,null,null,null,{"$f":"D1959","v":{"$error":"#N/A"}}]
[]
[null," The Board's regulations require instructors to have at least one of the qualifications listed below (22 Pa. Code Section 73.104).  "]
[null," Check all of the qualifications that apply, then attach the documentation needed for at least one of the qualifications you checked."]
[]
[null,"Baccalaureate degree or higher in the intended field of instruction.  (Embed copy of degree and/or transcript.)"]
[]
[null,"Two or more years' work experience in the intended field of instruction which is acceptable to the School Director."]
[null,"(Embed resume and/or letters from former employers describing the nature of the instructor's former duties.)"]
[]
[null,"Two or more years' teaching experience in the intended field of instruction.  "]
[null,"(Embed resume and/or letters from former employers that verify teaching experience and qualification in the field.)"]
[]
[null,"Journeyman's license relevant to the intended field of instruction.  (Embed copy of license.)"]
[]
[null,"Demonstrated competency in the intended field of instruction. "]
[null,"(Embed documentation of competency.  Such documentation would include a copy of a widely accepted license or certificate such "]
[null,"as a CDL, a MCSE certificate, or a \"Train the Trainer\" certificate.)"]
[]
[null,"State certification as a Vocational Educator in the intended field of instruction.  (Embed copy of certificate.)"]
[]
[null,"Embed evidence to verify the instructor's qualifications:"]
[]
[]
[]
[]
[]
[]
[]
[]
[null,null,"Qualifications of Instructor:",{"$f":"'PDE3003 Instructor List'!C34","v":{"$error":"#N/A"}},null,null,null,null,null,null,null,null,null,null,null,null,null,{"$f":"D2068","v":{"$error":"#N/A"}}]
[]
[null,null,"Instructor's Home Address:"]
[]
[]
[]
[]
[null,null,null,"City, State and Zip Code"]
[]
[null,null,null,null,"Is this instructor currently employed by the school? "]
[]
[null,null,"School Director:"]
[null,null,null,"By placing my name above, I certify that, to the best of my knowledge, the information reported herein is true and accurate."]
[]
[null,null,"Date of Certification:"]
[]
["Names of courses to be taught by this instructor in the proposed new program:"]
[]
["Courses:"]
[]
[]
[]
[]
[]
[]
[]
[]
[]
["Courses taught by this instructor in OTHER programs at the school:",null,null,null,null,null,null,null,null,null,null,null,null,null,null,null,null,{"$f":"D2068","v":{"$error":"#N/A"}}]
[]
["Courses:"]
[]
[]
[]
[]
[]
[]
[]
[]
[]
[]
[]
["Instructor's Education:"]
[null,null,null,null,null,null,null,null,"Award Received and Field of Study",null,null,null,null,"Dates Attended"]
[null,"Institution Attended",null,null,null,null,null,null,"(Examples: BS-Computer Science or ",null,null,null,null,"Month/Year",null,"Month/Year"]
[null,"School name, city, & state",null,null,null,null,"Graduated",null,"Diploma-Carpentry or Certificate-Word Processing)",null,null,null,null,"From",null,"To"]
[]
["College:"]
[]
["College:"]
[]
["Other:"]
[]
["Other:"]
[]
["High School:"]
[]
["Instructor's Program-Specific Teaching and/or Work Experience (list chronologically starting with the most recent employer, including this school):",null,null,null,null,null,null,null,null,null,null,null,null,null,null,null,null,{"$f":"D2068","v":{"$error":"#N/A"}}]
[]
[null,null,null,null,null,null,null,null,null,null,null,"Dates of Employment"]
[null,"Employer",null,null,null,null,"Subject(s) Taught or Position Held",null,null,null,null,"Month/Year",null,"Month/Year"]
[null,"Employer name, city, & state",null,null,null,null,"(include supervisory experience)",null,null,null,null,"From",null,"To"]
[]
[]
[]
[]
[]
[]
[]
[]
[]
[]
[]
[]
[]
[]
[]
[]
[]
["Instructor's Verification of Qualifications:",null,null,null,null,null,null,null,null,null,null,null,null,null,null,null,null,{"$f":"D2068","v":{"$error":"#N/A"}}]
[]
[null," The Board's regulations require instructors to have at least one of the qualifications listed below (22 Pa. Code Section 73.104).  "]
[null," Check all of the qualifications that apply, then attach the documentation needed for at least one of the qualifications you checked."]
[]
[null,"Baccalaureate degree or higher in the intended field of instruction.  (Embed copy of degree and/or transcript.)"]
[]
[null,"Two or more years' work experience in the intended field of instruction which is acceptable to the School Director."]
[null,"(Embed resume and/or letters from former employers describing the nature of the instructor's former duties.)"]
[]
[null,"Two or more years' teaching experience in the intended field of instruction.  "]
[null,"(Embed resume and/or letters from former employers that verify teaching experience and qualification in the field.)"]
[]
[null,"Journeyman's license relevant to the intended field of instruction.  (Embed copy of license.)"]
[]
[null,"Demonstrated competency in the intended field of instruction. "]
[null,"(Embed documentation of competency.  Such documentation would include a copy of a widely accepted license or certificate such "]
[null,"as a CDL, a MCSE certificate, or a \"Train the Trainer\" certificate.)"]
[]
[null,"State certification as a Vocational Educator in the intended field of instruction.  (Embed copy of certificate.)"]
[]
[null,"Embed evidence to verify the instructor's qualifications:"]
[]
[]
[]
[]
[]
[]
[]
[null,null,"Qualifications of Instructor:",{"$f":"'PDE3003 Instructor List'!C35","v":{"$error":"#N/A"}},null,null,null,null,null,null,null,null,null,null,null,null,null,{"$f":"D2176","v":{"$error":"#N/A"}}]
[]
[null,null,"Instructor's Home Address:"]
[]
[]
[]
[]
[null,null,null,"City, State and Zip Code"]
[]
[null,null,null,null,"Is this instructor currently employed by the school? "]
[]
[null,null,"School Director:"]
[null,null,null,"By placing my name above, I certify that, to the best of my knowledge, the information reported herein is true and accurate."]
[]
[null,null,"Date of Certification:"]
[]
["Names of courses to be taught by this instructor in the proposed new program:"]
[]
["Courses:"]
[]
[]
[]
[]
[]
[]
[]
[]
[]
["Courses taught by this instructor in OTHER programs at the school:",null,null,null,null,null,null,null,null,null,null,null,null,null,null,null,null,{"$f":"D2176","v":{"$error":"#N/A"}}]
[]
["Courses:"]
[]
[]
[]
[]
[]
[]
[]
[]
[]
[]
[]
["Instructor's Education:"]
[null,null,null,null,null,null,null,null,"Award Received and Field of Study",null,null,null,null,"Dates Attended"]
[null,"Institution Attended",null,null,null,null,null,null,"(Examples: BS-Computer Science or ",null,null,null,null,"Month/Year",null,"Month/Year"]
[null,"School name, city, & state",null,null,null,null,"Graduated",null,"Diploma-Carpentry or Certificate-Word Processing)",null,null,null,null,"From",null,"To"]
[]
["College:"]
[]
["College:"]
[]
["Other:"]
[]
["Other:"]
[]
["High School:"]
[]
["Instructor's Program-Specific Teaching and/or Work Experience (list chronologically starting with the most recent employer, including this school):",null,null,null,null,null,null,null,null,null,null,null,null,null,null,null,null,{"$f":"D2176","v":{"$error":"#N/A"}}]
[]
[null,null,null,null,null,null,null,null,null,null,null,"Dates of Employment"]
[null,"Employer",null,null,null,null,"Subject(s) Taught or Position Held",null,null,null,null,"Month/Year",null,"Month/Year"]
[null,"Employer name, city, & state",null,null,null,null,"(include supervisory experience)",null,null,null,null,"From",null,"To"]
[]
[]
[]
[]
[]
[]
[]
[]
[]
[]
[]
[]
[]
[]
[]
[]
[]
["Instructor's Verification of Qualifications:",null,null,null,null,null,null,null,null,null,null,null,null,null,null,null,null,{"$f":"D2176","v":{"$error":"#N/A"}}]
[]
[null," The Board's regulations require instructors to have at least one of the qualifications listed below (22 Pa. Code Section 73.104).  "]
[null," Check all of the qualifications that apply, then attach the documentation needed for at least one of the qualifications you checked."]
[]
[null,"Baccalaureate degree or higher in the intended field of instruction.  (Embed copy of degree and/or transcript.)"]
[]
[null,"Two or more years' work experience in the intended field of instruction which is acceptable to the School Director."]
[null,"(Embed resume and/or letters from former employers describing the nature of the instructor's former duties.)"]
[]
[null,"Two or more years' teaching experience in the intended field of instruction.  "]
[null,"(Embed resume and/or letters from former employers that verify teaching experience and qualification in the field.)"]
[]
[null,"Journeyman's license relevant to the intended field of instruction.  (Embed copy of license.)"]
[]
[null,"Demonstrated competency in the intended field of instruction. "]
[null,"(Embed documentation of competency.  Such documentation would include a copy of a widely accepted license or certificate such "]
[null,"as a CDL, a MCSE certificate, or a \"Train the Trainer\" certificate.)"]
[]
[null,"State certification as a Vocational Educator in the intended field of instruction.  (Embed copy of certificate.)"]
[]
[null,"Embed evidence to verify the instructor's qualifications:"]
[]
[]
[]
[]
[]
[]
[]
[null,null,"Qualifications of Instructor:",{"$f":"'PDE3003 Instructor List'!C36","v":{"$error":"#N/A"}},null,null,null,null,null,null,null,null,null,null,null,null,null,{"$f":"D2284","v":{"$error":"#N/A"}}]
[]
[null,null,"Instructor's Home Address:"]
[]
[]
[]
[]
[null,null,null,"City, State and Zip Code"]
[]
[null,null,null,null,"Is this instructor currently employed by the school? "]
[]
[null,null,"School Director:"]
[null,null,null,"By placing my name above, I certify that, to the best of my knowledge, the information reported herein is true and accurate."]
[]
[null,null,"Date of Certification:"]
[]
["Names of courses to be taught by this instructor in the proposed new program:"]
[]
["Courses:"]
[]
[]
[]
[]
[]
[]
[]
[]
[]
["Courses taught by this instructor in OTHER programs at the school:",null,null,null,null,null,null,null,null,null,null,null,null,null,null,null,null,{"$f":"D2284","v":{"$error":"#N/A"}}]
[]
["Courses:"]
[]
[]
[]
[]
[]
[]
[]
[]
[]
[]
[]
["Instructor's Education:"]
[null,null,null,null,null,null,null,null,"Award Received and Field of Study",null,null,null,null,"Dates Attended"]
[null,"Institution Attended",null,null,null,null,null,null,"(Examples: BS-Computer Science or ",null,null,null,null,"Month/Year",null,"Month/Year"]
[null,"School name, city, & state",null,null,null,null,"Graduated",null,"Diploma-Carpentry or Certificate-Word Processing)",null,null,null,null,"From",null,"To"]
[]
["College:"]
[]
["College:"]
[]
["Other:"]
[]
["Other:"]
[]
["High School:"]
[]
["Instructor's Program-Specific Teaching and/or Work Experience (list chronologically starting with the most recent employer, including this school):",null,null,null,null,null,null,null,null,null,null,null,null,null,null,null,null,{"$f":"D2284","v":{"$error":"#N/A"}}]
[]
[null,null,null,null,null,null,null,null,null,null,null,"Dates of Employment"]
[null,"Employer",null,null,null,null,"Subject(s) Taught or Position Held",null,null,null,null,"Month/Year",null,"Month/Year"]
[null,"Employer name, city, & state",null,null,null,null,"(include supervisory experience)",null,null,null,null,"From",null,"To"]
[]
[]
[]
[]
[]
[]
[]
[]
[]
[]
[]
[]
[]
[]
[]
[]
[]
["Instructor's Verification of Qualifications:",null,null,null,null,null,null,null,null,null,null,null,null,null,null,null,null,{"$f":"D2284","v":{"$error":"#N/A"}}]
[]
[null," The Board's regulations require instructors to have at least one of the qualifications listed below (22 Pa. Code Section 73.104).  "]
[null," Check all of the qualifications that apply, then attach the documentation needed for at least one of the qualifications you checked."]
[]
[null,"Baccalaureate degree or higher in the intended field of instruction.  (Embed copy of degree and/or transcript.)"]
[]
[null,"Two or more years' work experience in the intended field of instruction which is acceptable to the School Director."]
[null,"(Embed resume and/or letters from former employers describing the nature of the instructor's former duties.)"]
[]
[null,"Two or more years' teaching experience in the intended field of instruction.  "]
[null,"(Embed resume and/or letters from former employers that verify teaching experience and qualification in the field.)"]
[]
[null,"Journeyman's license relevant to the intended field of instruction.  (Embed copy of license.)"]
[]
[null,"Demonstrated competency in the intended field of instruction. "]
[null,"(Embed documentation of competency.  Such documentation would include a copy of a widely accepted license or certificate such "]
[null,"as a CDL, a MCSE certificate, or a \"Train the Trainer\" certificate.)"]
[]
[null,"State certification as a Vocational Educator in the intended field of instruction.  (Embed copy of certificate.)"]
[]
[null,"Embed evidence to verify the instructor's qualifications:"]
[]
[]
[]
[]
[]
[]
[]
[null,null,"Qualifications of Instructor:",{"$f":"'PDE3003 Instructor List'!C37","v":{"$error":"#N/A"}},null,null,null,null,null,null,null,null,null,null,null,null,null,{"$f":"D2392","v":{"$error":"#N/A"}}]
[]
[null,null,"Instructor's Home Address:"]
[]
[]
[]
[]
[null,null,null,"City, State and Zip Code"]
[]
[null,null,null,null,"Is this instructor currently employed by the school? "]
[]
[null,null,"School Director:"]
[null,null,null,"By placing my name above, I certify that, to the best of my knowledge, the information reported herein is true and accurate."]
[]
[null,null,"Date of Certification:"]
[]
["Names of courses to be taught by this instructor in the proposed new program:"]
[]
["Courses:"]
[]
[]
[]
[]
[]
[]
[]
[]
[]
["Courses taught by this instructor in OTHER programs at the school:",null,null,null,null,null,null,null,null,null,null,null,null,null,null,null,null,{"$f":"D2392","v":{"$error":"#N/A"}}]
[]
["Courses:"]
[]
[]
[]
[]
[]
[]
[]
[]
[]
[]
[]
["Instructor's Education:"]
[null,null,null,null,null,null,null,null,"Award Received and Field of Study",null,null,null,null,"Dates Attended"]
[null,"Institution Attended",null,null,null,null,null,null,"(Examples: BS-Computer Science or ",null,null,null,null,"Month/Year",null,"Month/Year"]
[null,"School name, city, & state",null,null,null,null,"Graduated",null,"Diploma-Carpentry or Certificate-Word Processing)",null,null,null,null,"From",null,"To"]
[]
["College:"]
[]
["College:"]
[]
["Other:"]
[]
["Other:"]
[]
["High School:"]
[]
["Instructor's Program-Specific Teaching and/or Work Experience (list chronologically starting with the most recent employer, including this school):",null,null,null,null,null,null,null,null,null,null,null,null,null,null,null,null,{"$f":"D2932","v":{"$error":"#N/A"}}]
[]
[null,null,null,null,null,null,null,null,null,null,null,"Dates of Employment"]
[null,"Employer",null,null,null,null,"Subject(s) Taught or Position Held",null,null,null,null,"Month/Year",null,"Month/Year"]
[null,"Employer name, city, & state",null,null,null,null,"(include supervisory experience)",null,null,null,null,"From",null,"To"]
[]
[]
[]
[]
[]
[]
[]
[]
[]
[]
[]
[]
[]
[]
[]
[]
[]
["Instructor's Verification of Qualifications:",null,null,null,null,null,null,null,null,null,null,null,null,null,null,null,null,{"$f":"D2932","v":{"$error":"#N/A"}}]
[]
[null," The Board's regulations require instructors to have at least one of the qualifications listed below (22 Pa. Code Section 73.104).  "]
[null," Check all of the qualifications that apply, then attach the documentation needed for at least one of the qualifications you checked."]
[]
[null,"Baccalaureate degree or higher in the intended field of instruction.  (Embed copy of degree and/or transcript.)"]
[]
[null,"Two or more years' work experience in the intended field of instruction which is acceptable to the School Director."]
[null,"(Embed resume and/or letters from former employers describing the nature of the instructor's former duties.)"]
[]
[null,"Two or more years' teaching experience in the intended field of instruction.  "]
[null,"(Embed resume and/or letters from former employers that verify teaching experience and qualification in the field.)"]
[]
[null,"Journeyman's license relevant to the intended field of instruction.  (Embed copy of license.)"]
[]
[null,"Demonstrated competency in the intended field of instruction. "]
[null,"(Embed documentation of competency.  Such documentation would include a copy of a widely accepted license or certificate such "]
[null,"as a CDL, a MCSE certificate, or a \"Train the Trainer\" certificate.)"]
[]
[null,"State certification as a Vocational Educator in the intended field of instruction.  (Embed copy of certificate.)"]
[]
[null,"Embed evidence to verify the instructor's qualifications:"]
[]
[]
[]
[]
[]
[]
[]
[null,null,"Qualifications of Instructor:",{"$f":"'PDE3003 Instructor List'!C38","v":{"$error":"#N/A"}},null,null,null,null,null,null,null,null,null,null,null,null,null,{"$f":"D2500","v":{"$error":"#N/A"}}]
[]
[null,null,"Instructor's Home Address:"]
[]
[]
[]
[]
[null,null,null,"City, State and Zip Code"]
[]
[null,null,null,null,"Is this instructor currently employed by the school? "]
[]
[null,null,"School Director:"]
[null,null,null,"By placing my name above, I certify that, to the best of my knowledge, the information reported herein is true and accurate."]
[]
[null,null,"Date of Certification:"]
[]
["Names of courses to be taught by this instructor in the proposed new program:"]
[]
["Courses:"]
[]
[]
[]
[]
[]
[]
[]
[]
[]
["Courses taught by this instructor in OTHER programs at the school:",null,null,null,null,null,null,null,null,null,null,null,null,null,null,null,null,{"$f":"D2500","v":{"$error":"#N/A"}}]
[]
["Courses:"]
[]
[]
[]
[]
[]
[]
[]
[]
[]
[]
[]
["Instructor's Education:"]
[null,null,null,null,null,null,null,null,"Award Received and Field of Study",null,null,null,null,"Dates Attended"]
[null,"Institution Attended",null,null,null,null,null,null,"(Examples: BS-Computer Science or ",null,null,null,null,"Month/Year",null,"Month/Year"]
[null,"School name, city, & state",null,null,null,null,"Graduated",null,"Diploma-Carpentry or Certificate-Word Processing)",null,null,null,null,"From",null,"To"]
[]
["College:"]
[]
["College:"]
[]
["Other:"]
[]
["Other:"]
[]
["High School:"]
[]
["Instructor's Program-Specific Teaching and/or Work Experience (list chronologically starting with the most recent employer, including this school):",null,null,null,null,null,null,null,null,null,null,null,null,null,null,null,null,{"$f":"D2500","v":{"$error":"#N/A"}}]
[]
[null,null,null,null,null,null,null,null,null,null,null,"Dates of Employment"]
[null,"Employer",null,null,null,null,"Subject(s) Taught or Position Held",null,null,null,null,"Month/Year",null,"Month/Year"]
[null,"Employer name, city, & state",null,null,null,null,"(include supervisory experience)",null,null,null,null,"From",null,"To"]
[]
[]
[]
[]
[]
[]
[]
[]
[]
[]
[]
[]
[]
[]
[]
[]
[]
["Instructor's Verification of Qualifications:",null,null,null,null,null,null,null,null,null,null,null,null,null,null,null,null,{"$f":"D2500","v":{"$error":"#N/A"}}]
[]
[null," The Board's regulations require instructors to have at least one of the qualifications listed below (22 Pa. Code Section 73.104).  "]
[null," Check all of the qualifications that apply, then attach the documentation needed for at least one of the qualifications you checked."]
[]
[null,"Baccalaureate degree or higher in the intended field of instruction.  (Embed copy of degree and/or transcript.)"]
[]
[null,"Two or more years' work experience in the intended field of instruction which is acceptable to the School Director."]
[null,"(Embed resume and/or letters from former employers describing the nature of the instructor's former duties.)"]
[]
[null,"Two or more years' teaching experience in the intended field of instruction.  "]
[null,"(Embed resume and/or letters from former employers that verify teaching experience and qualification in the field.)"]
[]
[null,"Journeyman's license relevant to the intended field of instruction.  (Embed copy of license.)"]
[]
[null,"Demonstrated competency in the intended field of instruction. "]
[null,"(Embed documentation of competency.  Such documentation would include a copy of a widely accepted license or certificate such "]
[null,"as a CDL, a MCSE certificate, or a \"Train the Trainer\" certificate.)"]
[]
[null,"State certification as a Vocational Educator in the intended field of instruction.  (Embed copy of certificate.)"]
[]
[null,"Embed evidence to verify the instructor's qualifications:"]
[]
[]
[]
[]
[]
[]
[]
[null,null,"Qualifications of Instructor:",{"$f":"'PDE3003 Instructor List'!C39","v":{"$error":"#N/A"}},null,null,null,null,null,null,null,null,null,null,null,null,null,{"$f":"D2608","v":{"$error":"#N/A"}}]
[]
[null,null,"Instructor's Home Address:"]
[]
[]
[]
[]
[null,null,null,"City, State and Zip Code"]
[]
[null,null,null,null,"Is this instructor currently employed by the school? "]
[]
[null,null,"School Director:"]
[null,null,null,"By placing my name above, I certify that, to the best of my knowledge, the information reported herein is true and accurate."]
[]
[null,null,"Date of Certification:"]
[]
["Names of courses to be taught by this instructor in the proposed new program:"]
[]
["Courses:"]
[]
[]
[]
[]
[]
[]
[]
[]
[]
["Courses taught by this instructor in OTHER programs at the school:",null,null,null,null,null,null,null,null,null,null,null,null,null,null,null,null,{"$f":"D2608","v":{"$error":"#N/A"}}]
[]
["Courses:"]
[]
[]
[]
[]
[]
[]
[]
[]
[]
[]
[]
["Instructor's Education:"]
[null,null,null,null,null,null,null,null,"Award Received and Field of Study",null,null,null,null,"Dates Attended"]
[null,"Institution Attended",null,null,null,null,null,null,"(Examples: BS-Computer Science or ",null,null,null,null,"Month/Year",null,"Month/Year"]
[null,"School name, city, & state",null,null,null,null,"Graduated",null,"Diploma-Carpentry or Certificate-Word Processing)",null,null,null,null,"From",null,"To"]
[]
["College:"]
[]
["College:"]
[]
["Other:"]
[]
["Other:"]
[]
["High School:"]
[]
["Instructor's Program-Specific Teaching and/or Work Experience (list chronologically starting with the most recent employer, including this school):",null,null,null,null,null,null,null,null,null,null,null,null,null,null,null,null,{"$f":"D2608","v":{"$error":"#N/A"}}]
[]
[null,null,null,null,null,null,null,null,null,null,null,"Dates of Employment"]
[null,"Employer",null,null,null,null,"Subject(s) Taught or Position Held",null,null,null,null,"Month/Year",null,"Month/Year"]
[null,"Employer name, city, & state",null,null,null,null,"(include supervisory experience)",null,null,null,null,"From",null,"To"]
[]
[]
[]
[]
[]
[]
[]
[]
[]
[]
[]
[]
[]
[]
[]
[]
[]
["Instructor's Verification of Qualifications:",null,null,null,null,null,null,null,null,null,null,null,null,null,null,null,null,{"$f":"D2608","v":{"$error":"#N/A"}}]
[]
[null," The Board's regulations require instructors to have at least one of the qualifications listed below (22 Pa. Code Section 73.104).  "]
[null," Check all of the qualifications that apply, then attach the documentation needed for at least one of the qualifications you checked."]
[]
[null,"Baccalaureate degree or higher in the intended field of instruction.  (Embed copy of degree and/or transcript.)"]
[]
[null,"Two or more years' work experience in the intended field of instruction which is acceptable to the School Director."]
[null,"(Embed resume and/or letters from former employers describing the nature of the instructor's former duties.)"]
[]
[null,"Two or more years' teaching experience in the intended field of instruction.  "]
[null,"(Embed resume and/or letters from former employers that verify teaching experience and qualification in the field.)"]
[]
[null,"Journeyman's license relevant to the intended field of instruction.  (Embed copy of license.)"]
[]
[null,"Demonstrated competency in the intended field of instruction. "]
[null,"(Embed documentation of competency.  Such documentation would include a copy of a widely accepted license or certificate such "]
[null,"as a CDL, a MCSE certificate, or a \"Train the Trainer\" certificate.)"]
[]
[null,"State certification as a Vocational Educator in the intended field of instruction.  (Embed copy of certificate.)"]
[]
[null,"Embed evidence to verify the instructor's qualifications:"]
[]
[]
[]
[]
[]
[]
[]
[null,null,"Qualifications of Instructor:",{"$f":"'PDE3003 Instructor List'!C40","v":{"$error":"#N/A"}},null,null,null,null,null,null,null,null,null,null,null,null,null,{"$f":"D2716","v":{"$error":"#N/A"}}]
[]
[null,null,"Instructor's Home Address:"]
[]
[]
[]
[]
[null,null,null,"City, State and Zip Code"]
[]
[null,null,null,null,"Is this instructor currently employed by the school? "]
[]
[null,null,"School Director:"]
[null,null,null,"By placing my name above, I certify that, to the best of my knowledge, the information reported herein is true and accurate."]
[]
[null,null,"Date of Certification:"]
[]
["Names of courses to be taught by this instructor in the proposed new program:"]
[]
["Courses:"]
[]
[]
[]
[]
[]
[]
[]
[]
[]
["Courses taught by this instructor in OTHER programs at the school:",null,null,null,null,null,null,null,null,null,null,null,null,null,null,null,null,{"$f":"D2716","v":{"$error":"#N/A"}}]
[]
["Courses:"]
[]
[]
[]
[]
[]
[]
[]
[]
[]
[]
[]
["Instructor's Education:"]
[null,null,null,null,null,null,null,null,"Award Received and Field of Study",null,null,null,null,"Dates Attended"]
[null,"Institution Attended",null,null,null,null,null,null,"(Examples: BS-Computer Science or ",null,null,null,null,"Month/Year",null,"Month/Year"]
[null,"School name, city, & state",null,null,null,null,"Graduated",null,"Diploma-Carpentry or Certificate-Word Processing)",null,null,null,null,"From",null,"To"]
[]
["College:"]
[]
["College:"]
[]
["Other:"]
[]
["Other:"]
[]
["High School:"]
[]
["Instructor's Program-Specific Teaching and/or Work Experience (list chronologically starting with the most recent employer, including this school):",null,null,null,null,null,null,null,null,null,null,null,null,null,null,null,null,{"$f":"D2716","v":{"$error":"#N/A"}}]
[]
[null,null,null,null,null,null,null,null,null,null,null,"Dates of Employment"]
[null,"Employer",null,null,null,null,"Subject(s) Taught or Position Held",null,null,null,null,"Month/Year",null,"Month/Year"]
[null,"Employer name, city, & state",null,null,null,null,"(include supervisory experience)",null,null,null,null,"From",null,"To"]
[]
[]
[]
[]
[]
[]
[]
[]
[]
[]
[]
[]
[]
[]
[]
[]
[]
["Instructor's Verification of Qualifications:",null,null,null,null,null,null,null,null,null,null,null,null,null,null,null,null,{"$f":"D2716","v":{"$error":"#N/A"}}]
[]
[null," The Board's regulations require instructors to have at least one of the qualifications listed below (22 Pa. Code Section 73.104).  "]
[null," Check all of the qualifications that apply, then attach the documentation needed for at least one of the qualifications you checked."]
[]
[null,"Baccalaureate degree or higher in the intended field of instruction.  (Embed copy of degree and/or transcript.)"]
[]
[null,"Two or more years' work experience in the intended field of instruction which is acceptable to the School Director."]
[null,"(Embed resume and/or letters from former employers describing the nature of the instructor's former duties.)"]
[]
[null,"Two or more years' teaching experience in the intended field of instruction.  "]
[null,"(Embed resume and/or letters from former employers that verify teaching experience and qualification in the field.)"]
[]
[null,"Journeyman's license relevant to the intended field of instruction.  (Embed copy of license.)"]
[]
[null,"Demonstrated competency in the intended field of instruction. "]
[null,"(Embed documentation of competency.  Such documentation would include a copy of a widely accepted license or certificate such "]
[null,"as a CDL, a MCSE certificate, or a \"Train the Trainer\" certificate.)"]
[]
[null,"State certification as a Vocational Educator in the intended field of instruction.  (Embed copy of certificate.)"]
[]
[null,"Embed evidence to verify the instructor's qualifications:"]
[]
[]
[]
[]
[]
[]
[]
[null,null,"Qualifications of Instructor:",{"$f":"'PDE3003 Instructor List'!C41","v":{"$error":"#N/A"}},null,null,null,null,null,null,null,null,null,null,null,null,null,{"$f":"D2824","v":{"$error":"#N/A"}}]
[]
[null,null,"Instructor's Home Address:"]
[]
[]
[]
[]
[null,null,null,"City, State and Zip Code"]
[]
[null,null,null,null,"Is this instructor currently employed by the school? "]
[]
[null,null,"School Director:"]
[null,null,null,"By placing my name above, I certify that, to the best of my knowledge, the information reported herein is true and accurate."]
[]
[null,null,"Date of Certification:"]
[]
["Names of courses to be taught by this instructor in the proposed new program:"]
[]
["Courses:"]
[]
[]
[]
[]
[]
[]
[]
[]
[]
["Courses taught by this instructor in OTHER programs at the school:",null,null,null,null,null,null,null,null,null,null,null,null,null,null,null,null,{"$f":"D2824","v":{"$error":"#N/A"}}]
[]
["Courses:"]
[]
[]
[]
[]
[]
[]
[]
[]
[]
[]
[]
["Instructor's Education:"]
[null,null,null,null,null,null,null,null,"Award Received and Field of Study",null,null,null,null,"Dates Attended"]
[null,"Institution Attended",null,null,null,null,null,null,"(Examples: BS-Computer Science or ",null,null,null,null,"Month/Year",null,"Month/Year"]
[null,"School name, city, & state",null,null,null,null,"Graduated",null,"Diploma-Carpentry or Certificate-Word Processing)",null,null,null,null,"From",null,"To"]
[]
["College:"]
[]
["College:"]
[]
["Other:"]
[]
["Other:"]
[]
["High School:"]
[]
["Instructor's Program-Specific Teaching and/or Work Experience (list chronologically starting with the most recent employer, including this school):",null,null,null,null,null,null,null,null,null,null,null,null,null,null,null,null,{"$f":"D2824","v":{"$error":"#N/A"}}]
[]
[null,null,null,null,null,null,null,null,null,null,null,"Dates of Employment"]
[null,"Employer",null,null,null,null,"Subject(s) Taught or Position Held",null,null,null,null,"Month/Year",null,"Month/Year"]
[null,"Employer name, city, & state",null,null,null,null,"(include supervisory experience)",null,null,null,null,"From",null,"To"]
[]
[]
[]
[]
[]
[]
[]
[]
[]
[]
[]
[]
[]
[]
[]
[]
[]
["Instructor's Verification of Qualifications:",null,null,null,null,null,null,null,null,null,null,null,null,null,null,null,null,{"$f":"D2824","v":{"$error":"#N/A"}}]
[]
[null," The Board's regulations require instructors to have at least one of the qualifications listed below (22 Pa. Code Section 73.104).  "]
[null," Check all of the qualifications that apply, then attach the documentation needed for at least one of the qualifications you checked."]
[]
[null,"Baccalaureate degree or higher in the intended field of instruction.  (Embed copy of degree and/or transcript.)"]
[]
[null,"Two or more years' work experience in the intended field of instruction which is acceptable to the School Director."]
[null,"(Embed resume and/or letters from former employers describing the nature of the instructor's former duties.)"]
[]
[null,"Two or more years' teaching experience in the intended field of instruction.  "]
[null,"(Embed resume and/or letters from former employers that verify teaching experience and qualification in the field.)"]
[]
[null,"Journeyman's license relevant to the intended field of instruction.  (Embed copy of license.)"]
[]
[null,"Demonstrated competency in the intended field of instruction. "]
[null,"(Embed documentation of competency.  Such documentation would include a copy of a widely accepted license or certificate such "]
[null,"as a CDL, a MCSE certificate, or a \"Train the Trainer\" certificate.)"]
[]
[null,"State certification as a Vocational Educator in the intended field of instruction.  (Embed copy of certificate.)"]
[]
[null,"Embed evidence to verify the instructor's qualifications:"]
[]
[]
[]
[]
[]
[]
[]
[null,null,"Qualifications of Instructor:",{"$f":"'PDE3003 Instructor List'!C42","v":{"$error":"#N/A"}},null,null,null,null,null,null,null,null,null,null,null,null,null,{"$f":"D2932","v":{"$error":"#N/A"}}]
[]
[null,null,"Instructor's Home Address:"]
[]
[]
[]
[]
[null,null,null,"City, State and Zip Code"]
[]
[null,null,null,null,"Is this instructor currently employed by the school? "]
[]
[null,null,"School Director:"]
[null,null,null,"By placing my name above, I certify that, to the best of my knowledge, the information reported herein is true and accurate."]
[]
[null,null,"Date of Certification:"]
[]
["Names of courses to be taught by this instructor in the proposed new program:"]
[]
["Courses:"]
[]
[]
[]
[]
[]
[]
[]
[]
[]
["Courses taught by this instructor in OTHER programs at the school:",null,null,null,null,null,null,null,null,null,null,null,null,null,null,null,null,{"$f":"D2932","v":{"$error":"#N/A"}}]
[]
["Courses:"]
[]
[]
[]
[]
[]
[]
[]
[]
[]
[]
[]
["Instructor's Education:"]
[null,null,null,null,null,null,null,null,"Award Received and Field of Study",null,null,null,null,"Dates Attended"]
[null,"Institution Attended",null,null,null,null,null,null,"(Examples: BS-Computer Science or ",null,null,null,null,"Month/Year",null,"Month/Year"]
[null,"School name, city, & state",null,null,null,null,"Graduated",null,"Diploma-Carpentry or Certificate-Word Processing)",null,null,null,null,"From",null,"To"]
[]
["College:"]
[]
["College:"]
[]
["Other:"]
[]
["Other:"]
[]
["High School:"]
[]
["Instructor's Program-Specific Teaching and/or Work Experience (list chronologically starting with the most recent employer, including this school):",null,null,null,null,null,null,null,null,null,null,null,null,null,null,null,null,{"$f":"D2932","v":{"$error":"#N/A"}}]
[]
[null,null,null,null,null,null,null,null,null,null,null,"Dates of Employment"]
[null,"Employer",null,null,null,null,"Subject(s) Taught or Position Held",null,null,null,null,"Month/Year",null,"Month/Year"]
[null,"Employer name, city, & state",null,null,null,null,"(include supervisory experience)",null,null,null,null,"From",null,"To"]
[]
[]
[]
[]
[]
[]
[]
[]
[]
[]
[]
[]
[]
[]
[]
[]
[]
["Instructor's Verification of Qualifications:",null,null,null,null,null,null,null,null,null,null,null,null,null,null,null,null,{"$f":"D2932","v":{"$error":"#N/A"}}]
[]
[null," The Board's regulations require instructors to have at least one of the qualifications listed below (22 Pa. Code Section 73.104).  "]
[null," Check all of the qualifications that apply, then attach the documentation needed for at least one of the qualifications you checked."]
[]
[null,"Baccalaureate degree or higher in the intended field of instruction.  (Embed copy of degree and/or transcript.)"]
[]
[null,"Two or more years' work experience in the intended field of instruction which is acceptable to the School Director."]
[null,"(Embed resume and/or letters from former employers describing the nature of the instructor's former duties.)"]
[]
[null,"Two or more years' teaching experience in the intended field of instruction.  "]
[null,"(Embed resume and/or letters from former employers that verify teaching experience and qualification in the field.)"]
[]
[null,"Journeyman's license relevant to the intended field of instruction.  (Embed copy of license.)"]
[]
[null,"Demonstrated competency in the intended field of instruction. "]
[null,"(Embed documentation of competency.  Such documentation would include a copy of a widely accepted license or certificate such "]
[null,"as a CDL, a MCSE certificate, or a \"Train the Trainer\" certificate.)"]
[]
[null,"State certification as a Vocational Educator in the intended field of instruction.  (Embed copy of certificate.)"]
[]
[null,"Embed evidence to verify the instructor's qualifications:"]
[]
[]
[]
[]
[]
[]
[]
[null,null,"Qualifications of Instructor:",{"$f":"'PDE3003 Instructor List'!C43","v":{"$error":"#N/A"}},null,null,null,null,null,null,null,null,null,null,null,null,null,{"$f":"D3040","v":{"$error":"#N/A"}}]
[]
[null,null,"Instructor's Home Address:"]
[]
[]
[]
[]
[null,null,null,"City, State and Zip Code"]
[]
[null,null,null,null,"Is this instructor currently employed by the school? "]
[]
[null,null,"School Director:"]
[null,null,null,"By placing my name above, I certify that, to the best of my knowledge, the information reported herein is true and accurate."]
[]
[null,null,"Date of Certification:"]
[]
["Names of courses to be taught by this instructor in the proposed new program:"]
[]
["Courses:"]
[]
[]
[]
[]
[]
[]
[]
[]
[]
["Courses taught by this instructor in OTHER programs at the school:",null,null,null,null,null,null,null,null,null,null,null,null,null,null,null,null,{"$f":"D3040","v":{"$error":"#N/A"}}]
[]
["Courses:"]
[]
[]
[]
[]
[]
[]
[]
[]
[]
[]
[]
["Instructor's Education:"]
[null,null,null,null,null,null,null,null,"Award Received and Field of Study",null,null,null,null,"Dates Attended"]
[null,"Institution Attended",null,null,null,null,null,null,"(Examples: BS-Computer Science or ",null,null,null,null,"Month/Year",null,"Month/Year"]
[null,"School name, city, & state",null,null,null,null,"Graduated",null,"Diploma-Carpentry or Certificate-Word Processing)",null,null,null,null,"From",null,"To"]
[]
["College:"]
[]
["College:"]
[]
["Other:"]
[]
["Other:"]
[]
["High School:"]
[]
["Instructor's Program-Specific Teaching and/or Work Experience (list chronologically starting with the most recent employer, including this school):",null,null,null,null,null,null,null,null,null,null,null,null,null,null,null,null,{"$f":"D3040","v":{"$error":"#N/A"}}]
[]
[null,null,null,null,null,null,null,null,null,null,null,"Dates of Employment"]
[null,"Employer",null,null,null,null,"Subject(s) Taught or Position Held",null,null,null,null,"Month/Year",null,"Month/Year"]
[null,"Employer name, city, & state",null,null,null,null,"(include supervisory experience)",null,null,null,null,"From",null,"To"]
[]
[]
[]
[]
[]
[]
[]
[]
[]
[]
[]
[]
[]
[]
[]
[]
[]
["Instructor's Verification of Qualifications:",null,null,null,null,null,null,null,null,null,null,null,null,null,null,null,null,{"$f":"D3040","v":{"$error":"#N/A"}}]
[]
[null," The Board's regulations require instructors to have at least one of the qualifications listed below (22 Pa. Code Section 73.104).  "]
[null," Check all of the qualifications that apply, then attach the documentation needed for at least one of the qualifications you checked."]
[]
[null,"Baccalaureate degree or higher in the intended field of instruction.  (Embed copy of degree and/or transcript.)"]
[]
[null,"Two or more years' work experience in the intended field of instruction which is acceptable to the School Director."]
[null,"(Embed resume and/or letters from former employers describing the nature of the instructor's former duties.)"]
[]
[null,"Two or more years' teaching experience in the intended field of instruction.  "]
[null,"(Embed resume and/or letters from former employers that verify teaching experience and qualification in the field.)"]
[]
[null,"Journeyman's license relevant to the intended field of instruction.  (Embed copy of license.)"]
[]
[null,"Demonstrated competency in the intended field of instruction. "]
[null,"(Embed documentation of competency.  Such documentation would include a copy of a widely accepted license or certificate such "]
[null,"as a CDL, a MCSE certificate, or a \"Train the Trainer\" certificate.)"]
[]
[null,"State certification as a Vocational Educator in the intended field of instruction.  (Embed copy of certificate.)"]
[]
[null,"Embed evidence to verify the instructor's qualifications:"]
[]
[]
[]
[]
[]
[]
[]
[]
[null,null,"Qualifications of Instructor:",{"$f":"'PDE3003 Instructor List'!C44","v":{"$error":"#N/A"}},null,null,null,null,null,null,null,null,null,null,null,null,null,{"$f":"D3149","v":{"$error":"#N/A"}}]
[]
[null,null,"Instructor's Home Address:"]
[]
[]
[]
[]
[null,null,null,"City, State and Zip Code"]
[]
[null,null,null,null,"Is this instructor currently employed by the school? "]
[]
[null,null,"School Director:"]
[null,null,null,"By placing my name above, I certify that, to the best of my knowledge, the information reported herein is true and accurate."]
[]
[null,null,"Date of Certification:"]
[]
["Names of courses to be taught by this instructor in the proposed new program:"]
[]
["Courses:"]
[]
[]
[]
[]
[]
[]
[]
[]
[]
["Courses taught by this instructor in OTHER programs at the school:",null,null,null,null,null,null,null,null,null,null,null,null,null,null,null,null,{"$f":"D3149","v":{"$error":"#N/A"}}]
[]
["Courses:"]
[]
[]
[]
[]
[]
[]
[]
[]
[]
[]
[]
["Instructor's Education:"]
[null,null,null,null,null,null,null,null,"Award Received and Field of Study",null,null,null,null,"Dates Attended"]
[null,"Institution Attended",null,null,null,null,null,null,"(Examples: BS-Computer Science or ",null,null,null,null,"Month/Year",null,"Month/Year"]
[null,"School name, city, & state",null,null,null,null,"Graduated",null,"Diploma-Carpentry or Certificate-Word Processing)",null,null,null,null,"From",null,"To"]
[]
["College:"]
[]
["College:"]
[]
["Other:"]
[]
["Other:"]
[]
["High School:"]
[]
["Instructor's Program-Specific Teaching and/or Work Experience (list chronologically starting with the most recent employer, including this school):",null,null,null,null,null,null,null,null,null,null,null,null,null,null,null,null,{"$f":"D3149","v":{"$error":"#N/A"}}]
[]
[null,null,null,null,null,null,null,null,null,null,null,"Dates of Employment"]
[null,"Employer",null,null,null,null,"Subject(s) Taught or Position Held",null,null,null,null,"Month/Year",null,"Month/Year"]
[null,"Employer name, city, & state",null,null,null,null,"(include supervisory experience)",null,null,null,null,"From",null,"To"]
[]
[]
[]
[]
[]
[]
[]
[]
[]
[]
[]
[]
[]
[]
[]
[]
[]
["Instructor's Verification of Qualifications:",null,null,null,null,null,null,null,null,null,null,null,null,null,null,null,null,{"$f":"D3149","v":{"$error":"#N/A"}}]
[]
[null," The Board's regulations require instructors to have at least one of the qualifications listed below (22 Pa. Code Section 73.104).  "]
[null," Check all of the qualifications that apply, then attach the documentation needed for at least one of the qualifications you checked."]
[]
[null,"Baccalaureate degree or higher in the intended field of instruction.  (Embed copy of degree and/or transcript.)"]
[]
[null,"Two or more years' work experience in the intended field of instruction which is acceptable to the School Director."]
[null,"(Embed resume and/or letters from former employers describing the nature of the instructor's former duties.)"]
[]
[null,"Two or more years' teaching experience in the intended field of instruction.  "]
[null,"(Embed resume and/or letters from former employers that verify teaching experience and qualification in the field.)"]
[]
[null,"Journeyman's license relevant to the intended field of instruction.  (Embed copy of license.)"]
[]
[null,"Demonstrated competency in the intended field of instruction. "]
[null,"(Embed documentation of competency.  Such documentation would include a copy of a widely accepted license or certificate such "]
[null,"as a CDL, a MCSE certificate, or a \"Train the Trainer\" certificate.)"]
[]
[null,"State certification as a Vocational Educator in the intended field of instruction.  (Embed copy of certificate.)"]
[]
[null,"Embed evidence to verify the instructor's qualifications:"]
[]
[]
[]
[]
[]
[]
[]
[null,null,"Qualifications of Instructor:",{"$f":"'PDE3003 Instructor List'!C45","v":{"$error":"#N/A"}},null,null,null,null,null,null,null,null,null,null,null,null,null,{"$f":"D3257","v":{"$error":"#N/A"}}]
[]
[null,null,"Instructor's Home Address:"]
[]
[]
[]
[]
[null,null,null,"City, State and Zip Code"]
[]
[null,null,null,null,"Is this instructor currently employed by the school? "]
[]
[null,null,"School Director:"]
[null,null,null,"By placing my name above, I certify that, to the best of my knowledge, the information reported herein is true and accurate."]
[]
[null,null,"Date of Certification:"]
[]
["Names of courses to be taught by this instructor in the proposed new program:"]
[]
["Courses:"]
[]
[]
[]
[]
[]
[]
[]
[]
[]
["Courses taught by this instructor in OTHER programs at the school:",null,null,null,null,null,null,null,null,null,null,null,null,null,null,null,null,{"$f":"D3257","v":{"$error":"#N/A"}}]
[]
["Courses:"]
[]
[]
[]
[]
[]
[]
[]
[]
[]
[]
[]
["Instructor's Education:"]
[null,null,null,null,null,null,null,null,"Award Received and Field of Study",null,null,null,null,"Dates Attended"]
[null,"Institution Attended",null,null,null,null,null,null,"(Examples: BS-Computer Science or ",null,null,null,null,"Month/Year",null,"Month/Year"]
[null,"School name, city, & state",null,null,null,null,"Graduated",null,"Diploma-Carpentry or Certificate-Word Processing)",null,null,null,null,"From",null,"To"]
[]
["College:"]
[]
["College:"]
[]
["Other:"]
[]
["Other:"]
[]
["High School:"]
[]
["Instructor's Program-Specific Teaching and/or Work Experience (list chronologically starting with the most recent employer, including this school):",null,null,null,null,null,null,null,null,null,null,null,null,null,null,null,null,{"$f":"D3257","v":{"$error":"#N/A"}}]
[]
[null,null,null,null,null,null,null,null,null,null,null,"Dates of Employment"]
[null,"Employer",null,null,null,null,"Subject(s) Taught or Position Held",null,null,null,null,"Month/Year",null,"Month/Year"]
[null,"Employer name, city, & state",null,null,null,null,"(include supervisory experience)",null,null,null,null,"From",null,"To"]
[]
[]
[]
[]
[]
[]
[]
[]
[]
[]
[]
[]
[]
[]
[]
[]
[]
["Instructor's Verification of Qualifications:",null,null,null,null,null,null,null,null,null,null,null,null,null,null,null,null,{"$f":"D3257","v":{"$error":"#N/A"}}]
[]
[null," The Board's regulations require instructors to have at least one of the qualifications listed below (22 Pa. Code Section 73.104).  "]
[null," Check all of the qualifications that apply, then attach the documentation needed for at least one of the qualifications you checked."]
[]
[null,"Baccalaureate degree or higher in the intended field of instruction.  (Embed copy of degree and/or transcript.)"]
[]
[null,"Two or more years' work experience in the intended field of instruction which is acceptable to the School Director."]
[null,"(Embed resume and/or letters from former employers describing the nature of the instructor's former duties.)"]
[]
[null,"Two or more years' teaching experience in the intended field of instruction.  "]
[null,"(Embed resume and/or letters from former employers that verify teaching experience and qualification in the field.)"]
[]
[null,"Journeyman's license relevant to the intended field of instruction.  (Embed copy of license.)"]
[]
[null,"Demonstrated competency in the intended field of instruction. "]
[null,"(Embed documentation of competency.  Such documentation would include a copy of a widely accepted license or certificate such "]
[null,"as a CDL, a MCSE certificate, or a \"Train the Trainer\" certificate.)"]
[]
[null,"State certification as a Vocational Educator in the intended field of instruction.  (Embed copy of certificate.)"]
[]
[null,"Embed evidence to verify the instructor's qualifications:"]
[]
[]
[]
[]
[]
[]
[]
[null,null,"Qualifications of Instructor:",{"$f":"'PDE3003 Instructor List'!C46","v":{"$error":"#N/A"}},null,null,null,null,null,null,null,null,null,null,null,null,null,{"$f":"D3365","v":{"$error":"#N/A"}}]
[]
[null,null,"Instructor's Home Address:"]
[]
[]
[]
[]
[null,null,null,"City, State and Zip Code"]
[]
[null,null,null,null,"Is this instructor currently employed by the school? "]
[]
[null,null,"School Director:"]
[null,null,null,"By placing my name above, I certify that, to the best of my knowledge, the information reported herein is true and accurate."]
[]
[null,null,"Date of Certification:"]
[]
["Names of courses to be taught by this instructor in the proposed new program:"]
[]
["Courses:"]
[]
[]
[]
[]
[]
[]
[]
[]
[]
["Courses taught by this instructor in OTHER programs at the school:",null,null,null,null,null,null,null,null,null,null,null,null,null,null,null,null,{"$f":"D3365","v":{"$error":"#N/A"}}]
[]
["Courses:"]
[]
[]
[]
[]
[]
[]
[]
[]
[]
[]
[]
["Instructor's Education:"]
[null,null,null,null,null,null,null,null,"Award Received and Field of Study",null,null,null,null,"Dates Attended"]
[null,"Institution Attended",null,null,null,null,null,null,"(Examples: BS-Computer Science or ",null,null,null,null,"Month/Year",null,"Month/Year"]
[null,"School name, city, & state",null,null,null,null,"Graduated",null,"Diploma-Carpentry or Certificate-Word Processing)",null,null,null,null,"From",null,"To"]
[]
["College:"]
[]
["College:"]
[]
["Other:"]
[]
["Other:"]
[]
["High School:"]
[]
["Instructor's Program-Specific Teaching and/or Work Experience (list chronologically starting with the most recent employer, including this school):",null,null,null,null,null,null,null,null,null,null,null,null,null,null,null,null,{"$f":"D3365","v":{"$error":"#N/A"}}]
[]
[null,null,null,null,null,null,null,null,null,null,null,"Dates of Employment"]
[null,"Employer",null,null,null,null,"Subject(s) Taught or Position Held",null,null,null,null,"Month/Year",null,"Month/Year"]
[null,"Employer name, city, & state",null,null,null,null,"(include supervisory experience)",null,null,null,null,"From",null,"To"]
[]
[]
[]
[]
[]
[]
[]
[]
[]
[]
[]
[]
[]
[]
[]
[]
[]
["Instructor's Verification of Qualifications:",null,null,null,null,null,null,null,null,null,null,null,null,null,null,null,null,{"$f":"D3365","v":{"$error":"#N/A"}}]
[]
[null," The Board's regulations require instructors to have at least one of the qualifications listed below (22 Pa. Code Section 73.104).  "]
[null," Check all of the qualifications that apply, then attach the documentation needed for at least one of the qualifications you checked."]
[]
[null,"Baccalaureate degree or higher in the intended field of instruction.  (Embed copy of degree and/or transcript.)"]
[]
[null,"Two or more years' work experience in the intended field of instruction which is acceptable to the School Director."]
[null,"(Embed resume and/or letters from former employers describing the nature of the instructor's former duties.)"]
[]
[null,"Two or more years' teaching experience in the intended field of instruction.  "]
[null,"(Embed resume and/or letters from former employers that verify teaching experience and qualification in the field.)"]
[]
[null,"Journeyman's license relevant to the intended field of instruction.  (Embed copy of license.)"]
[]
[null,"Demonstrated competency in the intended field of instruction. "]
[null,"(Embed documentation of competency.  Such documentation would include a copy of a widely accepted license or certificate such "]
[null,"as a CDL, a MCSE certificate, or a \"Train the Trainer\" certificate.)"]
[]
[null,"State certification as a Vocational Educator in the intended field of instruction.  (Embed copy of certificate.)"]
[]
[null,"Embed evidence to verify the instructor's qualifications:"]
[]
[]
[]
[]
[]
[]
[]
[null,null,"Qualifications of Instructor:",{"$f":"'PDE3003 Instructor List'!C47","v":{"$error":"#N/A"}},null,null,null,null,null,null,null,null,null,null,null,null,null,{"$f":"D3473","v":{"$error":"#N/A"}}]
[]
[null,null,"Instructor's Home Address:"]
[]
[]
[]
[]
[null,null,null,"City, State and Zip Code"]
[]
[null,null,null,null,"Is this instructor currently employed by the school? "]
[]
[null,null,"School Director:"]
[null,null,null,"By placing my name above, I certify that, to the best of my knowledge, the information reported herein is true and accurate."]
[]
[null,null,"Date of Certification:"]
[]
["Names of courses to be taught by this instructor in the proposed new program:"]
[]
["Courses:"]
[]
[]
[]
[]
[]
[]
[]
[]
[]
["Courses taught by this instructor in OTHER programs at the school:",null,null,null,null,null,null,null,null,null,null,null,null,null,null,null,null,{"$f":"D3473","v":{"$error":"#N/A"}}]
[]
["Courses:"]
[]
[]
[]
[]
[]
[]
[]
[]
[]
[]
[]
["Instructor's Education:"]
[null,null,null,null,null,null,null,null,"Award Received and Field of Study",null,null,null,null,"Dates Attended"]
[null,"Institution Attended",null,null,null,null,null,null,"(Examples: BS-Computer Science or ",null,null,null,null,"Month/Year",null,"Month/Year"]
[null,"School name, city, & state",null,null,null,null,"Graduated",null,"Diploma-Carpentry or Certificate-Word Processing)",null,null,null,null,"From",null,"To"]
[]
["College:"]
[]
["College:"]
[]
["Other:"]
[]
["Other:"]
[]
["High School:"]
[]
["Instructor's Program-Specific Teaching and/or Work Experience (list chronologically starting with the most recent employer, including this school):",null,null,null,null,null,null,null,null,null,null,null,null,null,null,null,null,{"$f":"D3473","v":{"$error":"#N/A"}}]
[]
[null,null,null,null,null,null,null,null,null,null,null,"Dates of Employment"]
[null,"Employer",null,null,null,null,"Subject(s) Taught or Position Held",null,null,null,null,"Month/Year",null,"Month/Year"]
[null,"Employer name, city, & state",null,null,null,null,"(include supervisory experience)",null,null,null,null,"From",null,"To"]
[]
[]
[]
[]
[]
[]
[]
[]
[]
[]
[]
[]
[]
[]
[]
[]
[]
["Instructor's Verification of Qualifications:",null,null,null,null,null,null,null,null,null,null,null,null,null,null,null,null,{"$f":"D3473","v":{"$error":"#N/A"}}]
[]
[null," The Board's regulations require instructors to have at least one of the qualifications listed below (22 Pa. Code Section 73.104).  "]
[null," Check all of the qualifications that apply, then attach the documentation needed for at least one of the qualifications you checked."]
[]
[null,"Baccalaureate degree or higher in the intended field of instruction.  (Embed copy of degree and/or transcript.)"]
[]
[null,"Two or more years' work experience in the intended field of instruction which is acceptable to the School Director."]
[null,"(Embed resume and/or letters from former employers describing the nature of the instructor's former duties.)"]
[]
[null,"Two or more years' teaching experience in the intended field of instruction.  "]
[null,"(Embed resume and/or letters from former employers that verify teaching experience and qualification in the field.)"]
[]
[null,"Journeyman's license relevant to the intended field of instruction.  (Embed copy of license.)"]
[]
[null,"Demonstrated competency in the intended field of instruction. "]
[null,"(Embed documentation of competency.  Such documentation would include a copy of a widely accepted license or certificate such "]
[null,"as a CDL, a MCSE certificate, or a \"Train the Trainer\" certificate.)"]
[]
[null,"State certification as a Vocational Educator in the intended field of instruction.  (Embed copy of certificate.)"]
[]
[null,"Embed evidence to verify the instructor's qualifications:"]
[]
[]
[]
[]
[]
[]
[]
[null,null,"Qualifications of Instructor:",{"$f":"'PDE3003 Instructor List'!C48","v":{"$error":"#N/A"}},null,null,null,null,null,null,null,null,null,null,null,null,null,{"$f":"D3581","v":{"$error":"#N/A"}}]
[]
[null,null,"Instructor's Home Address:"]
[]
[]
[]
[]
[null,null,null,"City, State and Zip Code"]
[]
[null,null,null,null,"Is this instructor currently employed by the school? "]
[]
[null,null,"School Director:"]
[null,null,null,"By placing my name above, I certify that, to the best of my knowledge, the information reported herein is true and accurate."]
[]
[null,null,"Date of Certification:"]
[]
["Names of courses to be taught by this instructor in the proposed new program:"]
[]
["Courses:"]
[]
[]
[]
[]
[]
[]
[]
[]
[]
["Courses taught by this instructor in OTHER programs at the school:",null,null,null,null,null,null,null,null,null,null,null,null,null,null,null,null,{"$f":"D3581","v":{"$error":"#N/A"}}]
[]
["Courses:"]
[]
[]
[]
[]
[]
[]
[]
[]
[]
[]
[]
["Instructor's Education:"]
[null,null,null,null,null,null,null,null,"Award Received and Field of Study",null,null,null,null,"Dates Attended"]
[null,"Institution Attended",null,null,null,null,null,null,"(Examples: BS-Computer Science or ",null,null,null,null,"Month/Year",null,"Month/Year"]
[null,"School name, city, & state",null,null,null,null,"Graduated",null,"Diploma-Carpentry or Certificate-Word Processing)",null,null,null,null,"From",null,"To"]
[]
["College:"]
[]
["College:"]
[]
["Other:"]
[]
["Other:"]
[]
["High School:"]
[]
["Instructor's Program-Specific Teaching and/or Work Experience (list chronologically starting with the most recent employer, including this school):",null,null,null,null,null,null,null,null,null,null,null,null,null,null,null,null,{"$f":"D3581","v":{"$error":"#N/A"}}]
[]
[null,null,null,null,null,null,null,null,null,null,null,"Dates of Employment"]
[null,"Employer",null,null,null,null,"Subject(s) Taught or Position Held",null,null,null,null,"Month/Year",null,"Month/Year"]
[null,"Employer name, city, & state",null,null,null,null,"(include supervisory experience)",null,null,null,null,"From",null,"To"]
[]
[]
[]
[]
[]
[]
[]
[]
[]
[]
[]
[]
[]
[]
[]
[]
[]
["Instructor's Verification of Qualifications:",null,null,null,null,null,null,null,null,null,null,null,null,null,null,null,null,{"$f":"D3581","v":{"$error":"#N/A"}}]
[]
[null," The Board's regulations require instructors to have at least one of the qualifications listed below (22 Pa. Code Section 73.104).  "]
[null," Check all of the qualifications that apply, then attach the documentation needed for at least one of the qualifications you checked."]
[]
[null,"Baccalaureate degree or higher in the intended field of instruction.  (Embed copy of degree and/or transcript.)"]
[]
[null,"Two or more years' work experience in the intended field of instruction which is acceptable to the School Director."]
[null,"(Embed resume and/or letters from former employers describing the nature of the instructor's former duties.)"]
[]
[null,"Two or more years' teaching experience in the intended field of instruction.  "]
[null,"(Embed resume and/or letters from former employers that verify teaching experience and qualification in the field.)"]
[]
[null,"Journeyman's license relevant to the intended field of instruction.  (Embed copy of license.)"]
[]
[null,"Demonstrated competency in the intended field of instruction. "]
[null,"(Embed documentation of competency.  Such documentation would include a copy of a widely accepted license or certificate such "]
[null,"as a CDL, a MCSE certificate, or a \"Train the Trainer\" certificate.)"]
[]
[null,"State certification as a Vocational Educator in the intended field of instruction.  (Embed copy of certificate.)"]
[]
[null,"Embed evidence to verify the instructor's qualifications:"]
[]
[]
[]
[]
[]
[]
[]
[]
[null,null,"Qualifications of Instructor:",{"$f":"'PDE3003 Instructor List'!C49","v":{"$error":"#N/A"}},null,null,null,null,null,null,null,null,null,null,null,null,null,{"$f":"D3690","v":{"$error":"#N/A"}}]
[]
[null,null,"Instructor's Home Address:"]
[]
[]
[]
[]
[null,null,null,"City, State and Zip Code"]
[]
[null,null,null,null,"Is this instructor currently employed by the school? "]
[]
[null,null,"School Director:"]
[null,null,null,"By placing my name above, I certify that, to the best of my knowledge, the information reported herein is true and accurate."]
[]
[null,null,"Date of Certification:"]
[]
["Names of courses to be taught by this instructor in the proposed new program:"]
[]
["Courses:"]
[]
[]
[]
[]
[]
[]
[]
[]
[]
["Courses taught by this instructor in OTHER programs at the school:",null,null,null,null,null,null,null,null,null,null,null,null,null,null,null,null,{"$f":"D3690","v":{"$error":"#N/A"}}]
[]
["Courses:"]
[]
[]
[]
[]
[]
[]
[]
[]
[]
[]
[]
["Instructor's Education:"]
[null,null,null,null,null,null,null,null,"Award Received and Field of Study",null,null,null,null,"Dates Attended"]
[null,"Institution Attended",null,null,null,null,null,null,"(Examples: BS-Computer Science or ",null,null,null,null,"Month/Year",null,"Month/Year"]
[null,"School name, city, & state",null,null,null,null,"Graduated",null,"Diploma-Carpentry or Certificate-Word Processing)",null,null,null,null,"From",null,"To"]
[]
["College:"]
[]
["College:"]
[]
["Other:"]
[]
["Other:"]
[]
["High School:"]
[]
["Instructor's Program-Specific Teaching and/or Work Experience (list chronologically starting with the most recent employer, including this school):",null,null,null,null,null,null,null,null,null,null,null,null,null,null,null,null,{"$f":"D3690","v":{"$error":"#N/A"}}]
[]
[null,null,null,null,null,null,null,null,null,null,null,"Dates of Employment"]
[null,"Employer",null,null,null,null,"Subject(s) Taught or Position Held",null,null,null,null,"Month/Year",null,"Month/Year"]
[null,"Employer name, city, & state",null,null,null,null,"(include supervisory experience)",null,null,null,null,"From",null,"To"]
[]
[]
[]
[]
[]
[]
[]
[]
[]
[]
[]
[]
[]
[]
[]
[]
[]
["Instructor's Verification of Qualifications:",null,null,null,null,null,null,null,null,null,null,null,null,null,null,null,null,{"$f":"D3690","v":{"$error":"#N/A"}}]
[]
[null," The Board's regulations require instructors to have at least one of the qualifications listed below (22 Pa. Code Section 73.104).  "]
[null," Check all of the qualifications that apply, then attach the documentation needed for at least one of the qualifications you checked."]
[]
[null,"Baccalaureate degree or higher in the intended field of instruction.  (Embed copy of degree and/or transcript.)"]
[]
[null,"Two or more years' work experience in the intended field of instruction which is acceptable to the School Director."]
[null,"(Embed resume and/or letters from former employers describing the nature of the instructor's former duties.)"]
[]
[null,"Two or more years' teaching experience in the intended field of instruction.  "]
[null,"(Embed resume and/or letters from former employers that verify teaching experience and qualification in the field.)"]
[]
[null,"Journeyman's license relevant to the intended field of instruction.  (Embed copy of license.)"]
[]
[null,"Demonstrated competency in the intended field of instruction. "]
[null,"(Embed documentation of competency.  Such documentation would include a copy of a widely accepted license or certificate such "]
[null,"as a CDL, a MCSE certificate, or a \"Train the Trainer\" certificate.)"]
[]
[null,"State certification as a Vocational Educator in the intended field of instruction.  (Embed copy of certificate.)"]
[]
[null,"Embed evidence to verify the instructor's qualifications:"]
[]
[]
[]
[]
[]
[]
[]
[null,null,"Qualifications of Instructor:",{"$f":"'PDE3003 Instructor List'!C50","v":{"$error":"#N/A"}},null,null,null,null,null,null,null,null,null,null,null,null,null,{"$f":"D3798","v":{"$error":"#N/A"}}]
[]
[null,null,"Instructor's Home Address:"]
[]
[]
[]
[]
[null,null,null,"City, State and Zip Code"]
[]
[null,null,null,null,"Is this instructor currently employed by the school? "]
[]
[null,null,"School Director:"]
[null,null,null,"By placing my name above, I certify that, to the best of my knowledge, the information reported herein is true and accurate."]
[]
[null,null,"Date of Certification:"]
[]
["Names of courses to be taught by this instructor in the proposed new program:"]
[]
["Courses:"]
[]
[]
[]
[]
[]
[]
[]
[]
[]
["Courses taught by this instructor in OTHER programs at the school:",null,null,null,null,null,null,null,null,null,null,null,null,null,null,null,null,{"$f":"D3798","v":{"$error":"#N/A"}}]
[]
["Courses:"]
[]
[]
[]
[]
[]
[]
[]
[]
[]
[]
[]
["Instructor's Education:"]
[null,null,null,null,null,null,null,null,"Award Received and Field of Study",null,null,null,null,"Dates Attended"]
[null,"Institution Attended",null,null,null,null,null,null,"(Examples: BS-Computer Science or ",null,null,null,null,"Month/Year",null,"Month/Year"]
[null,"School name, city, & state",null,null,null,null,"Graduated",null,"Diploma-Carpentry or Certificate-Word Processing)",null,null,null,null,"From",null,"To"]
[]
["College:"]
[]
["College:"]
[]
["Other:"]
[]
["Other:"]
[]
["High School:"]
[]
["Instructor's Program-Specific Teaching and/or Work Experience (list chronologically starting with the most recent employer, including this school):",null,null,null,null,null,null,null,null,null,null,null,null,null,null,null,null,{"$f":"D3798","v":{"$error":"#N/A"}}]
[]
[null,null,null,null,null,null,null,null,null,null,null,"Dates of Employment"]
[null,"Employer",null,null,null,null,"Subject(s) Taught or Position Held",null,null,null,null,"Month/Year",null,"Month/Year"]
[null,"Employer name, city, & state",null,null,null,null,"(include supervisory experience)",null,null,null,null,"From",null,"To"]
[]
[]
[]
[]
[]
[]
[]
[]
[]
[]
[]
[]
[]
[]
[]
[]
[]
["Instructor's Verification of Qualifications:",null,null,null,null,null,null,null,null,null,null,null,null,null,null,null,null,{"$f":"D3798","v":{"$error":"#N/A"}}]
[]
[null," The Board's regulations require instructors to have at least one of the qualifications listed below (22 Pa. Code Section 73.104).  "]
[null," Check all of the qualifications that apply, then attach the documentation needed for at least one of the qualifications you checked."]
[]
[null,"Baccalaureate degree or higher in the intended field of instruction.  (Embed copy of degree and/or transcript.)"]
[]
[null,"Two or more years' work experience in the intended field of instruction which is acceptable to the School Director."]
[null,"(Embed resume and/or letters from former employers describing the nature of the instructor's former duties.)"]
[]
[null,"Two or more years' teaching experience in the intended field of instruction.  "]
[null,"(Embed resume and/or letters from former employers that verify teaching experience and qualification in the field.)"]
[]
[null,"Journeyman's license relevant to the intended field of instruction.  (Embed copy of license.)"]
[]
[null,"Demonstrated competency in the intended field of instruction. "]
[null,"(Embed documentation of competency.  Such documentation would include a copy of a widely accepted license or certificate such "]
[null,"as a CDL, a MCSE certificate, or a \"Train the Trainer\" certificate.)"]
[]
[null,"State certification as a Vocational Educator in the intended field of instruction.  (Embed copy of certificate.)"]
[]
[null,"Embed evidence to verify the instructor's qualifications:"]
[]
[]
[]
[]
[]
[]
[]
[null,null,"Qualifications of Instructor:",{"$f":"'PDE3003 Instructor List'!C51","v":{"$error":"#N/A"}},null,null,null,null,null,null,null,null,null,null,null,null,null,{"$f":"D3906","v":{"$error":"#N/A"}}]
[]
[null,null,"Instructor's Home Address:"]
[]
[]
[]
[]
[null,null,null,"City, State and Zip Code"]
[]
[null,null,null,null,"Is this instructor currently employed by the school? "]
[]
[null,null,"School Director:"]
[null,null,null,"By placing my name above, I certify that, to the best of my knowledge, the information reported herein is true and accurate."]
[]
[null,null,"Date of Certification:"]
[]
["Names of courses to be taught by this instructor in the proposed new program:"]
[]
["Courses:"]
[]
[]
[]
[]
[]
[]
[]
[]
[]
["Courses taught by this instructor in OTHER programs at the school:",null,null,null,null,null,null,null,null,null,null,null,null,null,null,null,null,{"$f":"D3906","v":{"$error":"#N/A"}}]
[]
["Courses:"]
[]
[]
[]
[]
[]
[]
[]
[]
[]
[]
[]
["Instructor's Education:"]
[null,null,null,null,null,null,null,null,"Award Received and Field of Study",null,null,null,null,"Dates Attended"]
[null,"Institution Attended",null,null,null,null,null,null,"(Examples: BS-Computer Science or ",null,null,null,null,"Month/Year",null,"Month/Year"]
[null,"School name, city, & state",null,null,null,null,"Graduated",null,"Diploma-Carpentry or Certificate-Word Processing)",null,null,null,null,"From",null,"To"]
[]
["College:"]
[]
["College:"]
[]
["Other:"]
[]
["Other:"]
[]
["High School:"]
[]
["Instructor's Program-Specific Teaching and/or Work Experience (list chronologically starting with the most recent employer, including this school):",null,null,null,null,null,null,null,null,null,null,null,null,null,null,null,null,{"$f":"D3906","v":{"$error":"#N/A"}}]
[]
[null,null,null,null,null,null,null,null,null,null,null,"Dates of Employment"]
[null,"Employer",null,null,null,null,"Subject(s) Taught or Position Held",null,null,null,null,"Month/Year",null,"Month/Year"]
[null,"Employer name, city, & state",null,null,null,null,"(include supervisory experience)",null,null,null,null,"From",null,"To"]
[]
[]
[]
[]
[]
[]
[]
[]
[]
[]
[]
[]
[]
[]
[]
[]
[]
["Instructor's Verification of Qualifications:",null,null,null,null,null,null,null,null,null,null,null,null,null,null,null,null,{"$f":"D3906","v":{"$error":"#N/A"}}]
[]
[null," The Board's regulations require instructors to have at least one of the qualifications listed below (22 Pa. Code Section 73.104).  "]
[null," Check all of the qualifications that apply, then attach the documentation needed for at least one of the qualifications you checked."]
[]
[null,"Baccalaureate degree or higher in the intended field of instruction.  (Embed copy of degree and/or transcript.)"]
[]
[null,"Two or more years' work experience in the intended field of instruction which is acceptable to the School Director."]
[null,"(Embed resume and/or letters from former employers describing the nature of the instructor's former duties.)"]
[]
[null,"Two or more years' teaching experience in the intended field of instruction.  "]
[null,"(Embed resume and/or letters from former employers that verify teaching experience and qualification in the field.)"]
[]
[null,"Journeyman's license relevant to the intended field of instruction.  (Embed copy of license.)"]
[]
[null,"Demonstrated competency in the intended field of instruction. "]
[null,"(Embed documentation of competency.  Such documentation would include a copy of a widely accepted license or certificate such "]
[null,"as a CDL, a MCSE certificate, or a \"Train the Trainer\" certificate.)"]
[]
[null,"State certification as a Vocational Educator in the intended field of instruction.  (Embed copy of certificate.)"]
[]
[null,"Embed evidence to verify the instructor's qualifications:"]
[]
[]
[]
[]
[]
[]
[]
[null,null,"Qualifications of Instructor:",{"$f":"'PDE3003 Instructor List'!C52","v":{"$error":"#N/A"}},null,null,null,null,null,null,null,null,null,null,null,null,null,{"$f":"D4014","v":{"$error":"#N/A"}}]
[]
[null,null,"Instructor's Home Address:"]
[]
[]
[]
[]
[null,null,null,"City, State and Zip Code"]
[]
[null,null,null,null,"Is this instructor currently employed by the school? "]
[]
[null,null,"School Director:"]
[null,null,null,"By placing my name above, I certify that, to the best of my knowledge, the information reported herein is true and accurate."]
[]
[null,null,"Date of Certification:"]
[]
["Names of courses to be taught by this instructor in the proposed new program:"]
[]
["Courses:"]
[]
[]
[]
[]
[]
[]
[]
[]
[]
["Courses taught by this instructor in OTHER programs at the school:",null,null,null,null,null,null,null,null,null,null,null,null,null,null,null,null,{"$f":"D4014","v":{"$error":"#N/A"}}]
[]
["Courses:"]
[]
[]
[]
[]
[]
[]
[]
[]
[]
[]
[]
["Instructor's Education:"]
[null,null,null,null,null,null,null,null,"Award Received and Field of Study",null,null,null,null,"Dates Attended"]
[null,"Institution Attended",null,null,null,null,null,null,"(Examples: BS-Computer Science or ",null,null,null,null,"Month/Year",null,"Month/Year"]
[null,"School name, city, & state",null,null,null,null,"Graduated",null,"Diploma-Carpentry or Certificate-Word Processing)",null,null,null,null,"From",null,"To"]
[]
["College:"]
[]
["College:"]
[]
["Other:"]
[]
["Other:"]
[]
["High School:"]
[]
["Instructor's Program-Specific Teaching and/or Work Experience (list chronologically starting with the most recent employer, including this school):",null,null,null,null,null,null,null,null,null,null,null,null,null,null,null,null,{"$f":"D4014","v":{"$error":"#N/A"}}]
[]
[null,null,null,null,null,null,null,null,null,null,null,"Dates of Employment"]
[null,"Employer",null,null,null,null,"Subject(s) Taught or Position Held",null,null,null,null,"Month/Year",null,"Month/Year"]
[null,"Employer name, city, & state",null,null,null,null,"(include supervisory experience)",null,null,null,null,"From",null,"To"]
[]
[]
[]
[]
[]
[]
[]
[]
[]
[]
[]
[]
[]
[]
[]
[]
[]
["Instructor's Verification of Qualifications:",null,null,null,null,null,null,null,null,null,null,null,null,null,null,null,null,{"$f":"D4014","v":{"$error":"#N/A"}}]
[]
[null," The Board's regulations require instructors to have at least one of the qualifications listed below (22 Pa. Code Section 73.104).  "]
[null," Check all of the qualifications that apply, then attach the documentation needed for at least one of the qualifications you checked."]
[]
[null,"Baccalaureate degree or higher in the intended field of instruction.  (Embed copy of degree and/or transcript.)"]
[]
[null,"Two or more years' work experience in the intended field of instruction which is acceptable to the School Director."]
[null,"(Embed resume and/or letters from former employers describing the nature of the instructor's former duties.)"]
[]
[null,"Two or more years' teaching experience in the intended field of instruction.  "]
[null,"(Embed resume and/or letters from former employers that verify teaching experience and qualification in the field.)"]
[]
[null,"Journeyman's license relevant to the intended field of instruction.  (Embed copy of license.)"]
[]
[null,"Demonstrated competency in the intended field of instruction. "]
[null,"(Embed documentation of competency.  Such documentation would include a copy of a widely accepted license or certificate such "]
[null,"as a CDL, a MCSE certificate, or a \"Train the Trainer\" certificate.)"]
[]
[null,"State certification as a Vocational Educator in the intended field of instruction.  (Embed copy of certificate.)"]
[]
[null,"Embed evidence to verify the instructor's qualifications:"]
[]
[]
[]
[]
[]
[]
[]
[null,null,"Qualifications of Instructor:",{"$f":"'PDE3003 Instructor List'!C53","v":{"$error":"#N/A"}},null,null,null,null,null,null,null,null,null,null,null,null,null,{"$f":"D4122","v":{"$error":"#N/A"}}]
[]
[null,null,"Instructor's Home Address:"]
[]
[]
[]
[]
[null,null,null,"City, State and Zip Code"]
[]
[null,null,null,null,"Is this instructor currently employed by the school? "]
[]
[null,null,"School Director:"]
[null,null,null,"By placing my name above, I certify that, to the best of my knowledge, the information reported herein is true and accurate."]
[]
[null,null,"Date of Certification:"]
[]
["Names of courses to be taught by this instructor in the proposed new program:"]
[]
["Courses:"]
[]
[]
[]
[]
[]
[]
[]
[]
[]
["Courses taught by this instructor in OTHER programs at the school:",null,null,null,null,null,null,null,null,null,null,null,null,null,null,null,null,{"$f":"D4122","v":{"$error":"#N/A"}}]
[]
["Courses:"]
[]
[]
[]
[]
[]
[]
[]
[]
[]
[]
[]
["Instructor's Education:"]
[null,null,null,null,null,null,null,null,"Award Received and Field of Study",null,null,null,null,"Dates Attended"]
[null,"Institution Attended",null,null,null,null,null,null,"(Examples: BS-Computer Science or ",null,null,null,null,"Month/Year",null,"Month/Year"]
[null,"School name, city, & state",null,null,null,null,"Graduated",null,"Diploma-Carpentry or Certificate-Word Processing)",null,null,null,null,"From",null,"To"]
[]
["College:"]
[]
["College:"]
[]
["Other:"]
[]
["Other:"]
[]
["High School:"]
[]
["Instructor's Program-Specific Teaching and/or Work Experience (list chronologically starting with the most recent employer, including this school):",null,null,null,null,null,null,null,null,null,null,null,null,null,null,null,null,{"$f":"D4122","v":{"$error":"#N/A"}}]
[]
[null,null,null,null,null,null,null,null,null,null,null,"Dates of Employment"]
[null,"Employer",null,null,null,null,"Subject(s) Taught or Position Held",null,null,null,null,"Month/Year",null,"Month/Year"]
[null,"Employer name, city, & state",null,null,null,null,"(include supervisory experience)",null,null,null,null,"From",null,"To"]
[]
[]
[]
[]
[]
[]
[]
[]
[]
[]
[]
[]
[]
[]
[]
[]
[]
["Instructor's Verification of Qualifications:",null,null,null,null,null,null,null,null,null,null,null,null,null,null,null,null,{"$f":"D4122","v":{"$error":"#N/A"}}]
[]
[null," The Board's regulations require instructors to have at least one of the qualifications listed below (22 Pa. Code Section 73.104).  "]
[null," Check all of the qualifications that apply, then attach the documentation needed for at least one of the qualifications you checked."]
[]
[null,"Baccalaureate degree or higher in the intended field of instruction.  (Embed copy of degree and/or transcript.)"]
[]
[null,"Two or more years' work experience in the intended field of instruction which is acceptable to the School Director."]
[null,"(Embed resume and/or letters from former employers describing the nature of the instructor's former duties.)"]
[]
[null,"Two or more years' teaching experience in the intended field of instruction.  "]
[null,"(Embed resume and/or letters from former employers that verify teaching experience and qualification in the field.)"]
[]
[null,"Journeyman's license relevant to the intended field of instruction.  (Embed copy of license.)"]
[]
[null,"Demonstrated competency in the intended field of instruction. "]
[null,"(Embed documentation of competency.  Such documentation would include a copy of a widely accepted license or certificate such "]
[null,"as a CDL, a MCSE certificate, or a \"Train the Trainer\" certificate.)"]
[]
[null,"State certification as a Vocational Educator in the intended field of instruction.  (Embed copy of certificate.)"]
[]
[null,"Embed evidence to verify the instructor's qualifications:"]
[]
[]
[]
[]
[]
[]
[]
[]
[null,null,"Qualifications of Instructor:",{"$f":"'PDE3003 Instructor List'!C54","v":{"$error":"#N/A"}},null,null,null,null,null,null,null,null,null,null,null,null,null,{"$f":"D4231","v":{"$error":"#N/A"}}]
[]
[null,null,"Instructor's Home Address:"]
[]
[]
[]
[]
[null,null,null,"City, State and Zip Code"]
[]
[null,null,null,null,"Is this instructor currently employed by the school? "]
[]
[null,null,"School Director:"]
[null,null,null,"By placing my name above, I certify that, to the best of my knowledge, the information reported herein is true and accurate."]
[]
[null,null,"Date of Certification:"]
[]
["Names of courses to be taught by this instructor in the proposed new program:"]
[]
["Courses:"]
[]
[]
[]
[]
[]
[]
[]
[]
[]
["Courses taught by this instructor in OTHER programs at the school:",null,null,null,null,null,null,null,null,null,null,null,null,null,null,null,null,{"$f":"D4231","v":{"$error":"#N/A"}}]
[]
["Courses:"]
[]
[]
[]
[]
[]
[]
[]
[]
[]
[]
[]
["Instructor's Education:"]
[null,null,null,null,null,null,null,null,"Award Received and Field of Study",null,null,null,null,"Dates Attended"]
[null,"Institution Attended",null,null,null,null,null,null,"(Examples: BS-Computer Science or ",null,null,null,null,"Month/Year",null,"Month/Year"]
[null,"School name, city, & state",null,null,null,null,"Graduated",null,"Diploma-Carpentry or Certificate-Word Processing)",null,null,null,null,"From",null,"To"]
[]
["College:"]
[]
["College:"]
[]
["Other:"]
[]
["Other:"]
[]
["High School:"]
[]
["Instructor's Program-Specific Teaching and/or Work Experience (list chronologically starting with the most recent employer, including this school):",null,null,null,null,null,null,null,null,null,null,null,null,null,null,null,null,{"$f":"D4231","v":{"$error":"#N/A"}}]
[]
[null,null,null,null,null,null,null,null,null,null,null,"Dates of Employment"]
[null,"Employer",null,null,null,null,"Subject(s) Taught or Position Held",null,null,null,null,"Month/Year",null,"Month/Year"]
[null,"Employer name, city, & state",null,null,null,null,"(include supervisory experience)",null,null,null,null,"From",null,"To"]
[]
[]
[]
[]
[]
[]
[]
[]
[]
[]
[]
[]
[]
[]
[]
[]
[]
["Instructor's Verification of Qualifications:",null,null,null,null,null,null,null,null,null,null,null,null,null,null,null,null,{"$f":"D4231","v":{"$error":"#N/A"}}]
[]
[null," The Board's regulations require instructors to have at least one of the qualifications listed below (22 Pa. Code Section 73.104).  "]
[null," Check all of the qualifications that apply, then attach the documentation needed for at least one of the qualifications you checked."]
[]
[null,"Baccalaureate degree or higher in the intended field of instruction.  (Embed copy of degree and/or transcript.)"]
[]
[null,"Two or more years' work experience in the intended field of instruction which is acceptable to the School Director."]
[null,"(Embed resume and/or letters from former employers describing the nature of the instructor's former duties.)"]
[]
[null,"Two or more years' teaching experience in the intended field of instruction.  "]
[null,"(Embed resume and/or letters from former employers that verify teaching experience and qualification in the field.)"]
[]
[null,"Journeyman's license relevant to the intended field of instruction.  (Embed copy of license.)"]
[]
[null,"Demonstrated competency in the intended field of instruction. "]
[null,"(Embed documentation of competency.  Such documentation would include a copy of a widely accepted license or certificate such "]
[null,"as a CDL, a MCSE certificate, or a \"Train the Trainer\" certificate.)"]
[]
[null,"State certification as a Vocational Educator in the intended field of instruction.  (Embed copy of certificate.)"]
[]
[null,"Embed evidence to verify the instructor's qualifications:"]
[]
[]
[]
[]
[]
[]
[]
[null,null,"Qualifications of Instructor:",{"$f":"'PDE3003 Instructor List'!C55","v":{"$error":"#N/A"}},null,null,null,null,null,null,null,null,null,null,null,null,null,{"$f":"D4339","v":{"$error":"#N/A"}}]
[]
[null,null,"Instructor's Home Address:"]
[]
[]
[]
[]
[null,null,null,"City, State and Zip Code"]
[]
[null,null,null,null,"Is this instructor currently employed by the school? "]
[]
[null,null,"School Director:"]
[null,null,null,"By placing my name above, I certify that, to the best of my knowledge, the information reported herein is true and accurate."]
[]
[null,null,"Date of Certification:"]
[]
["Names of courses to be taught by this instructor in the proposed new program:"]
[]
["Courses:"]
[]
[]
[]
[]
[]
[]
[]
[]
[]
["Courses taught by this instructor in OTHER programs at the school:",null,null,null,null,null,null,null,null,null,null,null,null,null,null,null,null,{"$f":"D4339","v":{"$error":"#N/A"}}]
[]
["Courses:"]
[]
[]
[]
[]
[]
[]
[]
[]
[]
[]
[]
["Instructor's Education:"]
[null,null,null,null,null,null,null,null,"Award Received and Field of Study",null,null,null,null,"Dates Attended"]
[null,"Institution Attended",null,null,null,null,null,null,"(Examples: BS-Computer Science or ",null,null,null,null,"Month/Year",null,"Month/Year"]
[null,"School name, city, & state",null,null,null,null,"Graduated",null,"Diploma-Carpentry or Certificate-Word Processing)",null,null,null,null,"From",null,"To"]
[]
["College:"]
[]
["College:"]
[]
["Other:"]
[]
["Other:"]
[]
["High School:"]
[]
["Instructor's Program-Specific Teaching and/or Work Experience (list chronologically starting with the most recent employer, including this school):",null,null,null,null,null,null,null,null,null,null,null,null,null,null,null,null,{"$f":"D4339","v":{"$error":"#N/A"}}]
[]
[null,null,null,null,null,null,null,null,null,null,null,"Dates of Employment"]
[null,"Employer",null,null,null,null,"Subject(s) Taught or Position Held",null,null,null,null,"Month/Year",null,"Month/Year"]
[null,"Employer name, city, & state",null,null,null,null,"(include supervisory experience)",null,null,null,null,"From",null,"To"]
[]
[]
[]
[]
[]
[]
[]
[]
[]
[]
[]
[]
[]
[]
[]
[]
[]
["Instructor's Verification of Qualifications:",null,null,null,null,null,null,null,null,null,null,null,null,null,null,null,null,{"$f":"D4339","v":{"$error":"#N/A"}}]
[]
[null," The Board's regulations require instructors to have at least one of the qualifications listed below (22 Pa. Code Section 73.104).  "]
[null," Check all of the qualifications that apply, then attach the documentation needed for at least one of the qualifications you checked."]
[]
[null,"Baccalaureate degree or higher in the intended field of instruction.  (Embed copy of degree and/or transcript.)"]
[]
[null,"Two or more years' work experience in the intended field of instruction which is acceptable to the School Director."]
[null,"(Embed resume and/or letters from former employers describing the nature of the instructor's former duties.)"]
[]
[null,"Two or more years' teaching experience in the intended field of instruction.  "]
[null,"(Embed resume and/or letters from former employers that verify teaching experience and qualification in the field.)"]
[]
[null,"Journeyman's license relevant to the intended field of instruction.  (Embed copy of license.)"]
[]
[null,"Demonstrated competency in the intended field of instruction. "]
[null,"(Embed documentation of competency.  Such documentation would include a copy of a widely accepted license or certificate such "]
[null,"as a CDL, a MCSE certificate, or a \"Train the Trainer\" certificate.)"]
[]
[null,"State certification as a Vocational Educator in the intended field of instruction.  (Embed copy of certificate.)"]
[]
[null,"Embed evidence to verify the instructor's qualifications:"]
[]
[]
[]
[]
[]
[]
[]
[null,null,"Qualifications of Instructor:",{"$f":"'PDE3003 Instructor List'!C56","v":{"$error":"#N/A"}},null,null,null,null,null,null,null,null,null,null,null,null,null,{"$f":"D4447","v":{"$error":"#N/A"}}]
[]
[null,null,"Instructor's Home Address:"]
[]
[]
[]
[]
[null,null,null,"City, State and Zip Code"]
[]
[null,null,null,null,"Is this instructor currently employed by the school? "]
[]
[null,null,"School Director:"]
[null,null,null,"By placing my name above, I certify that, to the best of my knowledge, the information reported herein is true and accurate."]
[]
[null,null,"Date of Certification:"]
[]
["Names of courses to be taught by this instructor in the proposed new program:"]
[]
["Courses:"]
[]
[]
[]
[]
[]
[]
[]
[]
[]
["Courses taught by this instructor in OTHER programs at the school:",null,null,null,null,null,null,null,null,null,null,null,null,null,null,null,null,{"$f":"D4447","v":{"$error":"#N/A"}}]
[]
["Courses:"]
[]
[]
[]
[]
[]
[]
[]
[]
[]
[]
[]
["Instructor's Education:"]
[null,null,null,null,null,null,null,null,"Award Received and Field of Study",null,null,null,null,"Dates Attended"]
[null,"Institution Attended",null,null,null,null,null,null,"(Examples: BS-Computer Science or ",null,null,null,null,"Month/Year",null,"Month/Year"]
[null,"School name, city, & state",null,null,null,null,"Graduated",null,"Diploma-Carpentry or Certificate-Word Processing)",null,null,null,null,"From",null,"To"]
[]
["College:"]
[]
["College:"]
[]
["Other:"]
[]
["Other:"]
[]
["High School:"]
[]
["Instructor's Program-Specific Teaching and/or Work Experience (list chronologically starting with the most recent employer, including this school):",null,null,null,null,null,null,null,null,null,null,null,null,null,null,null,null,{"$f":"D4447","v":{"$error":"#N/A"}}]
[]
[null,null,null,null,null,null,null,null,null,null,null,"Dates of Employment"]
[null,"Employer",null,null,null,null,"Subject(s) Taught or Position Held",null,null,null,null,"Month/Year",null,"Month/Year"]
[null,"Employer name, city, & state",null,null,null,null,"(include supervisory experience)",null,null,null,null,"From",null,"To"]
[]
[]
[]
[]
[]
[]
[]
[]
[]
[]
[]
[]
[]
[]
[]
[]
[]
["Instructor's Verification of Qualifications:",null,null,null,null,null,null,null,null,null,null,null,null,null,null,null,null,{"$f":"D4447","v":{"$error":"#N/A"}}]
[]
[null," The Board's regulations require instructors to have at least one of the qualifications listed below (22 Pa. Code Section 73.104).  "]
[null," Check all of the qualifications that apply, then attach the documentation needed for at least one of the qualifications you checked."]
[]
[null,"Baccalaureate degree or higher in the intended field of instruction.  (Embed copy of degree and/or transcript.)"]
[]
[null,"Two or more years' work experience in the intended field of instruction which is acceptable to the School Director."]
[null,"(Embed resume and/or letters from former employers describing the nature of the instructor's former duties.)"]
[]
[null,"Two or more years' teaching experience in the intended field of instruction.  "]
[null,"(Embed resume and/or letters from former employers that verify teaching experience and qualification in the field.)"]
[]
[null,"Journeyman's license relevant to the intended field of instruction.  (Embed copy of license.)"]
[]
[null,"Demonstrated competency in the intended field of instruction. "]
[null,"(Embed documentation of competency.  Such documentation would include a copy of a widely accepted license or certificate such "]
[null,"as a CDL, a MCSE certificate, or a \"Train the Trainer\" certificate.)"]
[]
[null,"State certification as a Vocational Educator in the intended field of instruction.  (Embed copy of certificate.)"]
[]
[null,"Embed evidence to verify the instructor's qualifications:"]
[]
[]
[]
[]
[]
[]
[]
[null,null,"Qualifications of Instructor:",{"$f":"'PDE3003 Instructor List'!C57","v":{"$error":"#N/A"}},null,null,null,null,null,null,null,null,null,null,null,null,null,{"$f":"D4555","v":{"$error":"#N/A"}}]
[]
[null,null,"Instructor's Home Address:"]
[]
[]
[]
[]
[null,null,null,"City, State and Zip Code"]
[]
[null,null,null,null,"Is this instructor currently employed by the school? "]
[]
[null,null,"School Director:"]
[null,null,null,"By placing my name above, I certify that, to the best of my knowledge, the information reported herein is true and accurate."]
[]
[null,null,"Date of Certification:"]
[]
["Names of courses to be taught by this instructor in the proposed new program:"]
[]
["Courses:"]
[]
[]
[]
[]
[]
[]
[]
[]
[]
["Courses taught by this instructor in OTHER programs at the school:",null,null,null,null,null,null,null,null,null,null,null,null,null,null,null,null,{"$f":"D4555","v":{"$error":"#N/A"}}]
[]
["Courses:"]
[]
[]
[]
[]
[]
[]
[]
[]
[]
[]
[]
["Instructor's Education:"]
[null,null,null,null,null,null,null,null,"Award Received and Field of Study",null,null,null,null,"Dates Attended"]
[null,"Institution Attended",null,null,null,null,null,null,"(Examples: BS-Computer Science or ",null,null,null,null,"Month/Year",null,"Month/Year"]
[null,"School name, city, & state",null,null,null,null,"Graduated",null,"Diploma-Carpentry or Certificate-Word Processing)",null,null,null,null,"From",null,"To"]
[]
["College:"]
[]
["College:"]
[]
["Other:"]
[]
["Other:"]
[]
["High School:"]
[]
["Instructor's Program-Specific Teaching and/or Work Experience (list chronologically starting with the most recent employer, including this school):",null,null,null,null,null,null,null,null,null,null,null,null,null,null,null,null,{"$f":"D4555","v":{"$error":"#N/A"}}]
[]
[null,null,null,null,null,null,null,null,null,null,null,"Dates of Employment"]
[null,"Employer",null,null,null,null,"Subject(s) Taught or Position Held",null,null,null,null,"Month/Year",null,"Month/Year"]
[null,"Employer name, city, & state",null,null,null,null,"(include supervisory experience)",null,null,null,null,"From",null,"To"]
[]
[]
[]
[]
[]
[]
[]
[]
[]
[]
[]
[]
[]
[]
[]
[]
[]
["Instructor's Verification of Qualifications:",null,null,null,null,null,null,null,null,null,null,null,null,null,null,null,null,{"$f":"D4555","v":{"$error":"#N/A"}}]
[]
[null," The Board's regulations require instructors to have at least one of the qualifications listed below (22 Pa. Code Section 73.104).  "]
[null," Check all of the qualifications that apply, then attach the documentation needed for at least one of the qualifications you checked."]
[]
[null,"Baccalaureate degree or higher in the intended field of instruction.  (Embed copy of degree and/or transcript.)"]
[]
[null,"Two or more years' work experience in the intended field of instruction which is acceptable to the School Director."]
[null,"(Embed resume and/or letters from former employers describing the nature of the instructor's former duties.)"]
[]
[null,"Two or more years' teaching experience in the intended field of instruction.  "]
[null,"(Embed resume and/or letters from former employers that verify teaching experience and qualification in the field.)"]
[]
[null,"Journeyman's license relevant to the intended field of instruction.  (Embed copy of license.)"]
[]
[null,"Demonstrated competency in the intended field of instruction. "]
[null,"(Embed documentation of competency.  Such documentation would include a copy of a widely accepted license or certificate such "]
[null,"as a CDL, a MCSE certificate, or a \"Train the Trainer\" certificate.)"]
[]
[null,"State certification as a Vocational Educator in the intended field of instruction.  (Embed copy of certificate.)"]
[]
[null,"Embed evidence to verify the instructor's qualifications:"]
[]
[]
[]
[]
[]
[]
[]
[null,null,"Qualifications of Instructor:",{"$f":"'PDE3003 Instructor List'!C58","v":{"$error":"#N/A"}},null,null,null,null,null,null,null,null,null,null,null,null,null,{"$f":"D4663","v":{"$error":"#N/A"}}]
[]
[null,null,"Instructor's Home Address:"]
[]
[]
[]
[]
[null,null,null,"City, State and Zip Code"]
[]
[null,null,null,null,"Is this instructor currently employed by the school? "]
[]
[null,null,"School Director:"]
[null,null,null,"By placing my name above, I certify that, to the best of my knowledge, the information reported herein is true and accurate."]
[]
[null,null,"Date of Certification:"]
[]
["Names of courses to be taught by this instructor in the proposed new program:"]
[]
["Courses:"]
[]
[]
[]
[]
[]
[]
[]
[]
[]
["Courses taught by this instructor in OTHER programs at the school:",null,null,null,null,null,null,null,null,null,null,null,null,null,null,null,null,{"$f":"D4663","v":{"$error":"#N/A"}}]
[]
["Courses:"]
[]
[]
[]
[]
[]
[]
[]
[]
[]
[]
[]
["Instructor's Education:"]
[null,null,null,null,null,null,null,null,"Award Received and Field of Study",null,null,null,null,"Dates Attended"]
[null,"Institution Attended",null,null,null,null,null,null,"(Examples: BS-Computer Science or ",null,null,null,null,"Month/Year",null,"Month/Year"]
[null,"School name, city, & state",null,null,null,null,"Graduated",null,"Diploma-Carpentry or Certificate-Word Processing)",null,null,null,null,"From",null,"To"]
[]
["College:"]
[]
["College:"]
[]
["Other:"]
[]
["Other:"]
[]
["High School:"]
[]
["Instructor's Program-Specific Teaching and/or Work Experience (list chronologically starting with the most recent employer, including this school):",null,null,null,null,null,null,null,null,null,null,null,null,null,null,null,null,{"$f":"D4663","v":{"$error":"#N/A"}}]
[]
[null,null,null,null,null,null,null,null,null,null,null,"Dates of Employment"]
[null,"Employer",null,null,null,null,"Subject(s) Taught or Position Held",null,null,null,null,"Month/Year",null,"Month/Year"]
[null,"Employer name, city, & state",null,null,null,null,"(include supervisory experience)",null,null,null,null,"From",null,"To"]
[]
[]
[]
[]
[]
[]
[]
[]
[]
[]
[]
[]
[]
[]
[]
[]
[]
["Instructor's Verification of Qualifications:",null,null,null,null,null,null,null,null,null,null,null,null,null,null,null,null,{"$f":"D4663","v":{"$error":"#N/A"}}]
[]
[null," The Board's regulations require instructors to have at least one of the qualifications listed below (22 Pa. Code Section 73.104).  "]
[null," Check all of the qualifications that apply, then attach the documentation needed for at least one of the qualifications you checked."]
[]
[null,"Baccalaureate degree or higher in the intended field of instruction.  (Embed copy of degree and/or transcript.)"]
[]
[null,"Two or more years' work experience in the intended field of instruction which is acceptable to the School Director."]
[null,"(Embed resume and/or letters from former employers describing the nature of the instructor's former duties.)"]
[]
[null,"Two or more years' teaching experience in the intended field of instruction.  "]
[null,"(Embed resume and/or letters from former employers that verify teaching experience and qualification in the field.)"]
[]
[null,"Journeyman's license relevant to the intended field of instruction.  (Embed copy of license.)"]
[]
[null,"Demonstrated competency in the intended field of instruction. "]
[null,"(Embed documentation of competency.  Such documentation would include a copy of a widely accepted license or certificate such "]
[null,"as a CDL, a MCSE certificate, or a \"Train the Trainer\" certificate.)"]
[]
[null,"State certification as a Vocational Educator in the intended field of instruction.  (Embed copy of certificate.)"]
[]
[null,"Embed evidence to verify the instructor's qualifications:"]
[]
[]
[]
[]
[]
[]
[]
[]
[null,null,"Qualifications of Instructor:",{"$f":"'PDE3003 Instructor List'!C59","v":{"$error":"#N/A"}},null,null,null,null,null,null,null,null,null,null,null,null,null,{"$f":"D4772","v":{"$error":"#N/A"}}]
[]
[null,null,"Instructor's Home Address:"]
[]
[]
[]
[]
[null,null,null,"City, State and Zip Code"]
[]
[null,null,null,null,"Is this instructor currently employed by the school? "]
[]
[null,null,"School Director:"]
[null,null,null,"By placing my name above, I certify that, to the best of my knowledge, the information reported herein is true and accurate."]
[]
[null,null,"Date of Certification:"]
[]
["Names of courses to be taught by this instructor in the proposed new program:"]
[]
["Courses:"]
[]
[]
[]
[]
[]
[]
[]
[]
[]
["Courses taught by this instructor in OTHER programs at the school:",null,null,null,null,null,null,null,null,null,null,null,null,null,null,null,null,{"$f":"D4772","v":{"$error":"#N/A"}}]
[]
["Courses:"]
[]
[]
[]
[]
[]
[]
[]
[]
[]
[]
[]
["Instructor's Education:"]
[null,null,null,null,null,null,null,null,"Award Received and Field of Study",null,null,null,null,"Dates Attended"]
[null,"Institution Attended",null,null,null,null,null,null,"(Examples: BS-Computer Science or ",null,null,null,null,"Month/Year",null,"Month/Year"]
[null,"School name, city, & state",null,null,null,null,"Graduated",null,"Diploma-Carpentry or Certificate-Word Processing)",null,null,null,null,"From",null,"To"]
[]
["College:"]
[]
["College:"]
[]
["Other:"]
[]
["Other:"]
[]
["High School:"]
[]
["Instructor's Program-Specific Teaching and/or Work Experience (list chronologically starting with the most recent employer, including this school):",null,null,null,null,null,null,null,null,null,null,null,null,null,null,null,null,{"$f":"D4772","v":{"$error":"#N/A"}}]
[]
[null,null,null,null,null,null,null,null,null,null,null,"Dates of Employment"]
[null,"Employer",null,null,null,null,"Subject(s) Taught or Position Held",null,null,null,null,"Month/Year",null,"Month/Year"]
[null,"Employer name, city, & state",null,null,null,null,"(include supervisory experience)",null,null,null,null,"From",null,"To"]
[]
[]
[]
[]
[]
[]
[]
[]
[]
[]
[]
[]
[]
[]
[]
[]
[]
["Instructor's Verification of Qualifications:",null,null,null,null,null,null,null,null,null,null,null,null,null,null,null,null,{"$f":"D4772","v":{"$error":"#N/A"}}]
[]
[null," The Board's regulations require instructors to have at least one of the qualifications listed below (22 Pa. Code Section 73.104).  "]
[null," Check all of the qualifications that apply, then attach the documentation needed for at least one of the qualifications you checked."]
[]
[null,"Baccalaureate degree or higher in the intended field of instruction.  (Embed copy of degree and/or transcript.)"]
[]
[null,"Two or more years' work experience in the intended field of instruction which is acceptable to the School Director."]
[null,"(Embed resume and/or letters from former employers describing the nature of the instructor's former duties.)"]
[]
[null,"Two or more years' teaching experience in the intended field of instruction.  "]
[null,"(Embed resume and/or letters from former employers that verify teaching experience and qualification in the field.)"]
[]
[null,"Journeyman's license relevant to the intended field of instruction.  (Embed copy of license.)"]
[]
[null,"Demonstrated competency in the intended field of instruction. "]
[null,"(Embed documentation of competency.  Such documentation would include a copy of a widely accepted license or certificate such "]
[null,"as a CDL, a MCSE certificate, or a \"Train the Trainer\" certificate.)"]
[]
[null,"State certification as a Vocational Educator in the intended field of instruction.  (Embed copy of certificate.)"]
[]
[null,"Embed evidence to verify the instructor's qualifications:"]
[]
[]
[]
[]
[]
[]
[]
[null,null,"Qualifications of Instructor:",{"$f":"'PDE3003 Instructor List'!C60","v":{"$error":"#N/A"}},null,null,null,null,null,null,null,null,null,null,null,null,null,{"$f":"D4880","v":{"$error":"#N/A"}}]
[]
[null,null,"Instructor's Home Address:"]
[]
[]
[]
[]
[null,null,null,"City, State and Zip Code"]
[]
[null,null,null,null,"Is this instructor currently employed by the school? "]
[]
[null,null,"School Director:"]
[null,null,null,"By placing my name above, I certify that, to the best of my knowledge, the information reported herein is true and accurate."]
[]
[null,null,"Date of Certification:"]
[]
["Names of courses to be taught by this instructor in the proposed new program:"]
[]
["Courses:"]
[]
[]
[]
[]
[]
[]
[]
[]
[]
["Courses taught by this instructor in OTHER programs at the school:",null,null,null,null,null,null,null,null,null,null,null,null,null,null,null,null,{"$f":"D4880","v":{"$error":"#N/A"}}]
[]
["Courses:"]
[]
[]
[]
[]
[]
[]
[]
[]
[]
[]
[]
["Instructor's Education:"]
[null,null,null,null,null,null,null,null,"Award Received and Field of Study",null,null,null,null,"Dates Attended"]
[null,"Institution Attended",null,null,null,null,null,null,"(Examples: BS-Computer Science or ",null,null,null,null,"Month/Year",null,"Month/Year"]
[null,"School name, city, & state",null,null,null,null,"Graduated",null,"Diploma-Carpentry or Certificate-Word Processing)",null,null,null,null,"From",null,"To"]
[]
["College:"]
[]
["College:"]
[]
["Other:"]
[]
["Other:"]
[]
["High School:"]
[]
["Instructor's Program-Specific Teaching and/or Work Experience (list chronologically starting with the most recent employer, including this school):",null,null,null,null,null,null,null,null,null,null,null,null,null,null,null,null,{"$f":"D4880","v":{"$error":"#N/A"}}]
[]
[null,null,null,null,null,null,null,null,null,null,null,"Dates of Employment"]
[null,"Employer",null,null,null,null,"Subject(s) Taught or Position Held",null,null,null,null,"Month/Year",null,"Month/Year"]
[null,"Employer name, city, & state",null,null,null,null,"(include supervisory experience)",null,null,null,null,"From",null,"To"]
[]
[]
[]
[]
[]
[]
[]
[]
[]
[]
[]
[]
[]
[]
[]
[]
[]
["Instructor's Verification of Qualifications:",null,null,null,null,null,null,null,null,null,null,null,null,null,null,null,null,{"$f":"D4880","v":{"$error":"#N/A"}}]
[]
[null," The Board's regulations require instructors to have at least one of the qualifications listed below (22 Pa. Code Section 73.104).  "]
[null," Check all of the qualifications that apply, then attach the documentation needed for at least one of the qualifications you checked."]
[]
[null,"Baccalaureate degree or higher in the intended field of instruction.  (Embed copy of degree and/or transcript.)"]
[]
[null,"Two or more years' work experience in the intended field of instruction which is acceptable to the School Director."]
[null,"(Embed resume and/or letters from former employers describing the nature of the instructor's former duties.)"]
[]
[null,"Two or more years' teaching experience in the intended field of instruction.  "]
[null,"(Embed resume and/or letters from former employers that verify teaching experience and qualification in the field.)"]
[]
[null,"Journeyman's license relevant to the intended field of instruction.  (Embed copy of license.)"]
[]
[null,"Demonstrated competency in the intended field of instruction. "]
[null,"(Embed documentation of competency.  Such documentation would include a copy of a widely accepted license or certificate such "]
[null,"as a CDL, a MCSE certificate, or a \"Train the Trainer\" certificate.)"]
[]
[null,"State certification as a Vocational Educator in the intended field of instruction.  (Embed copy of certificate.)"]
[]
[null,"Embed evidence to verify the instructor's qualifications:"]
[]
[]
[]
[]
[]
[]
[]
[null,null,"Qualifications of Instructor:",{"$f":"'PDE3003 Instructor List'!C61","v":{"$error":"#N/A"}},null,null,null,null,null,null,null,null,null,null,null,null,null,{"$f":"D4988","v":{"$error":"#N/A"}}]
[]
[null,null,"Instructor's Home Address:"]
[]
[]
[]
[]
[null,null,null,"City, State and Zip Code"]
[]
[null,null,null,null,"Is this instructor currently employed by the school? "]
[]
[null,null,"School Director:"]
[null,null,null,"By placing my name above, I certify that, to the best of my knowledge, the information reported herein is true and accurate."]
[]
[null,null,"Date of Certification:"]
[]
["Names of courses to be taught by this instructor in the proposed new program:"]
[]
["Courses:"]
[]
[]
[]
[]
[]
[]
[]
[]
[]
["Courses taught by this instructor in OTHER programs at the school:",null,null,null,null,null,null,null,null,null,null,null,null,null,null,null,null,{"$f":"D4988","v":{"$error":"#N/A"}}]
[]
["Courses:"]
[]
[]
[]
[]
[]
[]
[]
[]
[]
[]
[]
["Instructor's Education:"]
[null,null,null,null,null,null,null,null,"Award Received and Field of Study",null,null,null,null,"Dates Attended"]
[null,"Institution Attended",null,null,null,null,null,null,"(Examples: BS-Computer Science or ",null,null,null,null,"Month/Year",null,"Month/Year"]
[null,"School name, city, & state",null,null,null,null,"Graduated",null,"Diploma-Carpentry or Certificate-Word Processing)",null,null,null,null,"From",null,"To"]
[]
["College:"]
[]
["College:"]
[]
["Other:"]
[]
["Other:"]
[]
["High School:"]
[]
["Instructor's Program-Specific Teaching and/or Work Experience (list chronologically starting with the most recent employer, including this school):",null,null,null,null,null,null,null,null,null,null,null,null,null,null,null,null,{"$f":"D4988","v":{"$error":"#N/A"}}]
[]
[null,null,null,null,null,null,null,null,null,null,null,"Dates of Employment"]
[null,"Employer",null,null,null,null,"Subject(s) Taught or Position Held",null,null,null,null,"Month/Year",null,"Month/Year"]
[null,"Employer name, city, & state",null,null,null,null,"(include supervisory experience)",null,null,null,null,"From",null,"To"]
[]
[]
[]
[]
[]
[]
[]
[]
[]
[]
[]
[]
[]
[]
[]
[]
[]
["Instructor's Verification of Qualifications:",null,null,null,null,null,null,null,null,null,null,null,null,null,null,null,null,{"$f":"D4988","v":{"$error":"#N/A"}}]
[]
[null," The Board's regulations require instructors to have at least one of the qualifications listed below (22 Pa. Code Section 73.104).  "]
[null," Check all of the qualifications that apply, then attach the documentation needed for at least one of the qualifications you checked."]
[]
[null,"Baccalaureate degree or higher in the intended field of instruction.  (Embed copy of degree and/or transcript.)"]
[]
[null,"Two or more years' work experience in the intended field of instruction which is acceptable to the School Director."]
[null,"(Embed resume and/or letters from former employers describing the nature of the instructor's former duties.)"]
[]
[null,"Two or more years' teaching experience in the intended field of instruction.  "]
[null,"(Embed resume and/or letters from former employers that verify teaching experience and qualification in the field.)"]
[]
[null,"Journeyman's license relevant to the intended field of instruction.  (Embed copy of license.)"]
[]
[null,"Demonstrated competency in the intended field of instruction. "]
[null,"(Embed documentation of competency.  Such documentation would include a copy of a widely accepted license or certificate such "]
[null,"as a CDL, a MCSE certificate, or a \"Train the Trainer\" certificate.)"]
[]
[null,"State certification as a Vocational Educator in the intended field of instruction.  (Embed copy of certificate.)"]
[]
[null,"Embed evidence to verify the instructor's qualifications:"]
[]
[]
[]
[]
[]
[]
[]
[null,null,"Qualifications of Instructor:",{"$f":"'PDE3003 Instructor List'!C62","v":{"$error":"#N/A"}},null,null,null,null,null,null,null,null,null,null,null,null,null,{"$f":"D5096","v":{"$error":"#N/A"}}]
[]
[null,null,"Instructor's Home Address:"]
[]
[]
[]
[]
[null,null,null,"City, State and Zip Code"]
[]
[null,null,null,null,"Is this instructor currently employed by the school? "]
[]
[null,null,"School Director:"]
[null,null,null,"By placing my name above, I certify that, to the best of my knowledge, the information reported herein is true and accurate."]
[]
[null,null,"Date of Certification:"]
[]
["Names of courses to be taught by this instructor in the proposed new program:"]
[]
["Courses:"]
[]
[]
[]
[]
[]
[]
[]
[]
[]
["Courses taught by this instructor in OTHER programs at the school:",null,null,null,null,null,null,null,null,null,null,null,null,null,null,null,null,{"$f":"D5096","v":{"$error":"#N/A"}}]
[]
["Courses:"]
[]
[]
[]
[]
[]
[]
[]
[]
[]
[]
[]
["Instructor's Education:"]
[null,null,null,null,null,null,null,null,"Award Received and Field of Study",null,null,null,null,"Dates Attended"]
[null,"Institution Attended",null,null,null,null,null,null,"(Examples: BS-Computer Science or ",null,null,null,null,"Month/Year",null,"Month/Year"]
[null,"School name, city, & state",null,null,null,null,"Graduated",null,"Diploma-Carpentry or Certificate-Word Processing)",null,null,null,null,"From",null,"To"]
[]
["College:"]
[]
["College:"]
[]
["Other:"]
[]
["Other:"]
[]
["High School:"]
[]
["Instructor's Program-Specific Teaching and/or Work Experience (list chronologically starting with the most recent employer, including this school):",null,null,null,null,null,null,null,null,null,null,null,null,null,null,null,null,{"$f":"D5096","v":{"$error":"#N/A"}}]
[]
[null,null,null,null,null,null,null,null,null,null,null,"Dates of Employment"]
[null,"Employer",null,null,null,null,"Subject(s) Taught or Position Held",null,null,null,null,"Month/Year",null,"Month/Year"]
[null,"Employer name, city, & state",null,null,null,null,"(include supervisory experience)",null,null,null,null,"From",null,"To"]
[]
[]
[]
[]
[]
[]
[]
[]
[]
[]
[]
[]
[]
[]
[]
[]
[]
["Instructor's Verification of Qualifications:",null,null,null,null,null,null,null,null,null,null,null,null,null,null,null,null,{"$f":"D5096","v":{"$error":"#N/A"}}]
[]
[null," The Board's regulations require instructors to have at least one of the qualifications listed below (22 Pa. Code Section 73.104).  "]
[null," Check all of the qualifications that apply, then attach the documentation needed for at least one of the qualifications you checked."]
[]
[null,"Baccalaureate degree or higher in the intended field of instruction.  (Embed copy of degree and/or transcript.)"]
[]
[null,"Two or more years' work experience in the intended field of instruction which is acceptable to the School Director."]
[null,"(Embed resume and/or letters from former employers describing the nature of the instructor's former duties.)"]
[]
[null,"Two or more years' teaching experience in the intended field of instruction.  "]
[null,"(Embed resume and/or letters from former employers that verify teaching experience and qualification in the field.)"]
[]
[null,"Journeyman's license relevant to the intended field of instruction.  (Embed copy of license.)"]
[]
[null,"Demonstrated competency in the intended field of instruction. "]
[null,"(Embed documentation of competency.  Such documentation would include a copy of a widely accepted license or certificate such "]
[null,"as a CDL, a MCSE certificate, or a \"Train the Trainer\" certificate.)"]
[]
[null,"State certification as a Vocational Educator in the intended field of instruction.  (Embed copy of certificate.)"]
[]
[null,"Embed evidence to verify the instructor's qualifications:"]
[]
[]
[]
[]
[]
[]
[]
[null,null,"Qualifications of Instructor:",{"$f":"'PDE3003 Instructor List'!C63","v":{"$error":"#N/A"}},null,null,null,null,null,null,null,null,null,null,null,null,null,{"$f":"D5204","v":{"$error":"#N/A"}}]
[]
[null,null,"Instructor's Home Address:"]
[]
[]
[]
[]
[null,null,null,"City, State and Zip Code"]
[]
[null,null,null,null,"Is this instructor currently employed by the school? "]
[]
[null,null,"School Director:"]
[null,null,null,"By placing my name above, I certify that, to the best of my knowledge, the information reported herein is true and accurate."]
[]
[null,null,"Date of Certification:"]
[]
["Names of courses to be taught by this instructor in the proposed new program:"]
[]
["Courses:"]
[]
[]
[]
[]
[]
[]
[]
[]
[]
["Courses taught by this instructor in OTHER programs at the school:",null,null,null,null,null,null,null,null,null,null,null,null,null,null,null,null,{"$f":"D5204","v":{"$error":"#N/A"}}]
[]
["Courses:"]
[]
[]
[]
[]
[]
[]
[]
[]
[]
[]
[]
["Instructor's Education:"]
[null,null,null,null,null,null,null,null,"Award Received and Field of Study",null,null,null,null,"Dates Attended"]
[null,"Institution Attended",null,null,null,null,null,null,"(Examples: BS-Computer Science or ",null,null,null,null,"Month/Year",null,"Month/Year"]
[null,"School name, city, & state",null,null,null,null,"Graduated",null,"Diploma-Carpentry or Certificate-Word Processing)",null,null,null,null,"From",null,"To"]
[]
["College:"]
[]
["College:"]
[]
["Other:"]
[]
["Other:"]
[]
["High School:"]
[]
["Instructor's Program-Specific Teaching and/or Work Experience (list chronologically starting with the most recent employer, including this school):",null,null,null,null,null,null,null,null,null,null,null,null,null,null,null,null,{"$f":"D5204","v":{"$error":"#N/A"}}]
[]
[null,null,null,null,null,null,null,null,null,null,null,"Dates of Employment"]
[null,"Employer",null,null,null,null,"Subject(s) Taught or Position Held",null,null,null,null,"Month/Year",null,"Month/Year"]
[null,"Employer name, city, & state",null,null,null,null,"(include supervisory experience)",null,null,null,null,"From",null,"To"]
[]
[]
[]
[]
[]
[]
[]
[]
[]
[]
[]
[]
[]
[]
[]
[]
[]
["Instructor's Verification of Qualifications:",null,null,null,null,null,null,null,null,null,null,null,null,null,null,null,null,{"$f":"D5204","v":{"$error":"#N/A"}}]
[]
[null," The Board's regulations require instructors to have at least one of the qualifications listed below (22 Pa. Code Section 73.104).  "]
[null," Check all of the qualifications that apply, then attach the documentation needed for at least one of the qualifications you checked."]
[]
[null,"Baccalaureate degree or higher in the intended field of instruction.  (Embed copy of degree and/or transcript.)"]
[]
[null,"Two or more years' work experience in the intended field of instruction which is acceptable to the School Director."]
[null,"(Embed resume and/or letters from former employers describing the nature of the instructor's former duties.)"]
[]
[null,"Two or more years' teaching experience in the intended field of instruction.  "]
[null,"(Embed resume and/or letters from former employers that verify teaching experience and qualification in the field.)"]
[]
[null,"Journeyman's license relevant to the intended field of instruction.  (Embed copy of license.)"]
[]
[null,"Demonstrated competency in the intended field of instruction. "]
[null,"(Embed documentation of competency.  Such documentation would include a copy of a widely accepted license or certificate such "]
[null,"as a CDL, a MCSE certificate, or a \"Train the Trainer\" certificate.)"]
[]
[null,"State certification as a Vocational Educator in the intended field of instruction.  (Embed copy of certificate.)"]
[]
[null,"Embed evidence to verify the instructor's qualifications:"]
[]
[]
[]
[]
[]
[]
[]
[]
[null,null,"Qualifications of Instructor:",{"$f":"'PDE3003 Instructor List'!C64","v":{"$error":"#N/A"}},null,null,null,null,null,null,null,null,null,null,null,null,null,{"$f":"D5313","v":{"$error":"#N/A"}}]
[]
[null,null,"Instructor's Home Address:"]
[]
[]
[]
[]
[null,null,null,"City, State and Zip Code"]
[]
[null,null,null,null,"Is this instructor currently employed by the school? "]
[]
[null,null,"School Director:"]
[null,null,null,"By placing my name above, I certify that, to the best of my knowledge, the information reported herein is true and accurate."]
[]
[null,null,"Date of Certification:"]
[]
["Names of courses to be taught by this instructor in the proposed new program:"]
[]
["Courses:"]
[]
[]
[]
[]
[]
[]
[]
[]
[]
["Courses taught by this instructor in OTHER programs at the school:",null,null,null,null,null,null,null,null,null,null,null,null,null,null,null,null,{"$f":"D5313","v":{"$error":"#N/A"}}]
[]
["Courses:"]
[]
[]
[]
[]
[]
[]
[]
[]
[]
[]
[]
["Instructor's Education:"]
[null,null,null,null,null,null,null,null,"Award Received and Field of Study",null,null,null,null,"Dates Attended"]
[null,"Institution Attended",null,null,null,null,null,null,"(Examples: BS-Computer Science or ",null,null,null,null,"Month/Year",null,"Month/Year"]
[null,"School name, city, & state",null,null,null,null,"Graduated",null,"Diploma-Carpentry or Certificate-Word Processing)",null,null,null,null,"From",null,"To"]
[]
["College:"]
[]
["College:"]
[]
["Other:"]
[]
["Other:"]
[]
["High School:"]
[]
["Instructor's Program-Specific Teaching and/or Work Experience (list chronologically starting with the most recent employer, including this school):",null,null,null,null,null,null,null,null,null,null,null,null,null,null,null,null,{"$f":"D5313","v":{"$error":"#N/A"}}]
[]
[null,null,null,null,null,null,null,null,null,null,null,"Dates of Employment"]
[null,"Employer",null,null,null,null,"Subject(s) Taught or Position Held",null,null,null,null,"Month/Year",null,"Month/Year"]
[null,"Employer name, city, & state",null,null,null,null,"(include supervisory experience)",null,null,null,null,"From",null,"To"]
[]
[]
[]
[]
[]
[]
[]
[]
[]
[]
[]
[]
[]
[]
[]
[]
[]
["Instructor's Verification of Qualifications:",null,null,null,null,null,null,null,null,null,null,null,null,null,null,null,null,{"$f":"D5313","v":{"$error":"#N/A"}}]
[]
[null," The Board's regulations require instructors to have at least one of the qualifications listed below (22 Pa. Code Section 73.104).  "]
[null," Check all of the qualifications that apply, then attach the documentation needed for at least one of the qualifications you checked."]
[]
[null,"Baccalaureate degree or higher in the intended field of instruction.  (Embed copy of degree and/or transcript.)"]
[]
[null,"Two or more years' work experience in the intended field of instruction which is acceptable to the School Director."]
[null,"(Embed resume and/or letters from former employers describing the nature of the instructor's former duties.)"]
[]
[null,"Two or more years' teaching experience in the intended field of instruction.  "]
[null,"(Embed resume and/or letters from former employers that verify teaching experience and qualification in the field.)"]
[]
[null,"Journeyman's license relevant to the intended field of instruction.  (Embed copy of license.)"]
[]
[null,"Demonstrated competency in the intended field of instruction. "]
[null,"(Embed documentation of competency.  Such documentation would include a copy of a widely accepted license or certificate such "]
[null,"as a CDL, a MCSE certificate, or a \"Train the Trainer\" certificate.)"]
[]
[null,"State certification as a Vocational Educator in the intended field of instruction.  (Embed copy of certificate.)"]
[]
[null,"Embed evidence to verify the instructor's qualifications:"]
[]
[]
[]
[]
[]
[]
[]
["Staffing plans for courses which instructors have not yet been hired:"]
[]
[null,"The Board prefers to see a PDE-279 form for an instructor for every course in the program.  However, the Board recognizes that this is "]
[null,"not always possible. If there are courses in the program for which an instructor has not yet been hired, please indicate those courses.  "]
[null,"Please include only courses which will not be immediately offered at the start of the program.  Provide a staffing plan or a detailed job "]
[null,"description and at least 3 resumes of qualified candidates for each course."]
[]
[null,"Embed staffing plan:"]
[]
[]
[]
[]
[]
[]
[]
[]
["OR"]
[]
[null,"Detailed job description and at least 3 resumes of qualified candidates for each course:"]
[]
[null,"Course:"]
[]
[null,"Embed job description:"]
[]
[]
[]
[]
[]
[]
[]
[]
[null,"Embed resumes of at least 3 qualified candidates for this course:"]
[]
[]
[]
[]
[]
[]
[]
[]
[null,"Detailed job description and at least 3 resumes of qualified candidates for each course:"]
[]
[null,"Course:"]
[]
[null,"Embed job description:"]
[]
[]
[]
[]
[]
[]
[]
[]
[null,"Embed resumes of at least 3 qualified candidates for this course:"]
[]
[]
[]
[]
[]
[]
[]
[]
[null,"Detailed job description and at least 3 resumes of qualified candidates for each course:"]
[]
[null,"Course:"]
[]
[null,"Embed job description:"]
[]
[]
[]
[]
[]
[]
[]
[]
[null,"Embed resumes of at least 3 qualified candidates for this course:"]
[]
[]
[]
[]
[]
[]
[]
[]
[null,"Detailed job description and at least 3 resumes of qualified candidates for each course:"]
[]
[null,"Course:"]
[]
[null,"Embed job description:"]
[]
[]
[]
[]
[]
[]
[]
[]
[null,"Embed resumes of at least 3 qualified candidates for this course:"]
[]
[]
[]
[]
[]
[]
[]
[]
[null,"Detailed job description and at least 3 resumes of qualified candidates for each course:"]
[]
[null,"Course:"]
[]
[null,"Embed job description:"]
[]
[]
[]
[]
[]
[]
[]
[]
[null,"Embed resumes of at least 3 qualified candidates for this course:"]
[]
[]
[]
[]
[]
[]
[]
[]
[null,"Detailed job description and at least 3 resumes of qualified candidates for each course:"]
[]
[null,"Course:"]
[]
[null,"Embed job description:"]
[]
[]
[]
[]
[]
[]
[]
[]
[null,"Embed resumes of at least 3 qualified candidates for this course:"]
[]
[]
[]
[]
[]
[]
[]
[]
[null,"Detailed job description and at least 3 resumes of qualified candidates for each course:"]
[]
[null,"Course:"]
[]
[null,"Embed job description:"]
[]
[]
[]
[]
[]
[]
[]
[]
[null,"Embed resumes of at least 3 qualified candidates for this course:"]
[]
[]
[]
[]
[]
[]
[]
[]
[null,"Detailed job description and at least 3 resumes of qualified candidates for each course:"]
[]
[null,"Course:"]
[]
[null,"Embed job description:"]
[]
[]
[]
[]
[]
[]
[]
[]
[null,"Embed resumes of at least 3 qualified candidates for this course:"]
[]
[]
[]
[]
[]
[]
[]
[]
[null,"Detailed job description and at least 3 resumes of qualified candidates for each course:"]
[]
[null,"Course:"]
[]
[null,"Embed job description:"]
[]
[]
[]
[]
[]
[]
[]
[]
[null,"Embed resumes of at least 3 qualified candidates for this course:"]
[]
[]
[]
[]
[]
[]
[]
[]
[null,"Detailed job description and at least 3 resumes of qualified candidates for each course:"]
[]
[null,"Course:"]
[]
[null,"Embed job description:"]
[]
[]
[]
[]
[]
[]
[]
[]
[null,"Embed resumes of at least 3 qualified candidates for this course:"]
[]
[]
[]
[]
[]
[]
[]
[]
["END OF PDE279 INSTRUCTOR QUALIFICATIONS - PROCEED TO NEXT WORKSHEET TAB"]

{"sheet":"Distance Education","index":8,"n_rows":346,"n_cols":10,"rows_kept":346,"cut":false,"hidden":false,"merged":[[205,1,210,7],[214,1,219,7],[223,1,228,7],[232,1,237,7],[77,1,77,5],[90,1,94,5],[124,1,129,7],[133,1,138,7],[142,1,147,7],[151,1,156,7],[160,1,165,7],[169,1,174,7],[179,1,184,7],[196,1,201,7],[188,1,188,6],[190,1,190,6],[192,1,192,6],[60,1,66,7],[5,0,5,3],[14,1,20,7],[25,1,31,7],[38,1,44,7],[49,1,55,7]]}
["Standard Diploma to AST/ASB Application"]
["Pennsylvania Department of Education"]
[]
["If the program will be regulated by any other agencies, State Boards, or Departments in PDE, their approval letter to offer distance education must be included in the application's 'Documents' worksheet."]
[]
["Private Licensed Schools Memorandum #83 Distance Education"]
[]
["In addition to all other State Board of Private Licensed School program application requirements, the following items must be submitted by schools applying to offer their program to include distance education."]
[]
["Instructors"]
[]
["Describe the experience and background required for instructors in distance education."]
["Embed a document if the information extends beyond the provided text box."]
[]
[]
[]
[]
[]
[]
[]
[]
[]
["Describe the training provided for instructors in distance education."]
["Embed a document if the information extends beyond the provided text box."]
[]
[]
[]
[]
[]
[]
[]
[]
[]
["Distance Education Information"]
[]
["List and describe the resources in place to support student success. "]
["Embed a document if the information extends beyond the provided text box."]
[]
[]
[]
[]
[]
[]
[]
[]
[]
["Provide a narrative as to how this delivery method will be effective for this specific program."]
["Embed a document if the information extends beyond the provided text box."]
[]
[]
[]
[]
[]
[]
[]
[]
[]
["Outline your distance education orientation process for incoming students."]
["Embed a document if the information extends beyond the provided text box."]
[]
[]
[]
[]
[]
[]
[]
[]
[]
["All approvals require a username and password for the reviewer to have full access to the courses being requested. Full courses must be accessible for review. If more than 25% of a program is to be "]
["taught via distance education, a minimum of 25% of the full courses must be accessible for review.  Incomplete courses will not be approved."]
[]
["Schools using non-LMS modalities of instruction, such a Zoom or Skype, must provide access to a 10-15 minute demonstration of the modality."]
["Schools using non-LMS modalities of instruction, such as Google Classroom, must provide access to the intended resource materials."]
["Links and/or access information to non-LMS modalities must be included in the documents worksheet of the application."]
[]
["Provide the URL where the distance education LMS may be accessed:"]
[]
[]
[]
["User Name:"]
[]
[]
[]
["Password:"]
[]
[]
[]
["Special instructions for accessing the site:"]
["Embed a document if the information extends beyond the provided text box."]
[]
[]
[]
[]
[]
[]
[]
["Technology and Equipment"]
[]
["List the technology and equipment that the students will need in order to be successful in completing portions of the program offered via distance education."]
[]
[null,"Technology/Equipment",null,"Make",null,"Model",null,"Specifications"]
[]
[]
[]
[]
[]
[]
[]
[]
[]
[]
[]
[]
[]
[]
[]
[]
[]
[]
[]
[]
[]
["Indicate process to ensure access to academic and student services for distance education students."]
[]
[]
[]
[]
[]
[]
[]
[]
["Indicate process to ensure access to textbook and instructional materials for distance education students."]
[]
[]
[]
[]
[]
[]
[]
[]
["Indicate process to ensure access to library and learning resource center materials for distance education students."]
[]
[]
[]
[]
[]
[]
[]
[]
["Indicate process to ensure faculty interaction for distance education students."]
[]
[]
[]
[]
[]
[]
[]
[]
["Indicate process to ensure integrity of student work for distance education."]
[]
[]
[]
[]
[]
[]
[]
[]
["Provide the assessment process for the distance component."]
[]
[]
[]
[]
[]
[]
[]
[]
["Describe the development of  the distance component.  Is it an off-the-shelf product?  If so, provide vendor information.  If developed in-house, "]
["describe the process and qualifications of developers.  Focus on both content expertise and experience in distance education."]
[]
[]
[]
[]
[]
[]
[]
[]
["Provide name and title of person students should contact with problems related to distance education."]
[]
["Name:"]
[]
["Title:"]
[]
["Email:"]
[]
["How will students be informed of contact information?"]
[]
[]
[]
[]
[]
[]
[]
[]
["Identify the source of student support for technology questions:"]
[]
[]
[]
[]
[]
[]
[]
[]
["How will students be informed of the source of technology support?"]
[]
[]
[]
[]
[]
[]
[]
[]
["Explain the distinction between on-line instruction and homework."]
[]
[]
[]
[]
[]
[]
[]
[]
["Describe faculty development programs for distance education."]
[]
[]
[]
[]
[]
[]
[]
[]
["Provide the faculty/student ratio for each course delivered by distance education.  In the case of instruction provided through a vendor, provide the faculty"]
["student ratio for your school as well as all other students under instruction at the same time by that instructor."]
[]
[null,"Distance Education",null,null,null,null,null,"Faculty:Student",null,"Comprehensive Faculty "]
[null,"Course Number",null,"Course Name",null,null,null,"School Ratio",null,"to Student Ratio for Instructor"]
[]
[1,{"$f":"'Program Outline+Syllabi'!F42","v":0},null,{"$f":"'Program Outline+Syllabi'!J42","v":0}]
[]
[2,{"$f":"'Program Outline+Syllabi'!F47","v":0},null,{"$f":"'Program Outline+Syllabi'!J47","v":0}]
[]
[3,{"$f":"'Program Outline+Syllabi'!F52","v":0},null,{"$f":"'Program Outline+Syllabi'!J52","v":0}]
[]
[4,{"$f":"'Program Outline+Syllabi'!F57","v":0},null,{"$f":"'Program Outline+Syllabi'!J57","v":0}]
[]
[5,{"$f":"'Program Outline+Syllabi'!F62","v":0},null,{"$f":"'Program Outline+Syllabi'!J62","v":0}]
[]
[6,{"$f":"'Program Outline+Syllabi'!F67","v":0},null,{"$f":"'Program Outline+Syllabi'!J67","v":0}]
[]
[7,{"$f":"'Program Outline+Syllabi'!F72","v":0},null,{"$f":"'Program Outline+Syllabi'!J72","v":0}]
[]
[8,{"$f":"'Program Outline+Syllabi'!F77","v":0},null,{"$f":"'Program Outline+Syllabi'!J77","v":0}]
[]
[9,{"$f":"'Program Outline+Syllabi'!F82","v":0},null,{"$f":"'Program Outline+Syllabi'!J82","v":0}]
[]
[10,{"$f":"'Program Outline+Syllabi'!F87","v":0},null,{"$f":"'Program Outline+Syllabi'!J87","v":0}]
[]
[11,{"$f":"'Program Outline+Syllabi'!F92","v":0},null,{"$f":"'Program Outline+Syllabi'!J92","v":0}]
[]
[12,{"$f":"'Program Outline+Syllabi'!F97","v":0},null,{"$f":"'Program Outline+Syllabi'!J97","v":0}]
[]
[13,{"$f":"'Program Outline+Syllabi'!F102","v":0},null,{"$f":"'Program Outline+Syllabi'!J102","v":0}]
[]
[14,{"$f":"'Program Outline+Syllabi'!F107","v":0},null,{"$f":"'Program Outline+Syllabi'!J107","v":0}]
[]
[15,{"$f":"'Program Outline+Syllabi'!F112","v":0},null,{"$f":"'Program Outline+Syllabi'!J112","v":0}]
[]
[16,{"$f":"'Program Outline+Syllabi'!F117","v":0},null,{"$f":"'Program Outline+Syllabi'!J117","v":0}]
[]
[17,{"$f":"'Program Outline+Syllabi'!F122","v":0},null,{"$f":"'Program Outline+Syllabi'!J122","v":0}]
[]
[18,{"$f":"'Program Outline+Syllabi'!F127","v":0},null,{"$f":"'Program Outline+Syllabi'!J127","v":0}]
[]
[19,{"$f":"'Program Outline+Syllabi'!F132","v":0},null,{"$f":"'Program Outline+Syllabi'!J132","v":0}]
[]
[20,{"$f":"'Program Outline+Syllabi'!F137","v":0},null,{"$f":"'Program Outline+Syllabi'!J137","v":0}]
[]
[21,{"$f":"'Program Outline+Syllabi'!F142","v":0},null,{"$f":"'Program Outline+Syllabi'!J142","v":0}]
[]
[22,{"$f":"'Program Outline+Syllabi'!F147","v":0},null,{"$f":"'Program Outline+Syllabi'!J147","v":0}]
[]
[23,{"$f":"'Program Outline+Syllabi'!F152","v":0},null,{"$f":"'Program Outline+Syllabi'!J152","v":0}]
[]
[24,{"$f":"'Program Outline+Syllabi'!F157","v":0},null,{"$f":"'Program Outline+Syllabi'!J157","v":0}]
[]
[25,{"$f":"'Program Outline+Syllabi'!F162","v":0},null,{"$f":"'Program Outline+Syllabi'!J162","v":0}]
[]
[26,{"$f":"'Program Outline+Syllabi'!F167","v":0},null,{"$f":"'Program Outline+Syllabi'!J167","v":0}]
[]
[27,{"$f":"'Program Outline+Syllabi'!F172","v":0},null,{"$f":"'Program Outline+Syllabi'!J172","v":0}]
[]
[28,{"$f":"'Program Outline+Syllabi'!F177","v":0},null,{"$f":"'Program Outline+Syllabi'!J177","v":0}]
[]
[29,{"$f":"'Program Outline+Syllabi'!F182","v":0},null,{"$f":"'Program Outline+Syllabi'!J182","v":0}]
[]
[30,{"$f":"'Program Outline+Syllabi'!F187","v":0},null,{"$f":"'Program Outline+Syllabi'!J187","v":0}]
[]
[31,{"$f":"'Program Outline+Syllabi'!F192","v":0},null,{"$f":"'Program Outline+Syllabi'!J192","v":0}]
[]
[32,{"$f":"'Program Outline+Syllabi'!F197","v":0},null,{"$f":"'Program Outline+Syllabi'!J197","v":0}]
[]
[33,{"$f":"'Program Outline+Syllabi'!F202","v":0},null,{"$f":"'Program Outline+Syllabi'!J202","v":0}]
[]
[34,{"$f":"'Program Outline+Syllabi'!F207","v":0},null,{"$f":"'Program Outline+Syllabi'!J207","v":0}]
[]
[35,{"$f":"'Program Outline+Syllabi'!F212","v":0},null,{"$f":"'Program Outline+Syllabi'!J212","v":0}]
[]
[36,{"$f":"'Program Outline+Syllabi'!F217","v":0},null,{"$f":"'Program Outline+Syllabi'!J217","v":0}]
[]
[37,{"$f":"'Program Outline+Syllabi'!F222","v":0},null,{"$f":"'Program Outline+Syllabi'!J222","v":0}]
[]
[38,{"$f":"'Program Outline+Syllabi'!F227","v":0},null,{"$f":"'Program Outline+Syllabi'!J227","v":0}]
[]
[39,{"$f":"'Program Outline+Syllabi'!F232","v":0},null,{"$f":"'Program Outline+Syllabi'!J232","v":0}]
[]
[40,{"$f":"'Program Outline+Syllabi'!F237","v":0},null,{"$f":"'Program Outline+Syllabi'!J237","v":0}]
[]
[41,{"$f":"'Program Outline+Syllabi'!F242","v":0},null,{"$f":"'Program Outline+Syllabi'!J242","v":0}]
[]
[42,{"$f":"'Program Outline+Syllabi'!F247","v":0},null,{"$f":"'Program Outline+Syllabi'!J247","v":0}]
[]
[43,{"$f":"'Program Outline+Syllabi'!F252","v":0},null,{"$f":"'Program Outline+Syllabi'!J252","v":0}]
[]
[44,{"$f":"'Program Outline+Syllabi'!F257","v":0},null,{"$f":"'Program Outline+Syllabi'!J257","v":0}]
[]
[45,{"$f":"'Program Outline+Syllabi'!F262","v":0},null,{"$f":"'Program Outline+Syllabi'!J262","v":0}]
[]
[46,{"$f":"'Program Outline+Syllabi'!F267","v":0},null,{"$f":"'Program Outline+Syllabi'!J267","v":0}]
[]
[47,{"$f":"'Program Outline+Syllabi'!F272","v":0},null,{"$f":"'Program Outline+Syllabi'!J272","v":0}]
[]
[48,{"$f":"'Program Outline+Syllabi'!F277","v":0},null,{"$f":"'Program Outline+Syllabi'!J277","v":0}]
[]
[49,{"$f":"'Program Outline+Syllabi'!F282","v":0},null,{"$f":"'Program Outline+Syllabi'!J282","v":0}]
[]
[50,{"$f":"'Program Outline+Syllabi'!F287","v":0},null,{"$f":"'Program Outline+Syllabi'!J287","v":0}]
[]
["END OF DISTANCE EDUCATION - PROCEED TO NEXT WORKSHEET TAB"]

{"sheet":"Externship","index":9,"n_rows":266,"n_cols":5,"rows_kept":266,"cut":false,"hidden":false,"merged":[[55,5,55,8],[57,5,57,8],[11,1,16,2],[20,1,25,2],[29,1,34,2],[39,1,44,2],[55,1,60,2],[62,1,67,2],[62,5,62,8],[64,5,64,8],[69,1,74,2],[69,5,69,8],[71,5,71,8],[76,1,81,2],[76,5,76,8],[78,5,78,8],[83,1,88,2],[83,5,83,8],[85,5,85,8],[90,1,95,2],[90,5,90,8],[92,5,92,8],[97,1,102,2],[97,5,97,8],[99,5,99,8],[104,1,109,2],[104,5,104,8],[106,5,106,8],[111,1,116,2],[111,5,111,8],[113,5,113,8],[118,1,123,2],[118,5,118,8],[120,5,120,8],[125,1,130,2],[125,5,125,8],[127,5,127,8],[132,1,137,2],[132,5,132,8],[134,5,134,8],[139,1,144,2],[139,5,139,8],[141,5,141,8],[146,1,151,2],[146,5,146,8],[148,5,148,8],[153,1,158,2],[153,5,153,8],[155,5,155,8],[160,1,165,2],[160,5,160,8],[162,5,162,8],[167,1,172,2],[167,5,167,8],[169,5,169,8],[174,1,179,2],[174,5,174,8],[176,5,176,8],[181,1,186,2],[181,5,181,8],[183,5,183,8],[188,1,193,2],[188,5,188,8],[190,5,190,8],[195,1,200,2],[195,5,195,8],[197,5,197,8],[202,1,207,2],[202,5,202,8],[204,5,204,8],[209,1,214,2],[209,5,209,8],[211,5,211,8],[216,1,221,2],[216,5,216,8],[218,5,218,8],[223,1,228,2],[223,5,223,8],[225,5,225,8],[230,1,235,2],[230,5,230,8],[232,5,232,8],[237,1,242,2],[237,5,237,8],[239,5,239,8],[258,1,263,2],[258,5,258,8],[260,5,260,8],[244,1,249,2],[244,5,244,8],[246,5,246,8],[251,1,256,2],[251,5,251,8],[253,5,253,8]]}
["Standard Diploma to AST/ASB Application"]
["Pennsylvania Department of Education"]
[]
["Will the proposed program include an externship?"]
[]
["If the program will include an externship, the following information must be provided."]
[]
["Indicate the item number on the Program Outline+Syllabi worksheet that contains the syllabus for the externship."]
[]
["Embed the site selection criteria for the externship below:"]
[]
[]
[]
[]
[]
[]
[]
[]
["Embed the list of school responsibilities for the externship below:"]
[]
[]
[]
[]
[]
[]
[]
[]
["Embed the list of site responsibilities for the externship below:"]
[]
[]
[]
[]
[]
[]
[]
[]
["Embed the grading rubric for the externship below:"]
["The evaluation rubric must be detailed and it must asses practical skills.  Ensure that the externship evaluation rubric does not assess only \"soft skills.\""]
[]
[]
[]
[]
[]
[]
[]
[]
["The school must show evidence that it has sufficient externship sites to support the intended enrollment.  "]
[]
["Your first cohort is projected to enroll"]
[{"$f":"Summary!B137","v":0},"students.  Please paste completed and signed agreements to show at least "]
[{"$f":"A50","v":0},"externship sites."]
["If the numbers for projected enrollment do not appear accurate, adjust the 'maximum number of students at start-up', line item 65 in the Summary worksheet."]
[]
["Embed completed and signed site agreements specific to this program:"]
[]
[1,null,null,null,"Site Name:"]
[]
[null,null,null,null,"Location - City, State:"]
[]
[null,null,null,null,"Number of externs:"]
[]
[]
[2,null,null,null,"Site Name:"]
[]
[null,null,null,null,"Location - City, State:"]
[]
[null,null,null,null,"Number of externs:"]
[]
[]
[3,null,null,null,"Site Name:"]
[]
[null,null,null,null,"Location - City, State:"]
[]
[null,null,null,null,"Number of externs:"]
[]
[]
[4,null,null,null,"Site Name:"]
[]
[null,null,null,null,"Location - City, State:"]
[]
[null,null,null,null,"Number of externs:"]
[]
[]
[5,null,null,null,"Site Name:"]
[]
[null,null,null,null,"Location - City, State:"]
[]
[null,null,null,null,"Number of externs:"]
[]
[]
[6,null,null,null,"Site Name:"]
[]
[null,null,null,null,"Location - City, State:"]
[]
[null,null,null,null,"Number of externs:"]
[]
[]
[7,null,null,null,"Site Name:"]
[]
[null,null,null,null,"Location - City, State:"]
[]
[null,null,null,null,"Number of externs:"]
[]
[]
[8,null,null,null,"Site Name:"]
[]
[null,null,null,null,"Location - City, State:"]
[]
[null,null,null,null,"Number of externs:"]
[]
[]
[9,null,null,null,"Site Name:"]
[]
[null,null,null,null,"Location - City, State:"]
[]
[null,null,null,null,"Number of externs:"]
[]
[]
[10,null,null,null,"Site Name:"]
[]
[null,null,null,null,"Location - City, State:"]
[]
[null,null,null,null,"Number of externs:"]
[]
[]
[11,null,null,null,"Site Name:"]
[]
[null,null,null,null,"Location - City, State:"]
[]
[null,null,null,null,"Number of externs:"]
[]
[]
[12,null,null,null,"Site Name:"]
[]
[null,null,null,null,"Location - City, State:"]
[]
[null,null,null,null,"Number of externs:"]
[]
[]
[13,null,null,null,"Site Name:"]
[]
[null,null,null,null,"Location - City, State:"]
[]
[null,null,null,null,"Number of externs:"]
[]
[]
[14,null,null,null,"Site Name:"]
[]
[null,null,null,null,"Location - City, State:"]
[]
[null,null,null,null,"Number of externs:"]
[]
[]
[15,null,null,null,"Site Name:"]
[]
[null,null,null,null,"Location - City, State:"]
[]
[null,null,null,null,"Number of externs:"]
[]
[]
[16,null,null,null,"Site Name:"]
[]
[null,null,null,null,"Location - City, State:"]
[]
[null,null,null,null,"Number of externs:"]
[]
[]
[17,null,null,null,"Site Name:"]
[]
[null,null,null,null,"Location - City, State:"]
[]
[null,null,null,null,"Number of externs:"]
[]
[]
[18,null,null,null,"Site Name:"]
[]
[null,null,null,null,"Location - City, State:"]
[]
[null,null,null,null,"Number of externs:"]
[]
[]
[19,null,null,null,"Site Name:"]
[]
[null,null,null,null,"Location - City, State:"]
[]
[null,null,null,null,"Number of externs:"]
[]
[]
[20,null,null,null,"Site Name:"]
[]
[null,null,null,null,"Location - City, State:"]
[]
[null,null,null,null,"Number of externs:"]
[]
[]
[21,null,null,null,"Site Name:"]
[]
[null,null,null,null,"Location - City, State:"]
[]
[null,null,null,null,"Number of externs:"]
[]
[]
[22,null,null,null,"Site Name:"]
[]
[null,null,null,null,"Location - City, State:"]
[]
[null,null,null,null,"Number of externs:"]
[]
[]
[23,null,null,null,"Site Name:"]
[]
[null,null,null,null,"Location - City, State:"]
[]
[null,null,null,null,"Number of externs:"]
[]
[]
[24,null,null,null,"Site Name:"]
[]
[null,null,null,null,"Location - City, State:"]
[]
[null,null,null,null,"Number of externs:"]
[]
[]
[25,null,null,null,"Site Name:"]
[]
[null,null,null,null,"Location - City, State:"]
[]
[null,null,null,null,"Number of externs:"]
[]
[]
[26,null,null,null,"Site Name:"]
[]
[null,null,null,null,"Location - City, State:"]
[]
[null,null,null,null,"Number of externs:"]
[]
[]
[27,null,null,null,"Site Name:"]
[]
[null,null,null,null,"Location - City, State:"]
[]
[null,null,null,null,"Number of externs:"]
[]
[]
[28,null,null,null,"Site Name:"]
[]
[null,null,null,null,"Location - City, State:"]
[]
[null,null,null,null,"Number of externs:"]
[]
[]
[29,null,null,null,"Site Name:"]
[]
[null,null,null,null,"Location - City, State:"]
[]
[null,null,null,null,"Number of externs:"]
[]
[]
[30,null,null,null,"Site Name:"]
[]
[null,null,null,null,"Location - City, State:"]
[]
[null,null,null,null,"Number of externs:"]
[]
[]
["END OF EXTERNSHIP - PROCEED TO NEXT WORKSHEET TAB"]

{"sheet":"Job Opportunities","index":10,"n_rows":694,"n_cols":13,"rows_kept":694,"cut":false,"hidden":false,"merged":[[17,6,17,16],[19,6,19,16],[21,6,21,16],[23,6,23,16],[35,5,35,9],[37,5,37,9],[59,5,59,9],[61,5,61,9],[64,1,64,5],[68,1,73,2],[75,5,75,9],[77,5,77,9],[39,5,39,9],[41,5,41,9],[44,1,44,5],[48,1,53,2],[55,5,55,9],[57,5,57,9],[99,5,99,9],[101,5,101,9],[104,1,104,5],[108,1,113,2],[115,5,115,9],[117,5,117,9],[79,5,79,9],[81,5,81,9],[84,1,84,5],[88,1,93,2],[95,5,95,9],[97,5,97,9],[139,5,139,9],[141,5,141,9],[144,1,144,5],[148,1,153,2],[155,5,155,9],[157,5,157,9],[119,5,119,9],[121,5,121,9],[124,1,124,5],[128,1,133,2],[135,5,135,9],[137,5,137,9],[179,5,179,9],[181,5,181,9],[184,1,184,5],[188,1,193,2],[195,5,195,9],[197,5,197,9],[159,5,159,9],[161,5,161,9],[164,1,164,5],[168,1,173,2],[175,5,175,9],[177,5,177,9],[219,5,219,9],[221,5,221,9],[224,1,224,5],[228,1,233,2],[235,5,235,9],[237,5,237,9],[199,5,199,9],[201,5,201,9],[204,1,204,5],[208,1,213,2],[215,5,215,9],[217,5,217,9],[259,5,259,9],[261,5,261,9],[264,1,264,5],[268,1,273,2],[275,5,275,9],[277,5,277,9],[239,5,239,9],[241,5,241,9],[244,1,244,5],[248,1,253,2],[255,5,255,9],[257,5,257,9],[299,5,299,9],[301,5,301,9],[304,1,304,5],[308,1,313,2],[315,5,315,9],[317,5,317,9],[279,5,279,9],[281,5,281,9],[284,1,284,5],[288,1,293,2],[295,5,295,9],[297,5,297,9],[339,5,339,9],[341,5,341,9],[344,1,344,5],[348,1,353,2],[355,5,355,9],[357,5,357,9],[319,5,319,9],[321,5,321,9],[324,1,324,5],[328,1,333,2],[335,5,335,9],[337,5,337,9],[379,5,379,9],[381,5,381,9],[384,1,384,5],[388,1,393,2],[395,5,395,9],[397,5,397,9],[359,5,359,9],[361,5,361,9],[364,1,364,5],[368,1,373,2],[375,5,375,9],[377,5,377,9],[419,5,419,9],[421,5,421,9],[424,1,424,5],[428,1,433,2],[435,5,435,9],[437,5,437,9],[399,5,399,9],[401,5,401,9],[404,1,404,5],[408,1,413,2],[415,5,415,9],[417,5,417,9],[459,5,459,9],[461,5,461,9],[464,1,464,5],[468,1,473,2],[475,5,475,9],[477,5,477,9],[439,5,439,9],[441,5,441,9],[444,1,444,5],[448,1,453,2],[455,5,455,9],[457,5,457,9],[499,5,499,9],[501,5,501,9],[504,1,504,5],[508,1,513,2],[515,5,515,9],[517,5,517,9],[479,5,479,9],[481,5,481,9],[484,1,484,5],[488,1,493,2],[495,5,495,9],[497,5,497,9],[539,5,539,9],[541,5,541,9],[544,1,544,5],[548,1,553,2],[555,5,555,9],[557,5,557,9],[519,5,519,9],[521,5,521,9],[524,1,524,5],[528,1,533,2],[535,5,535,9],[537,5,537,9],[579,5,579,9],[581,5,581,9],[584,1,584,5],[588,1,593,2],[595,5,595,9],[597,5,597,9],[559,5,559,9],[561,5,561,9],[564,1,564,5],[568,1,573,2],[575,5,575,9],[577,5,577,9],[619,5,619,9],[621,5,621,9],[624,1,624,5],[628,1,633,2],[643,1,648,2],[643,4,648,5],[643,7,648,8],[599,5,599,9],[601,5,601,9],[604,1,604,5],[608,1,613,2],[615,5,615,9],[617,5,617,9],[686,1,691,2],[664,1,669,2],[675,1,680,2],[675,4,680,5],[675,7,680,8],[675,10,680,11],[675,13,680,14],[643,10,648,11],[643,13,648,14],[650,1,655,2],[650,4,655,5],[650,7,655,8],[650,10,655,11],[650,13,655,14]]}
["Standard Diploma to AST/ASB Application"]
["Pennsylvania Department of Education"]
[]
["Evidence must be provided to show that there is a job market to support the program graduates and that the program adequately prepares graduates for jobs in the field.  "]
["This is traditionally provided in the form of job advertisements.  "]
["If using job advertisements, it is the applicants responsibility to show adequate employment opportunities to justify the intended size and enrollment in the program."]
[]
["Note that the Board does not have a specific requirement for a specific number of job advertisements. "]
["If the program will enroll only two cohorts per year, the application might include enough opportunities for the first cohort.  "]
["If the program will have monthly starts, it might be necessary to show enough opportunities for all graduates in the first year."]
[]
["It is also possible to demonstrate employment opportunities through with letters from potential employers, local market data or advisory committee minutes. "]
[]
["Evidence of employment opportunities will be provided in the following ways.  Please check all that apply:"]
[]
[null,"Job Advertisements"]
[]
[null,"Letters from Employers",null,null,null,null,"Letters should be entered in the section starting with row 636 at the bottom of this worksheet."]
[]
[null,"Local Market Data",null,null,null,null,"Data should be entered in the section starting with row 658 at the bottom of this worksheet."]
[]
[null,"Other Job Opportunities",null,null,null,null,"Opportunities should be entered in the section starting with row 672 at the bottom of this worksheet."]
[]
[null,"Program Advisory Committee (PAC) Meeting Minutes",null,null,null,null,"Minutes should be entered in the section starting with row 683 at the bottom of this worksheet."]
[]
["NOTE:  It is not necessary to provide all of the following.  It is only necessary to show sufficient evidence of opportunities for the intended enrollment."]
[]
["Job Advertisements"]
[]
["Please be careful to ensure that the job opportunities do not require education, skills, job experience or certifications that are not "]
["either included in your program or required for admission."]
[]
["Screenshot each advertisement and place the image into a MS Word document.  Do not retype or copy/paste the job advertisement.  "]
["Embed an actual copy of each advertisement, ensure the entire advertisement is made available for viewing."]
[]
[1,"Employer Name:"]
[]
[null,"Work experience required for this position:"]
[]
[null,"Education required for this position:"]
[]
[null,"Certification(s) required for this position:"]
[]
[null,"If available, provide a website link to the advertisement.  Provide website links only in addition to a copy of the advertisement, not instead of."]
[]
[]
[null,"Embed a copy of the job advertisement:"]
[]
[]
[]
[]
[]
[]
[]
[]
[2,"Employer Name:"]
[]
[null,"Work experience required for this position:"]
[]
[null,"Education required for this position:"]
[]
[null,"Certification(s) required for this position:"]
[]
[null,"If available, provide a website link to the advertisement.  Provide website links only in addition to a copy of the advertisement, not instead of."]
[]
[]
[null,"Embed a copy of the job advertisement:"]
[]
[]
[]
[]
[]
[]
[]
[]
[3,"Employer Name:"]
[]
[null,"Work experience required for this position:"]
[]
[null,"Education required for this position:"]
[]
[null,"Certification(s) required for this position:"]
[]
[null,"If available, provide a website link to the advertisement.  Provide website links only in addition to a copy of the advertisement, not instead of."]
[]
[]
[null,"Embed a copy of the job advertisement:"]
[]
[]
[]
[]
[]
[]
[]
[]
[4,"Employer Name:"]
[]
[null,"Work experience required for this position:"]
[]
[null,"Education required for this position:"]
[]
[null,"Certification(s) required for this position:"]
[]
[null,"If available, provide a website link to the advertisement.  Provide website links only in addition to a copy of the advertisement, not instead of."]
[]
[]
[null,"Embed a copy of the job advertisement:"]
[]
[]
[]
[]
[]
[]
[]
[]
[5,"Employer Name:"]
[]
[null,"Work experience required for this position:"]
[]
[null,"Education required for this position:"]
[]
[null,"Certification(s) required for this position:"]
[]
[null,"If available, provide a website link to the advertisement.  Provide website links only in addition to a copy of the advertisement, not instead of."]
[]
[]
[null,"Embed a copy of the job advertisement:"]
[]
[]
[]
[]
[]
[]
[]
[]
[6,"Employer Name:"]
[]
[null,"Work experience required for this position:"]
[]
[null,"Education required for this position:"]
[]
[null,"Certification(s) required for this position:"]
[]
[null,"If available, provide a website link to the advertisement.  Provide website links only in addition to a copy of the advertisement, not instead of."]
[]
[]
[null,"Embed a copy of the job advertisement:"]
[]
[]
[]
[]
[]
[]
[]
[]
[7,"Employer Name:"]
[]
[null,"Work experience required for this position:"]
[]
[null,"Education required for this position:"]
[]
[null,"Certification(s) required for this position:"]
[]
[null,"If available, provide a website link to the advertisement.  Provide website links only in addition to a copy of the advertisement, not instead of."]
[]
[]
[null,"Embed a copy of the job advertisement:"]
[]
[]
[]
[]
[]
[]
[]
[]
[8,"Employer Name:"]
[]
[null,"Work experience required for this position:"]
[]
[null,"Education required for this position:"]
[]
[null,"Certification(s) required for this position:"]
[]
[null,"If available, provide a website link to the advertisement.  Provide website links only in addition to a copy of the advertisement, not instead of."]
[]
[]
[null,"Embed a copy of the job advertisement:"]
[]
[]
[]
[]
[]
[]
[]
[]
[9,"Employer Name:"]
[]
[null,"Work experience required for this position:"]
[]
[null,"Education required for this position:"]
[]
[null,"Certification(s) required for this position:"]
[]
[null,"If available, provide a website link to the advertisement.  Provide website links only in addition to a copy of the advertisement, not instead of."]
[]
[]
[null,"Embed a copy of the job advertisement:"]
[]
[]
[]
[]
[]
[]
[]
[]
[10,"Employer Name:"]
[]
[null,"Work experience required for this position:"]
[]
[null,"Education required for this position:"]
[]
[null,"Certification(s) required for this position:"]
[]
[null,"If available, provide a website link to the advertisement.  Provide website links only in addition to a copy of the advertisement, not instead of."]
[]
[]
[null,"Embed a copy of the job advertisement:"]
[]
[]
[]
[]
[]
[]
[]
[]
[11,"Employer Name:"]
[]
[null,"Work experience required for this position:"]
[]
[null,"Education required for this position:"]
[]
[null,"Certification(s) required for this position:"]
[]
[null,"If available, provide a website link to the advertisement.  Provide website links only in addition to a copy of the advertisement, not instead of."]
[]
[]
[null,"Embed a copy of the job advertisement:"]
[]
[]
[]
[]
[]
[]
[]
[]
[12,"Employer Name:"]
[]
[null,"Work experience required for this position:"]
[]
[null,"Education required for this position:"]
[]
[null,"Certification(s) required for this position:"]
[]
[null,"If available, provide a website link to the advertisement.  Provide website links only in addition to a copy of the advertisement, not instead of."]
[]
[]
[null,"Embed a copy of the job advertisement:"]
[]
[]
[]
[]
[]
[]
[]
[]
[13,"Employer Name:"]
[]
[null,"Work experience required for this position:"]
[]
[null,"Education required for this position:"]
[]
[null,"Certification(s) required for this position:"]
[]
[null,"If available, provide a website link to the advertisement.  Provide website links only in addition to a copy of the advertisement, not instead of."]
[]
[]
[null,"Embed a copy of the job advertisement:"]
[]
[]
[]
[]
[]
[]
[]
[]
[14,"Employer Name:"]
[]
[null,"Work experience required for this position:"]
[]
[null,"Education required for this position:"]
[]
[null,"Certification(s) required for this position:"]
[]
[null,"If available, provide a website link to the advertisement.  Provide website links only in addition to a copy of the advertisement, not instead of."]
[]
[]
[null,"Embed a copy of the job advertisement:"]
[]
[]
[]
[]
[]
[]
[]
[]
[15,"Employer Name:"]
[]
[null,"Work experience required for this position:"]
[]
[null,"Education required for this position:"]
[]
[null,"Certification(s) required for this position:"]
[]
[null,"If available, provide a website link to the advertisement.  Provide website links only in addition to a copy of the advertisement, not instead of."]
[]
[]
[null,"Embed a copy of the job advertisement:"]
[]
[]
[]
[]
[]
[]
[]
[]
[16,"Employer Name:"]
[]
[null,"Work experience required for this position:"]
[]
[null,"Education required for this position:"]
[]
[null,"Certification(s) required for this position:"]
[]
[null,"If available, provide a website link to the advertisement.  Provide website links only in addition to a copy of the advertisement, not instead of."]
[]
[]
[null,"Embed a copy of the job advertisement:"]
[]
[]
[]
[]
[]
[]
[]
[]
[17,"Employer Name:"]
[]
[null,"Work experience required for this position:"]
[]
[null,"Education required for this position:"]
[]
[null,"Certification(s) required for this position:"]
[]
[null,"If available, provide a website link to the advertisement.  Provide website links only in addition to a copy of the advertisement, not instead of."]
[]
[]
[null,"Embed a copy of the job advertisement:"]
[]
[]
[]
[]
[]
[]
[]
[]
[18,"Employer Name:"]
[]
[null,"Work experience required for this position:"]
[]
[null,"Education required for this position:"]
[]
[null,"Certification(s) required for this position:"]
[]
[null,"If available, provide a website link to the advertisement.  Provide website links only in addition to a copy of the advertisement, not instead of."]
[]
[]
[null,"Embed a copy of the job advertisement:"]
[]
[]
[]
[]
[]
[]
[]
[]
[19,"Employer Name:"]
[]
[null,"Work experience required for this position:"]
[]
[null,"Education required for this position:"]
[]
[null,"Certification(s) required for this position:"]
[]
[null,"If available, provide a website link to the advertisement.  Provide website links only in addition to a copy of the advertisement, not instead of."]
[]
[]
[null,"Embed a copy of the job advertisement:"]
[]
[]
[]
[]
[]
[]
[]
[]
[20,"Employer Name:"]
[]
[null,"Work experience required for this position:"]
[]
[null,"Education required for this position:"]
[]
[null,"Certification(s) required for this position:"]
[]
[null,"If available, provide a website link to the advertisement.  Provide website links only in addition to a copy of the advertisement, not instead of."]
[]
[]
[null,"Embed a copy of the job advertisement:"]
[]
[]
[]
[]
[]
[]
[]
[]
[21,"Employer Name:"]
[]
[null,"Work experience required for this position:"]
[]
[null,"Education required for this position:"]
[]
[null,"Certification(s) required for this position:"]
[]
[null,"If available, provide a website link to the advertisement.  Provide website links only in addition to a copy of the advertisement, not instead of."]
[]
[]
[null,"Embed a copy of the job advertisement:"]
[]
[]
[]
[]
[]
[]
[]
[]
[22,"Employer Name:"]
[]
[null,"Work experience required for this position:"]
[]
[null,"Education required for this position:"]
[]
[null,"Certification(s) required for this position:"]
[]
[null,"If available, provide a website link to the advertisement.  Provide website links only in addition to a copy of the advertisement, not instead of."]
[]
[]
[null,"Embed a copy of the job advertisement:"]
[]
[]
[]
[]
[]
[]
[]
[]
[23,"Employer Name:"]
[]
[null,"Work experience required for this position:"]
[]
[null,"Education required for this position:"]
[]
[null,"Certification(s) required for this position:"]
[]
[null,"If available, provide a website link to the advertisement.  Provide website links only in addition to a copy of the advertisement, not instead of."]
[]
[]
[null,"Embed a copy of the job advertisement:"]
[]
[]
[]
[]
[]
[]
[]
[]
[24,"Employer Name:"]
[]
[null,"Work experience required for this position:"]
[]
[null,"Education required for this position:"]
[]
[null,"Certification(s) required for this position:"]
[]
[null,"If available, provide a website link to the advertisement.  Provide website links only in addition to a copy of the advertisement, not instead of."]
[]
[]
[null,"Embed a copy of the job advertisement:"]
[]
[]
[]
[]
[]
[]
[]
[]
[25,"Employer Name:"]
[]
[null,"Work experience required for this position:"]
[]
[null,"Education required for this position:"]
[]
[null,"Certification(s) required for this position:"]
[]
[null,"If available, provide a website link to the advertisement.  Provide website links only in addition to a copy of the advertisement, not instead of."]
[]
[]
[null,"Embed a copy of the job advertisement:"]
[]
[]
[]
[]
[]
[]
[]
[]
[26,"Employer Name:"]
[]
[null,"Work experience required for this position:"]
[]
[null,"Education required for this position:"]
[]
[null,"Certification(s) required for this position:"]
[]
[null,"If available, provide a website link to the advertisement.  Provide website links only in addition to a copy of the advertisement, not instead of."]
[]
[]
[null,"Embed a copy of the job advertisement:"]
[]
[]
[]
[]
[]
[]
[]
[]
[27,"Employer Name:"]
[]
[null,"Work experience required for this position:"]
[]
[null,"Education required for this position:"]
[]
[null,"Certification(s) required for this position:"]
[]
[null,"If available, provide a website link to the advertisement.  Provide website links only in addition to a copy of the advertisement, not instead of."]
[]
[]
[null,"Embed a copy of the job advertisement:"]
[]
[]
[]
[]
[]
[]
[]
[]
[28,"Employer Name:"]
[]
[null,"Work experience required for this position:"]
[]
[null,"Education required for this position:"]
[]
[null,"Certification(s) required for this position:"]
[]
[null,"If available, provide a website link to the advertisement.  Provide website links only in addition to a copy of the advertisement, not instead of."]
[]
[]
[null,"Embed a copy of the job advertisement:"]
[]
[]
[]
[]
[]
[]
[]
[]
[29,"Employer Name:"]
[]
[null,"Work experience required for this position:"]
[]
[null,"Education required for this position:"]
[]
[null,"Certification(s) required for this position:"]
[]
[null,"If available, provide a website link to the advertisement.  Provide website links only in addition to a copy of the advertisement, not instead of."]
[]
[]
[null,"Embed a copy of the job advertisement:"]
[]
[]
[]
[]
[]
[]
[]
[]
[30,"Employer Name:"]
[]
[null,"Work experience required for this position:"]
[]
[null,"Education required for this position:"]
[]
[null,"Certification(s) required for this position:"]
[]
[null,"If available, provide a website link to the advertisement.  Provide website links only in addition to a copy of the advertisement, not instead of."]
[]
[]
[null,"Embed a copy of the job advertisement:"]
[]
[]
[]
[]
[]
[]
[]
[]
["Letters from Employers"]
[]
["Letters from employers may be included to demonstrate job opportunities.  Please note that it is the applicant's responsibility to provide evidence "]
["of adequate openings to support the program.  Letters should also provide evidence that graduates of the program will be adequately prepared for "]
["employment in the field."]
[]
[null,"Embed letters from potential employers below:"]
[]
[1,null,null,2,null,null,3,null,null,4,null,null,5]
[]
[]
[]
[]
[]
[]
[6,null,null,7,null,null,8,null,null,9,null,null,10]
[]
[]
[]
[]
[]
[]
["Local Market Data"]
[]
["Insert local market data below.  Please note that data must be current and specific to your region. "]
["National data or old data will not be adequate to show employment opportunities."]
[]
[null,"Embed a copy of the local market data:"]
[]
[]
[]
[]
[]
[]
[]
[]
["Other Job Opportunities"]
[]
[null,"Embed other evidence of employment opportunities below:"]
[]
[1,null,null,2,null,null,3,null,null,4,null,null,5]
[]
[]
[]
[]
[]
[]
["Program Advisory Committee (PAC) Meeting Minutes"]
[]
[null,"Embed a copy of the program advisory committee meeting minutes:"]
[]
[]
[]
[]
[]
[]
[]
[]
["END OF JOB OPPORTUNITIES - PROCEED TO NEXT WORKSHEET TAB"]

{"sheet":"LRC","index":11,"n_rows":49,"n_cols":1,"rows_kept":49,"cut":false,"hidden":false,"merged":[[40,0,40,7],[32,0,37,0],[32,1,38,15],[12,0,17,0],[12,1,18,15],[22,0,27,0],[22,1,28,15]]}
["Standard Diploma to AST/ASB Application"]
["Pennsylvania Department of Education"]
[]
["Regulations mandate a specific general education course component. All general education courses and, where applicable, specialized courses should include research gathering assignments using the Library/Learning Resource Center (LRC)."]
["At minimum 5-7 course syllabi should contain assignments requiring research through the LRC."]
[]
["The Library/Learning Resource Center (LRC) must be adequate for the type of programs offered by the institution."]
["An adequate LRC will include appropriate reference books, journals relating to the program offered, and electronic and/or technological access designed to serve this curriculum. "]
["The budget of the institution must provide for the maintenance of the LRC, both in acquisition and in operation."]
[]
["A. Describe how the students are given assignments throughout the program that require them to make use of the LRC and give specific examples from the course syllabi."]
[]
[]
[]
[]
[]
[]
[]
[]
[]
["B. Discuss how the institution will document a student’s ability to use the LRC effectively. "]
[]
[]
[]
[]
[]
[]
[]
[]
[]
["C. Describe how the LRC is supervised and supported during all hours of operation. "]
[]
[]
[]
[]
[]
[]
[]
[]
[]
["D. What percentage of the total instructional budget is allotted to the LRC?"]
[]
[]
[]
["E. What is the amount in annual dollars budgeted for the LRC including salaries and acquisitions?"]
[]
[]
[]
["END OF LIBRARY/LEARNING RESOURCE CENTER - PROCEED TO NEXT WORKSHEET TAB"]

{"sheet":"Equipment","index":12,"n_rows":70,"n_cols":14,"rows_kept":70,"cut":false,"hidden":false,"merged":[]}
["Standard Diploma to AST/ASB Application"]
["Pennsylvania Department of Education"]
[]
["List the major pieces of equipment to be used by students in the program. "]
["List only the equipment to be used in this program. DO NOT give a comprehensive list of all of the school's equipment. Do not list supplies."]
[null,null,null,null,null,null,null,null,null,null,null,"Choose one:"]
[null,null,null,null,null,null,null,null,null,null,null,"On-Site",null,"Student : Equipment "]
[null,"Item of Equipment",null,"Quantity",null,"Make",null,"Model",null,"Specifications",null,"To-be-Ordered",null,"Ratio"]
[]
[]
[]
[]
[]
[]
[]
[]
[]
[]
[]
[]
[]
[]
[]
[]
[]
[]
[]
[]
[]
[]
[]
[]
[]
[]
[]
[]
[]
[]
[]
[]
[]
[]
[]
[]
[]
[]
[]
[]
[]
[]
[]
[]
[]
[]
[]
[]
[]
[]
[]
[]
[]
[]
[]
[]
[]
[]
[]
[]
[]
["END OF PDE3003 EQUIPMENT - PROCEED TO NEXT WORKSHEET TAB"]

{"sheet":"Facility","index":13,"n_rows":237,"n_cols":3,"rows_kept":237,"cut":false,"hidden":false,"merged":[[220,1,225,2],[229,1,234,2],[189,2,189,6],[191,2,191,6],[193,2,193,6],[195,2,195,6],[202,1,207,2],[86,2,86,6],[88,2,88,6],[90,2,90,6],[211,1,216,2],[177,1,182,2],[141,2,141,6],[143,2,143,6],[150,1,155,2],[159,1,164,2],[168,1,173,2],[9,1,14,2],[18,1,23,2],[28,1,33,2],[137,2,137,6],[139,2,139,6],[97,1,102,2],[106,1,111,2],[115,1,120,2],[125,1,130,2],[37,2,37,6],[39,2,39,6],[41,2,41,6],[48,1,53,2],[57,1,62,2],[66,1,71,2],[76,1,81,2]]}
["Standard Diploma to AST/ASB Application"]
["Pennsylvania Department of Education"]
[]
["School Facility:"]
[]
["Embed a copy of the facility floor plan with square footage indicated for all instructional space(s)."]
["On the floor plan, indicate the purpose for the space and show major equipment."]
["If exterior space(s) will be used for instruction, an outdoor space plan, with measurements indicated, along with reference to any obstructions, limitations, and throughways."]
[]
[]
[]
[]
[]
[]
[]
[]
["Embed a copy of the facility's certificate of occupancy."]
[]
[]
[]
[]
[]
[]
[]
[]
["Embed a copy of the current signed agreement, which includes the terms of the arrangement, for the school's facility."]
["If the property is owned by the school, provide supporting evidence of facility ownership."]
[]
[]
[]
[]
[]
[]
[]
[]
["Branch Facility:"]
[]
[null,"Address of Branch Site:"]
[]
[]
[]
[]
[null,null,"City, State and Zip Code"]
[]
["Embed a copy of the facility floor plan with square footage indicated for all instructional space(s)."]
["On the floor plan, indicate the purpose for the space and show major equipment."]
["If exterior space(s) will be used for instruction, an outdoor space plan, with measurements indicated, along with reference to any obstructions, limitations, and throughways."]
[]
[]
[]
[]
[]
[]
[]
[]
["Embed a copy of the certificate of occupancy/zoning permit."]
[]
[]
[]
[]
[]
[]
[]
[]
["Embed evidence that surety has been secured for the location's address."]
[]
[]
[]
[]
[]
[]
[]
[]
["Embed a copy of the current signed agreement, which includes the terms of the arrangement, for the branch facility."]
["If the property is owned by the school, provide supporting evidence of facility ownership."]
[]
[]
[]
[]
[]
[]
[]
[]
[]
["Branch Facility:"]
[]
[null,"Address of Branch Site:"]
[]
[]
[]
[]
[null,null,"City, State and Zip Code"]
[]
["Embed a copy of the facility floor plan with square footage indicated for all instructional space(s)."]
["On the floor plan, indicate the purpose for the space and show major equipment."]
["If exterior space(s) will be used for instruction, an outdoor space plan, with measurements indicated, along with reference to any obstructions, limitations, and throughways."]
[]
[]
[]
[]
[]
[]
[]
[]
["Embed a copy of the certificate of occupancy/zoning permit."]
[]
[]
[]
[]
[]
[]
[]
[]
["Embed evidence that surety has been secured for the location's address."]
[]
[]
[]
[]
[]
[]
[]
[]
["Embed a copy of the current signed agreement, which includes the terms of the arrangement, for the branch facility."]
["If the property is owned by the school, provide supporting evidence of facility ownership."]
[]
[]
[]
[]
[]
[]
[]
[]
["Remote Facility:"]
[]
["If the school will conduct some of the program's clinical/lab coursework at another site, such as a driving range for a trucking program, a clinical site for a nurse aid program, or an off-site laboratory, that facility must be approved as a remote location.  "]
["Each additional facility requires a certificate of occupancy/zoning permit, evidence of surety, a signed agreement or evidence of ownership, a site visit, and payment of the $750 site visit fee."]
[]
[null,"Name of Remote Site:"]
[]
[null,"Address of Remote Site:"]
[]
[]
[]
[]
[null,null,"City, State and Zip Code"]
[]
["Embed a copy of the facility floor plan with square footage indicated for all instructional space(s)."]
["On the floor plan, indicate the purpose for the space and show major equipment."]
["If exterior space(s) will be used for instruction, an outdoor space plan, with measurements indicated, along with reference to any obstructions, limitations, and throughways."]
[]
[]
[]
[]
[]
[]
[]
[]
["Embed a copy of the certificate of occupancy/zoning permit."]
[]
[]
[]
[]
[]
[]
[]
[]
["Embed evidence that surety has been secured for the location's address."]
[]
[]
[]
[]
[]
[]
[]
[]
["Embed the signed agreement describing the terms with the remote location."]
[]
[]
[]
[]
[]
[]
[]
[]
["Remote Facility:"]
[]
["If the school will conduct some of the program's clinical/lab coursework at another site, such as a driving range for a trucking program, a clinical site for a nurse aid program, or an off-site laboratory, that facility must be approved as a remote location.  "]
["Each additional facility requires a certificate of occupancy/zoning permit, evidence of surety, a signed agreement or evidence of ownership, a site visit, and payment of the $750 site visit fee."]
[]
[null,"Name of Remote Site:"]
[]
[null,"Address of Remote Site:"]
[]
[]
[]
[]
[null,null,"City, State and Zip Code"]
[]
["Embed a copy of the facility floor plan with square footage indicated for all instructional space(s)."]
["On the floor plan, indicate the purpose for the space and show major equipment."]
["If exterior space(s) will be used for instruction, an outdoor space plan, with measurements indicated, along with reference to any obstructions, limitations, and throughways."]
[]
[]
[]
[]
[]
[]
[]
[]
["Embed a copy of the certificate of occupancy/zoning permit."]
[]
[]
[]
[]
[]
[]
[]
[]
["Embed evidence that surety has been secured for the location's address."]
[]
[]
[]
[]
[]
[]
[]
[]
["Embed the signed agreement describing the terms with the remote location."]
[]
[]
[]
[]
[]
[]
[]
[]
["END OF FACILITY - PROCEED TO NEXT WORKSHEET TAB"]

{"sheet":"Reading Levels","index":14,"n_rows":70,"n_cols":16,"rows_kept":70,"cut":false,"hidden":false,"merged":[]}
["Standard Diploma to AST/ASB Application"]
["Pennsylvania Department of Education"]
[]
["Provide the following information for each textbook to be used by students."]
[null,null,null,null,null,null,null,null,null,null,null,null,null,"Course Numbers"]
[null,null,null,null,null,null,null,null,null,null,null,"Method Used ",null,"of all courses in which students",null,"Course Names"]
[null,null,null,null,null,null,null,"Date",null,"Grade Level/",null,"to determine",null,"will use this text - list multiple",null,"of all courses in which students will use this text - "]
[null,"Title of Textbook/Resource",null,"Author",null,"Publisher",null,"of Publication",null,"Reading Level",null,"Reading Level",null,"course numbers if necessary",null,"list multiple course names if necessary"]
[]
[]
[]
[]
[]
[]
[]
[]
[]
[]
[]
[]
[]
[]
[]
[]
[]
[]
[]
[]
[]
[]
[]
[]
[]
[]
[]
[]
[]
[]
[]
[]
[]
[]
[]
[]
[]
[]
[]
[]
[]
[]
[]
[]
[]
[]
[]
[]
[]
[]
[]
[]
[]
[]
[]
[]
[]
[]
[]
[]
[]
["END OF READING LEVELS - PROCEED TO NEXT WORKSHEET TAB"]

{"sheet":"Enrollment Agreement","index":15,"n_rows":53,"n_cols":13,"rows_kept":53,"cut":false,"hidden":false,"merged":[[4,1,8,3]]}
["Standard Diploma to AST/ASB Application"]
["Pennsylvania Department of Education"]
[]
[null,"Embed a draft of the enrollment agreement which demonstrates the addition of the proposed new program."]
[]
[]
[]
[]
[]
[]
[null,"Complete the following checklist to certify that all requirements are included."]
[]
[1,"The name and address of the school the student will be attending."]
[2,"The student's name."]
[3,"The program name as approved by the Board and identified in the school’s student information publication (catalog). "]
[4,"The number of clock hours or credit hours and the number of weeks or months required to complete the course or program."]
[5,"The type of award the student will receive upon successful completion of the program (certificate, diploma, AST, ASB)."]
[6,"The costs for the following when applicable: "]
[null,null,"Total tuition for the program (for programs which include nonresident and resident training, the tuition"]
[null,null,"for the nonresident training, the tuition for the resident training, and the total tuition for the complete "]
[null,null,"combined program shall be stated)."]
[null,null,"Estimated costs for books and supplies (if the costs for books and supplies are included in the tuition, "]
[null,null,"this shall be clearly stated)."]
[null,null,"If interest or finance charges, or both, will be charged, the total amount of these charges shall be listed",null,null,null,null,null,null,null,null,null,"n/a"]
[null,null,"in accordance with Federal truth-in-lending and State retail installment requirements."]
[null,null,"If the school provides room or board, or both, the enrollment agreement shall specify that a separate ",null,null,null,null,null,null,null,null,null,"n/a"]
[null,null,"agreement shall be entered into for that purpose. "]
[null,null,"Other costs and charges, such as application fee, student activity fee or laboratory fees, shall be listed. ",null,null,null,null,null,null,null,null,null,"n/a"]
[7,"The terms of payment. The method and terms of payment of costs shall be clearly stated and shall comply with Federal "]
[null,"truth-in-lending and State retail installment requirements. "]
[8,"Student's enrolled start date."]
[9,"Cancellation policy (cancellation of enrollment prior to the start of classes, including refund of fees and tuition)."]
[10,"Refund policy (student withdrawal or school termination after the start of classes)."]
[11,"If employment assistance is provided, an employment guarantee disclaimer must be included. ",null,null,null,null,null,null,null,null,null,null,"n/a"]
[null,"This disclaimer shall be printed in boldface type, in at least 10-point type. "]
[12,"Complaint procedure. A statement informing students that: "]
[null,null,"There is an individual at the school to whom questions or concerns may be directed regarding the school’s "]
[null,null,"satisfying the terms of the enrollment agreement. This individual shall be identified by title. "]
[null,null,"The school is licensed or registered—as applicable—by the Pennsylvania State Board of Private Licensed Schools. "]
[null,null,"Questions or concerns that are not satisfactorily resolved by the school may be brought to the attention of the "]
[null,null,"Pennsylvania State Board of Private Licensed Schools, Division of Law Enforcement Education and Trade Schools, "]
[null,null,"Pennsylvania Department of Education, 333 Market Street, 12th Floor, Harrisburg, Pennsylvania 17126-0333. "]
[13,"A statement verifying that the student has received, read, and understands the school's student information publication (catalog)."]
[14,"A statement acknowledging that the agreement is not binding until it is accepted by a representative of the school."]
[15,"An acknowledgement that the signers have received, read, and understands an exact copy of the fully signed enrollment agreement."]
[16,"An enrollment agreement shall be dated and signed by the applicant."]
[null,"If the applicant is a minor, the enrollment agreement shall be dated and signed by the parent or guardian.",null,null,null,null,null,null,null,null,null,null,"n/a"]
[null,"An enrollment agreement shall be dated and signed by a representative of the school (this will become the effective date)."]
[17,"If the enrollment agreement is longer than one side of a single sheet of paper, each side shall clearly refer to the conditions on ",null,null,null,null,null,null,null,null,null,null,"n/a"]
[null,"the other side as being part of the agreement. If more than one page is used, each page shall be numbered: "]
[null,"page 1 of X pages, page 2 of x pages and the like."]
[]
["END OF ENROLLMENT AGREEMENT - PROCEED TO NEXT WORKSHEET TAB"]

{"sheet":"Catalog","index":16,"n_rows":44,"n_cols":16,"rows_kept":44,"cut":false,"hidden":false,"merged":[[9,8,9,18],[14,1,14,2],[14,4,14,5],[14,7,14,8],[15,1,20,2],[15,4,20,5],[15,7,20,8]]}
["Standard Diploma to AST/ASB Application"]
["Pennsylvania Department of Education"]
[]
["Distance Education notes:"]
[null,"Assign a course number different from the on-ground course number for courses being taught via distance education or to be taught via distance education."]
[null,"Courses taught in part via distance education (hybrid) are still considered distance education and must be assigned a new course number."]
[null,"Course catalogs must reflect the on-ground and/or distance education assigned course numbers, when both delivery options are available to students."]
[null,"Academic transcripts must reflect the on-ground and/or distance education assigned course numbers attempted by the student."]
[]
[null,null,null,null,null,null,null,"If the school's current catalog is available on-line, provide the web link:"]
[]
[null,"Embed either a draft of the catalog which demonstrates the addition of the proposed program OR the current catalog and the necessary addendum; include affected school policies if adding distance education (i.e. make-up policy, attendance policy, etc.)."]
[null,"Ensure all program-specific information is included; i.e. tuition, admission requirements, courses, program award, etc."]
[]
[null,"Current Catalog",null,null,"Addendum",null,null,"Draft Catalog"]
[]
[]
[null,null,null,"and",null,null,"or"]
[]
[]
[]
[]
[null,"Complete the following list, indicating the corresponding page number where the information is located, to certify that all requirements are included within the student information publication (catalog)."]
[null,null,"Found on page number:"]
[null,null,null,1,"The name and address of the school."]
[null,null,null,2,"The date of publication—may not exceed 3 years from the date of submission. "]
[null,null,null,3,"Admission requirements and procedures. "]
[null,null,null,4,"The educational objectives of the program, including the name, occupation and level for which training is provided. "]
[null,null,null,5,"The number of clock hours or credit hours of instruction of each course, as well as the number of weeks or months required to complete the course or program."]
[null,null,null,6,"The courses offered, specifying sufficiently the subjects included to identify the coverage of the program. "]
[null,null,null,7,"A general description of the school’s physical facilities. "]
[null,null,null,8,"Policies relating to tardiness, absences, makeup work, conduct, termination and other rules of the school or reference to the policies in another school publication which contains the information. "]
[null,null,null,9,"The grading system. "]
[null,null,null,10,"Requirements for graduation. "]
[null,null,null,11,"A statement which clearly defines whether a certificate, diploma, AST, or ASB is awarded upon graduation. "]
[null,null,null,12,"A statement of tuition and other student charges related to the enrollment, or reference to the statement in another school publication which contains the information."]
[null,null,null,13,"A statement of the school's cancellation policy (cancellation of enrollment prior to the start of classes, including refund of fees and tuition)."]
[null,null,null,null,"A statement of the school's refund policy (student withdrawal or school termination after the start of classes)."]
[null,null,null,14,"A description of placement assistance, if available, to students and graduates. ",null,null,null,null,null,null,null,null,null,null,"n/a"]
[null,null,null,15,"A description of available student services, if provided. ",null,null,null,null,null,null,null,"n/a"]
[null,null,null,16,"A school calendar, including holidays and either beginning and ending dates of courses and programs or a statement regarding the frequency of class starting policy or reference to the calendar in another student publication which contains the information. "]
[null,null,null,17,"A statement concerning transfer of credits that clarifies that there is no guarantee that credits earned at the school will transfer to another institution."]
[]
["END OF CATALOG - PROCEED TO NEXT WORKSHEET TAB"]

{"sheet":"Promotional Materials","index":17,"n_rows":14,"n_cols":1,"rows_kept":14,"cut":false,"hidden":false,"merged":[[2,1,2,9],[5,0,10,0],[5,1,11,15]]}
["Standard Diploma to AST/ASB Application"]
["Pennsylvania Department of Education"]
[]
["Embed DRAFT promotional material prepared for this program."]
[]
[]
[]
[]
[]
[]
[]
[]
[]
["END OF PROMOTIONAL MATERIALS - PROCEED TO NEXT WORKSHEET TAB"]

{"sheet":"Documents","index":18,"n_rows":207,"n_cols":1,"rows_kept":207,"cut":false,"hidden":false,"merged":[[120,1,124,6],[11,2,15,2],[30,1,34,6],[38,2,42,2],[48,1,52,6],[56,2,60,2],[66,1,70,6],[74,2,78,2],[84,1,88,6],[92,2,96,2],[102,1,106,6],[110,2,114,2],[182,2,186,2],[192,1,196,6],[200,2,204,2],[128,2,132,2],[138,1,142,6],[146,2,150,2],[156,1,160,6],[164,2,168,2],[174,1,178,6]]}
["Standard Diploma to AST/ASB Application"]
["Pennsylvania Department of Education"]
[]
["If this is a Pharmacy Technician program, embed a copy of the approval letter from the Pennsylvania State Board of Pharmacy."]
["NOTE:  Pharmacy Technician programs will not be reviewed by the Board without this approval."]
[]
["If this is a Practical Nurse program, embed a copy of the approval letter from the Pennsylvania State Board of Nursing."]
["NOTE:  Practical Nurse programs will not be reviewed by the Board without this approval."]
[]
["Embed document below:"]
[]
[]
[]
[]
[]
[]
[]
["If this program will be regulated by any other agencies, State Boards, or Departments in PDE, their approval letter to offer distance education must be included below."]
[]
["Schools using non-LMS modalities of instruction, such a Zoom or Skype, must provide access to a 10-15 minute demonstration of the modality."]
["Schools using non-LMS modalities of instruction, such as Google Classroom, must provide access to the intended resource materials."]
["Links and/or access information to non-LMS modalities must be included in the 'Documents' worksheet below."]
[]
["Additional material may not be required for traditional applications.  However, this space is available to allow you to submit additional documentation if needed. "]
["Please do not submit large additional documentation files unless they are clearly needed."]
[]
["Type of document:"]
[]
["Reason for submitting:"]
[]
[]
[]
[]
[]
[]
[]
["Embed document below:"]
[]
[]
[]
[]
[]
[]
[]
["Type of document:"]
[]
["Reason for submitting:"]
[]
[]
[]
[]
[]
[]
[]
["Embed document below:"]
[]
[]
[]
[]
[]
[]
[]
["Type of document:"]
[]
["Reason for submitting:"]
[]
[]
[]
[]
[]
[]
[]
["Embed document below:"]
[]
[]
[]
[]
[]
[]
[]
["Type of document:"]
[]
["Reason for submitting:"]
[]
[]
[]
[]
[]
[]
[]
["Embed document below:"]
[]
[]
[]
[]
[]
[]
[]
["Type of document:"]
[]
["Reason for submitting:"]
[]
[]
[]
[]
[]
[]
[]
["Embed document below:"]
[]
[]
[]
[]
[]
[]
[]
["Type of document:"]
[]
["Reason for submitting:"]
[]
[]
[]
[]
[]
[]
[]
["Embed document below:"]
[]
[]
[]
[]
[]
[]
[]
["Type of document:"]
[]
["Reason for submitting:"]
[]
[]
[]
[]
[]
[]
[]
["Embed document below:"]
[]
[]
[]
[]
[]
[]
[]
["Type of document:"]
[]
["Reason for submitting:"]
[]
[]
[]
[]
[]
[]
[]
["Embed document below:"]
[]
[]
[]
[]
[]
[]
[]
["Type of document:"]
[]
["Reason for submitting:"]
[]
[]
[]
[]
[]
[]
[]
["Embed document below:"]
[]
[]
[]
[]
[]
[]
[]
["Type of document:"]
[]
["Reason for submitting:"]
[]
[]
[]
[]
[]
[]
[]
["Embed document below:"]
[]
[]
[]
[]
[]
[]
[]
["END OF DOCUMENTS - PROCEED TO NEXT WORKSHEET TAB"]

{"sheet":"Submission","index":19,"n_rows":72,"n_cols":8,"rows_kept":72,"cut":false,"hidden":false,"merged":[[36,1,36,3],[28,1,28,4],[29,1,29,2],[30,1,30,3],[31,1,31,3],[34,1,34,4],[35,1,35,2]]}
["Standard Diploma to AST/ASB Application"]
["Pennsylvania Department of Education"]
[]
["Do not attempt to unlock or modify this application.  You will be required to submit a new application if the submitted application is unlocked, unprotected, edited, or modified in any way."]
["If you experience issues with the application or require assistance, call the Division at (717)783-8228."]
[]
["Fees / Fee Submission:"]
[null,"Standard Diploma to AST/ASB Application - $1,000"]
[null,"Note: Based on current USPS delivery time estimates, please allow 10-14 business days from the time of mailing for your payment to be received in our offices."]
[]
[null,"Pennsylvania Department of Education"]
[null,"Division of Law Enforcement Education and Trade Schools"]
[null,"State Board of Private Licensed Schools"]
[null,"333 Market Street, 12th Floor"]
[null,"Harrisburg, PA 17126-0333"]
[]
[null,"Check or money order payable to: Pennsylvania Department of Education"]
[]
["Approval"]
[null,"Staff will conduct a quantitative and qualitative review of the application. Staff will then provide written notice of application deficiencies identified during the review.  "]
[null,"Once a revised application is received that cures the identified deficiencies and is deemed materially complete, an evaluation committee will be selected by staff."]
[null,"The evaluation committee will review the application, conduct a site visit, and submit their findings to staff. Staff will again provide written notice of application deficiencies identified by the evaluation committee.  "]
[null,"The committee’s findings and the school's revised application are the basis on which the Secretary will make their final determination."]
[null,"Applications expire one year following the submission date."]
[]
["IMPORTANT - PLEASE READ"]
[]
["Carefully review the Statute, Regulations, and Board Policy Memos of the State Board of Private Licensed Schools at:"]
[null,"Private Licensed Schools Act 174 of 1986"]
[null,"Act 110 of 2019"]
[null,"22 Pa. Code Chapter 73"]
[null,"Board Policy Memos"]
[]
["Carefully review the Statute and Regulations which outline the requirements for a school and its programming to award specialized associate degrees at:"]
[null,"24 P.S. Chapter 65"]
[null,"22 Pa. Code Chapter 31 Subpart C"]
[null,"22 Pa. Code Chapter 42 "]
[]
["File Naming Conventions"]
[null,"Begin the file name with the school name or abbreviation - if multiple campuses, note location - followed by the name or abbreviation of the program name."]
[null,"Do not use punctuation in the file name.  "]
[null,"NOTE:  When resubmitting revisions to the application, it is absolutely essential to use the exact same filename.  "]
[null,"NOTE:  When resubmitting revisions to the application, it is absolutely essential that the same registered user upload the revised application to SharePoint."]
[null,"Do not change the filename in any way.  Do not even add a number or date to indicate a new version."]
[]
["SharePoint Submission"]
[]
["Licensed/Registered schools are expected to submit applications using the 'REGISTERED USER' option on SharePoint."]
[]
["Keystone Logins cannot be used to gain access to or log into Commonwealth SharePoint sites. "]
["Commonwealth SharePoint site users must be registered with a PA Login: ",null,null,null,null,null,null,"Register New PA Login"]
[]
["If this is your first time using the 'Registered User' option, you must first email and request access to the PLS SharePoint site."]
["To request access, or for general technical assistance, please email: ",null,null,null,null,null,null,"RA-PLS@pa.gov"]
[]
["When requesting access, please be sure to indicate the individual's name, username, and email associated with the PA Login."]
[]
[null,"1.   Go to:","SharePoint Submission Site"]
[null,"2.   Registered User Application Submission"]
[null,"3.   Enter your PA Login username"]
[null,"4.   Enter your PA Login password"]
[null,"5.   Select 'Add document' and check the box 'Add as a new version to existing files'"]
[null,"6.   Select 'Choose File' and select the file from your own drive.  Click 'OK'."]
[null,"7.  Under 'Content Type', select 'Specialized Associate Degree'."]
[null,"8.  Enter ALL OTHER INFORMATION as requested and click save."]
[null,null,"*You will now be able to view and independently confirm that your application has been successfully submitted."]
[]
[null,"NOTE:  Failure to enter ALL OTHER INFORMATION will result in your application not being submitted."]
[]
[null,"NOTE:  When resubmitting a revised application, it is absolutely essential to use the exact same filename as the original application."]
[]
["END OF SUBMISSION - PLEASE SUBMIT YOUR APPLICATION ACCORDINGLY"]